Workbook

Sheet Vorl. Variab. Montl. Ausg. (hidden)
A1: Mein Haushaltsbuch V 1.0 | F1: Monat | G1: =I255&" "&I256&"" -> März 2024
F2: Datum | G2: =IF(DAY(H259)>=DAY($N$259),"-",(TEXT(H259,"TTT"))) -> - | H2: - | I2: - | J2: Fr | K2: Sa | L2: So | M2: =(TEXT(N259,"TTT")) -> Mo | N2: Di | O2: Mi | P2: Do | Q2: Fr | R2: Sa | S2: So | T2: Mo | U2: Di | V2: Mi | W2: Do | X2: Fr | Y2: Sa | Z2: So | AA2: Mo | AB2: Di | AC2: Mi | AD2: Do | AE2: Fr | AF2: Sa | AG2: So | AH2: Mo | AI2: =IF(DAY(AJ259)<DAY($AJ$259),"-",(TEXT(AJ259,"TTT"))) -> Di | AJ2: Mi | AK2: Do | AL2: Fr | AM2: Sa | AN2: So | AO2: - | AP2: - | AQ2: -
G3: =IF(DAY(H259)>=DAY($N$259),"-",(TEXT(H259,"TT"))) -> - | H3: - | I3: - | J3: 01 | K3: 02 | L3: 03 | M3: =(TEXT(N259,"TT")) -> 04 | N3: 05 | O3: 06 | P3: 07 | Q3: 08 | R3: 09 | S3: 10 | T3: 11 | U3: 12 | V3: 13 | W3: 14 | X3: 15 | Y3: 16 | Z3: 17 | AA3: 18 | AB3: 19 | AC3: 20 | AD3: 21 | AE3: 22 | AF3: 23 | AG3: 24 | AH3: 25 | AI3: =IF(DAY(AJ259)<DAY($AJ$259),"-",(TEXT(AJ259,"TT"))) -> 26 | AJ3: 27 | AK3: 28 | AL3: 29 | AM3: 30 | AN3: 31 | AO3: - | AP3: - | AQ3: -
F4: Feiertage | G4: =IF(DAY(H259)>=DAY($N$259),"-",_xlfn.XLOOKUP(H259,$J$263:$J$292,$H$263:$H$292,"")) -> - | H4: - | I4: - | M4: =_xlfn.XLOOKUP(N259,$J$263:$J$292,$H$263:$H$292,"") ->  | AI4: =IF(DAY(AJ259)<DAY($AJ$259),"-",_xlfn.XLOOKUP(AJ259,$J$263:$J$292,$H$263:$H$292,"")) ->  | AL4: Karfreitag | AN4: Oster- Sonntag | AO4: - | AP4: - | AQ4: -
F5: Geburtstage | G5: =IF(DAY(H259)>=DAY($N$259),"-",_xlfn.XLOOKUP(H259,$M$263:$M$302,$L$263:$L$302,"")) -> - | H5: - | I5: - | L5: =IF(DAY(M259)>=DAY($N$259),"-",_xlfn.XLOOKUP(M259,$M$263:$M$302,$L$263:$L$302,"")) ->  | M5: =_xlfn.XLOOKUP(N259,$M$263:$M$302,$L$263:$L$302,"") ->  | N5: =_xlfn.XLOOKUP(O259,$M$263:$M$302,$L$263:$L$302,"") ->  | U5: Karl-Heinz | Y5: Ingrid Wehlitz | AI5: =IF(DAY(AJ259)<DAY($AJ$259),"-",_xlfn.XLOOKUP(AJ259,$M$263:$M$302,$L$263:$L$302,"")) ->  | AJ5: =IF(DAY(AK259)<DAY($AJ$259),"-",_xlfn.XLOOKUP(AK259,$M$263:$M$302,$L$263:$L$302,"")) ->  | AM5: Gunhild Lohm.-Elias | AO5: - | AP5: - | AQ5: -
F6: Schulferien / Urlaub | G6: =IF(DAY(H259)>=DAY($N$259),"-","") -> - | H6: - | I6: - | L6: =IF(DAY(M259)>=DAY($N$259),"-","") ->  | AI6: =IF(DAY(AJ259)<DAY($AJ$259),"-","") ->  | AN6: =IF(DAY(AO259)<DAY($AJ$259),"-","") ->  | AO6: - | AP6: - | AQ6: -
A7: Variabele Ausgaben | F7: Kalenderwoche | G7: =IF(DAY(H259)>=DAY($N$259),"-",WEEKNUM(H259,21)) -> - | H7: - | I7: - | J7: 9 | K7: 9 | L7: 9 | M7: =WEEKNUM(N259,21) -> 10 | N7: 10 | O7: 10 | P7: 10 | Q7: 10 | R7: 10 | S7: 10 | T7: 11 | U7: 11 | V7: 11 | W7: 11 | X7: 11 | Y7: 11 | Z7: 11 | AA7: 12 | AB7: 12 | AC7: 12 | AD7: 12 | AE7: 12 | AF7: 12 | AG7: 12 | AH7: 13 | AI7: =IF(DAY(AJ259)<DAY($AJ$259),"-",WEEKNUM(AJ259,21)) -> 13 | AJ7: 13 | AK7: 13 | AL7: 13 | AM7: 13 | AN7: 13 | AO7: - | AP7: - | AQ7: -
F8: Tagessumme | G8: =IF(DAY(H259)>=DAY($N$259),"-",IF(SUM(G49:G236)<>0,SUM(G49:G236),"")) -> - | H8: - | I8: - | J8: -205 | K8: -205 | L8: -205 | M8: =IF(SUM(M49:M236)<>0,SUM(M49:M236),"") -> -205 | N8: =IF(SUM(N49:N236)<>0,SUM(N49:N236),"") -> -205 | O8: -205 | P8: -205 | Q8: -205 | R8: -205 | S8: -205 | T8: -205 | U8: -205 | V8: -205 | W8: -205 | X8: -205 | Y8: -205 | Z8: -205 | AA8: -205 | AB8: -205 | AC8: -205 | AD8: -205 | AE8: -205 | AF8: -205 | AG8: -205 | AH8: -205 | AI8: =IF(DAY(AJ259)<DAY($AJ$259),"-",IF(SUM(AI49:AI236)<>0,SUM(AI49:AI236),"")) -> -205 | AJ8: -205 | AK8: -205 | AL8: -205 | AM8: -205 | AN8: -205 | AO8: - | AP8: - | AQ8: -
F9: Wochensumme | G9: =IF(DAY(H259)>=DAY($N$259),"-",IF((G2="So")*ISNUMBER(G8),SUMIF(7:7,G7,8:8)+(COUNTIF($G2:G2,"So")=1)*#REF!,"")) -> - | H9: =IF(DAY(I259)>=DAY($N$259),"-",IF((H2="So")*ISNUMBER(H8),SUMIF(7:7,H7,8:8)+(COUNTIF($G2:H2,"So")=1)*#REF!,"")) -> - | I9: =IF(DAY(J259)>=DAY($N$259),"-",IF((I2="So")*ISNUMBER(I8),SUMIF(7:7,I7,8:8)+(COUNTIF($G2:I2,"So")=1)*#REF!,"")) -> - | J9: =IF(DAY(K259)>=DAY($N$259),"-",IF((J2="So")*ISNUMBER(J8),SUMIF(7:7,J7,8:8)+(COUNTIF($G2:J2,"So")=1)*#REF!,"")) ->  | K9: =IF(DAY(L259)>=DAY($N$259),"-",IF((K2="So")*ISNUMBER(K8),SUMIF(7:7,K7,8:8)+(COUNTIF($G2:K2,"So")=1)*#REF!,"")) ->  | L9: =IF(DAY(M259)>=DAY($N$259),"-",IF((L2="So")*ISNUMBER(L8),SUMIF(7:7,L7,8:8)+(COUNTIF($G2:L2,"So")=1)*#REF!,"")) ->  | M9: =IF((M2="So")*ISNUMBER(M8),SUMIF(7:7,M7,8:8)+(COUNTIF($G2:M2,"So")=1)*#REF!,"") ->  | N9: =IF((N2="So")*ISNUMBER(N8),SUMIF(7:7,N7,8:8)+(COUNTIF($G2:N2,"So")=1)*#REF!,"") ->  | O9: =IF((O2="So")*ISNUMBER(O8),SUMIF(7:7,O7,8:8)+(COUNTIF($G2:O2,"So")=1)*#REF!,"") ->  | P9: =IF((P2="So")*ISNUMBER(P8),SUMIF(7:7,P7,8:8)+(COUNTIF($G2:P2,"So")=1)*#REF!,"") ->  | Q9: =IF((Q2="So")*ISNUMBER(Q8),SUMIF(7:7,Q7,8:8)+(COUNTIF($G2:Q2,"So")=1)*#REF!,"") ->  | R9: =IF((R2="So")*ISNUMBER(R8),SUMIF(7:7,R7,8:8)+(COUNTIF($G2:R2,"So")=1)*#REF!,"") ->  | S9: =IF((S2="So")*ISNUMBER(S8),SUMIF(7:7,S7,8:8)+(COUNTIF($G2:S2,"So")=1)*#REF!,"") ->  | T9: =IF((T2="So")*ISNUMBER(T8),SUMIF(7:7,T7,8:8)+(COUNTIF($G2:T2,"So")=1)*#REF!,"") ->  | U9: =IF((U2="So")*ISNUMBER(U8),SUMIF(7:7,U7,8:8)+(COUNTIF($G2:U2,"So")=1)*#REF!,"") ->  | V9: =IF((V2="So")*ISNUMBER(V8),SUMIF(7:7,V7,8:8)+(COUNTIF($G2:V2,"So")=1)*#REF!,"") ->  | W9: =IF((W2="So")*ISNUMBER(W8),SUMIF(7:7,W7,8:8)+(COUNTIF($G2:W2,"So")=1)*#REF!,"") ->  | X9: =IF((X2="So")*ISNUMBER(X8),SUMIF(7:7,X7,8:8)+(COUNTIF($G2:X2,"So")=1)*#REF!,"") ->  | Y9: =IF((Y2="So")*ISNUMBER(Y8),SUMIF(7:7,Y7,8:8)+(COUNTIF($G2:Y2,"So")=1)*#REF!,"") ->  | Z9: =IF((Z2="So")*ISNUMBER(Z8),SUMIF(7:7,Z7,8:8)+(COUNTIF($G2:Z2,"So")=1)*#REF!,"") ->  | AA9: =IF((AA2="So")*ISNUMBER(AA8),SUMIF(7:7,AA7,8:8)+(COUNTIF($G2:AA2,"So")=1)*#REF!,"") ->  | AB9: =IF((AB2="So")*ISNUMBER(AB8),SUMIF(7:7,AB7,8:8)+(COUNTIF($G2:AB2,"So")=1)*#REF!,"") ->  | AC9: =IF((AC2="So")*ISNUMBER(AC8),SUMIF(7:7,AC7,8:8)+(COUNTIF($G2:AC2,"So")=1)*#REF!,"") ->  | AD9: =IF((AD2="So")*ISNUMBER(AD8),SUMIF(7:7,AD7,8:8)+(COUNTIF($G2:AD2,"So")=1)*#REF!,"") ->  | AE9: =IF((AE2="So")*ISNUMBER(AE8),SUMIF(7:7,AE7,8:8)+(COUNTIF($G2:AE2,"So")=1)*#REF!,"") ->  | AF9: =IF((AF2="So")*ISNUMBER(AF8),SUMIF(7:7,AF7,8:8)+(COUNTIF($G2:AF2,"So")=1)*#REF!,"") ->  | AG9: =IF((AG2="So")*ISNUMBER(AG8),SUMIF(7:7,AG7,8:8)+(COUNTIF($G2:AG2,"So")=1)*#REF!,"") ->  | AH9: =IF((AH2="So")*ISNUMBER(AH8),SUMIF(7:7,AH7,8:8)+(COUNTIF($G2:AH2,"So")=1)*#REF!,"") ->  | AI9: =IF(DAY(AJ259)<DAY($AJ$259),"-",IF((AI2="So")*ISNUMBER(AI8),SUMIF(7:7,AI7,8:8)+(COUNTIF($G2:AI2,"So")=1)*#REF!,"")) ->  | AJ9: =IF(DAY(AK259)<DAY($AJ$259),"-",IF((AJ2="So")*ISNUMBER(AJ8),SUMIF(7:7,AJ7,8:8)+(COUNTIF($G2:AJ2,"So")=1)*#REF!,"")) ->  | AK9: =IF(DAY(AL259)<DAY($AJ$259),"-",IF((AK2="So")*ISNUMBER(AK8),SUMIF(7:7,AK7,8:8)+(COUNTIF($G2:AK2,"So")=1)*#REF!,"")) ->  | AL9: =IF(DAY(AM259)<DAY($AJ$259),"-",IF((AL2="So")*ISNUMBER(AL8),SUMIF(7:7,AL7,8:8)+(COUNTIF($G2:AL2,"So")=1)*#REF!,"")) ->  | AM9: =IF(DAY(AN259)<DAY($AJ$259),"-",IF((AM2="So")*ISNUMBER(AM8),SUMIF(7:7,AM7,8:8)+(COUNTIF($G2:AM2,"So")=1)*#REF!,"")) ->  | AN9: =IF(DAY(AO259)<DAY($AJ$259),"-",IF((AN2="So")*ISNUMBER(AN8),SUMIF(7:7,AN7,8:8)+(COUNTIF($G2:AN2,"So")=1)*#REF!,"")) ->  | AO9: =IF(DAY(AP259)<DAY($AJ$259),"-",IF((AO2="So")*ISNUMBER(AO8),SUMIF(7:7,AO7,8:8)+(COUNTIF($G2:AO2,"So")=1)*#REF!,"")) -> - | AP9: =IF(DAY(AQ259)<DAY($AJ$259),"-",IF((AP2="So")*ISNUMBER(AP8),SUMIF(7:7,AP7,8:8)+(COUNTIF($G2:AP2,"So")=1)*#REF!,"")) -> - | AQ9: =IF(DAY(AR259)<DAY($AJ$259),"-",IF((AQ2="So")*ISNUMBER(AQ8),SUMIF(7:7,AQ7,8:8)+(COUNTIF($G2:AQ2,"So")=1)*#REF!,"")) -> - | AS9: =IF(LOOKUP(9,1/(AG2:AQ2<>"-"),AG2:AQ2)="So",0,SUMIF(7:7,LOOKUP(9,1/(AG2:AQ2<>"-"),AG7:AQ7),8:8)) -> 0
B10: Hauptkategorie | C10: Unterkategorie | D10: Summe | E10: Summe | F10: Prozent. Verteilung | G10: =IF(DAY(H259)>=DAY($N$259),"-","Betrag") -> - | H10: - | I10: - | J10: Betrag | K10: Betrag | L10: Betrag | M10: Betrag | N10: Betrag | O10: Betrag | P10: Betrag | Q10: Betrag | R10: Betrag | S10: Betrag | T10: Betrag | U10: Betrag | V10: Betrag | W10: Betrag | X10: Betrag | Y10: Betrag | Z10: Betrag | AA10: Betrag | AB10: Betrag | AC10: Betrag | AD10: Betrag | AE10: Betrag | AF10: Betrag | AG10: Betrag | AH10: Betrag | AI10: =IF(DAY(AJ259)<DAY($AJ$259),"-","Betrag") -> Betrag | AJ10: Betrag | AK10: Betrag | AL10: Betrag | AM10: Betrag | AN10: Betrag | AO10: - | AP10: - | AQ10: -
A12: Schnelleingabe | B12: Beruf | C12: Verpflegung Frühstück | D12: =IF(SUM(G12:AQ12)<>0,SUM(G12:AQ12),"") -> -74 | E12: =IF(SUM(D12:D14)<>0,SUM(D12:D14),"") -> -222 | G12: -2 | H12: -2 | I12: -2 | J12: -2 | K12: -2 | L12: -2 | M12: -2 | N12: -2 | O12: -2 | P12: -2 | Q12: -2 | R12: -2 | S12: -2 | T12: -2 | U12: -2 | V12: -2 | W12: -2 | X12: -2 | Y12: -2 | Z12: -2 | AA12: -2 | AB12: -2 | AC12: -2 | AD12: -2 | AE12: -2 | AF12: -2 | AG12: -2 | AH12: -2 | AI12: -2 | AJ12: -2 | AK12: -2 | AL12: -2 | AM12: -2 | AN12: -2 | AO12: -2 | AP12: -2 | AQ12: -2
C13: Verpflegung Mittag | D13: =IF(SUM(G13:AQ13)<>0,SUM(G13:AQ13),"") -> -111 | G13: -3 | H13: -3 | I13: -3 | J13: -3 | K13: -3 | L13: -3 | M13: -3 | N13: -3 | O13: -3 | P13: -3 | Q13: -3 | R13: -3 | S13: -3 | T13: -3 | U13: -3 | V13: -3 | W13: -3 | X13: -3 | Y13: -3 | Z13: -3 | AA13: -3 | AB13: -3 | AC13: -3 | AD13: -3 | AE13: -3 | AF13: -3 | AG13: -3 | AH13: -3 | AI13: -3 | AJ13: -3 | AK13: -3 | AL13: -3 | AM13: -3 | AN13: -3 | AO13: -3 | AP13: -3 | AQ13: -3
C14: Platzhalter 1 | D14: -37 | G14: -1 | H14: -1 | I14: -1 | J14: -1 | K14: -1 | L14: -1 | M14: -1 | N14: -1 | O14: -1 | P14: -1 | Q14: -1 | R14: -1 | S14: -1 | T14: -1 | U14: -1 | V14: -1 | W14: -1 | X14: -1 | Y14: -1 | Z14: -1 | AA14: -1 | AB14: -1 | AC14: -1 | AD14: -1 | AE14: -1 | AF14: -1 | AG14: -1 | AH14: -1 | AI14: -1 | AJ14: -1 | AK14: -1 | AL14: -1 | AM14: -1 | AN14: -1 | AO14: -1 | AP14: -1 | AQ14: -1
B16: -- Freizeit -- Ausgehen/Hobby Sport/Vereine | C16: Bar/Café/Restaurant | D16: -74 | E16: =IF(SUM(D16:D19)<>0,SUM(D16:D19),"") -> -370 | G16: -2 | H16: -2 | I16: -2 | J16: -2 | K16: -2 | L16: -2 | M16: -2 | N16: -2 | O16: -2 | P16: -2 | Q16: -2 | R16: -2 | S16: -2 | T16: -2 | U16: -2 | V16: -2 | W16: -2 | X16: -2 | Y16: -2 | Z16: -2 | AA16: -2 | AB16: -2 | AC16: -2 | AD16: -2 | AE16: -2 | AF16: -2 | AG16: -2 | AH16: -2 | AI16: -2 | AJ16: -2 | AK16: -2 | AL16: -2 | AM16: -2 | AN16: -2 | AO16: -2 | AP16: -2 | AQ16: -2
C17: Geschenke | D17: -111 | G17: -3 | H17: -3 | I17: -3 | J17: -3 | K17: -3 | L17: -3 | M17: -3 | N17: -3 | O17: -3 | P17: -3 | Q17: -3 | R17: -3 | S17: -3 | T17: -3 | U17: -3 | V17: -3 | W17: -3 | X17: -3 | Y17: -3 | Z17: -3 | AA17: -3 | AB17: -3 | AC17: -3 | AD17: -3 | AE17: -3 | AF17: -3 | AG17: -3 | AH17: -3 | AI17: -3 | AJ17: -3 | AK17: -3 | AL17: -3 | AM17: -3 | AN17: -3 | AO17: -3 | AP17: -3 | AQ17: -3
C18: Getränke/Eis/Snacks | D18: -148 | G18: -4 | H18: -4 | I18: -4 | J18: -4 | K18: -4 | L18: -4 | M18: -4 | N18: -4 | O18: -4 | P18: -4 | Q18: -4 | R18: -4 | S18: -4 | T18: -4 | U18: -4 | V18: -4 | W18: -4 | X18: -4 | Y18: -4 | Z18: -4 | AA18: -4 | AB18: -4 | AC18: -4 | AD18: -4 | AE18: -4 | AF18: -4 | AG18: -4 | AH18: -4 | AI18: -4 | AJ18: -4 | AK18: -4 | AL18: -4 | AM18: -4 | AN18: -4 | AO18: -4 | AP18: -4 | AQ18: -4
C19: Platzhalter 2 | D19: -37 | G19: -1 | H19: -1 | I19: -1 | J19: -1 | K19: -1 | L19: -1 | M19: -1 | N19: -1 | O19: -1 | P19: -1 | Q19: -1 | R19: -1 | S19: -1 | T19: -1 | U19: -1 | V19: -1 | W19: -1 | X19: -1 | Y19: -1 | Z19: -1 | AA19: -1 | AB19: -1 | AC19: -1 | AD19: -1 | AE19: -1 | AF19: -1 | AG19: -1 | AH19: -1 | AI19: -1 | AJ19: -1 | AK19: -1 | AL19: -1 | AM19: -1 | AN19: -1 | AO19: -1 | AP19: -1 | AQ19: -1
B21: -- Freizeit -- Bücher/Medien Spiele | C21: Bücher/Heftromane/Zeitschriften | D21: -74 | E21: =IF(SUM(D21:D23)<>0,SUM(D21:D23),"") -> -222 | G21: -2 | H21: -2 | I21: -2 | J21: -2 | K21: -2 | L21: -2 | M21: -2 | N21: -2 | O21: -2 | P21: -2 | Q21: -2 | R21: -2 | S21: -2 | T21: -2 | U21: -2 | V21: -2 | W21: -2 | X21: -2 | Y21: -2 | Z21: -2 | AA21: -2 | AB21: -2 | AC21: -2 | AD21: -2 | AE21: -2 | AF21: -2 | AG21: -2 | AH21: -2 | AI21: -2 | AJ21: -2 | AK21: -2 | AL21: -2 | AM21: -2 | AN21: -2 | AO21: -2 | AP21: -2 | AQ21: -2
C22: PC-Software/PC-Spiele | D22: -111 | G22: -3 | H22: -3 | I22: -3 | J22: -3 | K22: -3 | L22: -3 | M22: -3 | N22: -3 | O22: -3 | P22: -3 | Q22: -3 | R22: -3 | S22: -3 | T22: -3 | U22: -3 | V22: -3 | W22: -3 | X22: -3 | Y22: -3 | Z22: -3 | AA22: -3 | AB22: -3 | AC22: -3 | AD22: -3 | AE22: -3 | AF22: -3 | AG22: -3 | AH22: -3 | AI22: -3 | AJ22: -3 | AK22: -3 | AL22: -3 | AM22: -3 | AN22: -3 | AO22: -3 | AP22: -3 | AQ22: -3
C23: Platzhalter 3 | D23: -37 | G23: -1 | H23: -1 | I23: -1 | J23: -1 | K23: -1 | L23: -1 | M23: -1 | N23: -1 | O23: -1 | P23: -1 | Q23: -1 | R23: -1 | S23: -1 | T23: -1 | U23: -1 | V23: -1 | W23: -1 | X23: -1 | Y23: -1 | Z23: -1 | AA23: -1 | AB23: -1 | AC23: -1 | AD23: -1 | AE23: -1 | AF23: -1 | AG23: -1 | AH23: -1 | AI23: -1 | AJ23: -1 | AK23: -1 | AL23: -1 | AM23: -1 | AN23: -1 | AO23: -1 | AP23: -1 | AQ23: -1
B25: Gesundheit | C25: Arzneimittel/Verbandsmittel (Nicht Rezeptpflichtig) | D25: -74 | E25: =IF(SUM(D25:D27)<>0,SUM(D25:D27),"") -> -222 | G25: -2 | H25: -2 | I25: -2 | J25: -2 | K25: -2 | L25: -2 | M25: -2 | N25: -2 | O25: -2 | P25: -2 | Q25: -2 | R25: -2 | S25: -2 | T25: -2 | U25: -2 | V25: -2 | W25: -2 | X25: -2 | Y25: -2 | Z25: -2 | AA25: -2 | AB25: -2 | AC25: -2 | AD25: -2 | AE25: -2 | AF25: -2 | AG25: -2 | AH25: -2 | AI25: -2 | AJ25: -2 | AK25: -2 | AL25: -2 | AM25: -2 | AN25: -2 | AO25: -2 | AP25: -2 | AQ25: -2
C26: Arzneimittel/Verbandsmittel (Rezeptpflichtig) | D26: -111 | G26: -3 | H26: -3 | I26: -3 | J26: -3 | K26: -3 | L26: -3 | M26: -3 | N26: -3 | O26: -3 | P26: -3 | Q26: -3 | R26: -3 | S26: -3 | T26: -3 | U26: -3 | V26: -3 | W26: -3 | X26: -3 | Y26: -3 | Z26: -3 | AA26: -3 | AB26: -3 | AC26: -3 | AD26: -3 | AE26: -3 | AF26: -3 | AG26: -3 | AH26: -3 | AI26: -3 | AJ26: -3 | AK26: -3 | AL26: -3 | AM26: -3 | AN26: -3 | AO26: -3 | AP26: -3 | AQ26: -3
C27: Platzhalter 4 | D27: -37 | G27: -1 | H27: -1 | I27: -1 | J27: -1 | K27: -1 | L27: -1 | M27: -1 | N27: -1 | O27: -1 | P27: -1 | Q27: -1 | R27: -1 | S27: -1 | T27: -1 | U27: -1 | V27: -1 | W27: -1 | X27: -1 | Y27: -1 | Z27: -1 | AA27: -1 | AB27: -1 | AC27: -1 | AD27: -1 | AE27: -1 | AF27: -1 | AG27: -1 | AH27: -1 | AI27: -1 | AJ27: -1 | AK27: -1 | AL27: -1 | AM27: -1 | AN27: -1 | AO27: -1 | AP27: -1 | AQ27: -1
B29: Lebensmittel | C29: Bürobedarf | D29: -74 | E29: =IF(SUM(D29:D32)<>0,SUM(D29:D32),"") -> -370 | G29: -2 | H29: -2 | I29: -2 | J29: -2 | K29: -2 | L29: -2 | M29: -2 | N29: -2 | O29: -2 | P29: -2 | Q29: -2 | R29: -2 | S29: -2 | T29: -2 | U29: -2 | V29: -2 | W29: -2 | X29: -2 | Y29: -2 | Z29: -2 | AA29: -2 | AB29: -2 | AC29: -2 | AD29: -2 | AE29: -2 | AF29: -2 | AG29: -2 | AH29: -2 | AI29: -2 | AJ29: -2 | AK29: -2 | AL29: -2 | AM29: -2 | AN29: -2 | AO29: -2 | AP29: -2 | AQ29: -2
C30: Haushaltsartikel (Reinigungsm., Toilettenpap., etc.) | D30: -111 | G30: -3 | H30: -3 | I30: -3 | J30: -3 | K30: -3 | L30: -3 | M30: -3 | N30: -3 | O30: -3 | P30: -3 | Q30: -3 | R30: -3 | S30: -3 | T30: -3 | U30: -3 | V30: -3 | W30: -3 | X30: -3 | Y30: -3 | Z30: -3 | AA30: -3 | AB30: -3 | AC30: -3 | AD30: -3 | AE30: -3 | AF30: -3 | AG30: -3 | AH30: -3 | AI30: -3 | AJ30: -3 | AK30: -3 | AL30: -3 | AM30: -3 | AN30: -3 | AO30: -3 | AP30: -3 | AQ30: -3
C31: Lebensmittel/Getränke | D31: -148 | G31: -4 | H31: -4 | I31: -4 | J31: -4 | K31: -4 | L31: -4 | M31: -4 | N31: -4 | O31: -4 | P31: -4 | Q31: -4 | R31: -4 | S31: -4 | T31: -4 | U31: -4 | V31: -4 | W31: -4 | X31: -4 | Y31: -4 | Z31: -4 | AA31: -4 | AB31: -4 | AC31: -4 | AD31: -4 | AE31: -4 | AF31: -4 | AG31: -4 | AH31: -4 | AI31: -4 | AJ31: -4 | AK31: -4 | AL31: -4 | AM31: -4 | AN31: -4 | AO31: -4 | AP31: -4 | AQ31: -4
C32: Platzhalter 5 | D32: -37 | G32: -1 | H32: -1 | I32: -1 | J32: -1 | K32: -1 | L32: -1 | M32: -1 | N32: -1 | O32: -1 | P32: -1 | Q32: -1 | R32: -1 | S32: -1 | T32: -1 | U32: -1 | V32: -1 | W32: -1 | X32: -1 | Y32: -1 | Z32: -1 | AA32: -1 | AB32: -1 | AC32: -1 | AD32: -1 | AE32: -1 | AF32: -1 | AG32: -1 | AH32: -1 | AI32: -1 | AJ32: -1 | AK32: -1 | AL32: -1 | AM32: -1 | AN32: -1 | AO32: -1 | AP32: -1 | AQ32: -1
B34: Mobilität | C34: Auto, Pflege | D34: -74 | E34: =IF(SUM(D34:D38)<>0,SUM(D34:D38),"") -> -555 | G34: -2 | H34: -2 | I34: -2 | J34: -2 | K34: -2 | L34: -2 | M34: -2 | N34: -2 | O34: -2 | P34: -2 | Q34: -2 | R34: -2 | S34: -2 | T34: -2 | U34: -2 | V34: -2 | W34: -2 | X34: -2 | Y34: -2 | Z34: -2 | AA34: -2 | AB34: -2 | AC34: -2 | AD34: -2 | AE34: -2 | AF34: -2 | AG34: -2 | AH34: -2 | AI34: -2 | AJ34: -2 | AK34: -2 | AL34: -2 | AM34: -2 | AN34: -2 | AO34: -2 | AP34: -2 | AQ34: -2
C35: Auto, Treibstoff | D35: -111 | G35: -3 | H35: -3 | I35: -3 | J35: -3 | K35: -3 | L35: -3 | M35: -3 | N35: -3 | O35: -3 | P35: -3 | Q35: -3 | R35: -3 | S35: -3 | T35: -3 | U35: -3 | V35: -3 | W35: -3 | X35: -3 | Y35: -3 | Z35: -3 | AA35: -3 | AB35: -3 | AC35: -3 | AD35: -3 | AE35: -3 | AF35: -3 | AG35: -3 | AH35: -3 | AI35: -3 | AJ35: -3 | AK35: -3 | AL35: -3 | AM35: -3 | AN35: -3 | AO35: -3 | AP35: -3 | AQ35: -3
C36: Auto, Parkgebühren | D36: -148 | G36: -4 | H36: -4 | I36: -4 | J36: -4 | K36: -4 | L36: -4 | M36: -4 | N36: -4 | O36: -4 | P36: -4 | Q36: -4 | R36: -4 | S36: -4 | T36: -4 | U36: -4 | V36: -4 | W36: -4 | X36: -4 | Y36: -4 | Z36: -4 | AA36: -4 | AB36: -4 | AC36: -4 | AD36: -4 | AE36: -4 | AF36: -4 | AG36: -4 | AH36: -4 | AI36: -4 | AJ36: -4 | AK36: -4 | AL36: -4 | AM36: -4 | AN36: -4 | AO36: -4 | AP36: -4 | AQ36: -4
C37: ÖPNV (Fahrkarten, Wochenticket, etc.) | D37: -185 | G37: -5 | H37: -5 | I37: -5 | J37: -5 | K37: -5 | L37: -5 | M37: -5 | N37: -5 | O37: -5 | P37: -5 | Q37: -5 | R37: -5 | S37: -5 | T37: -5 | U37: -5 | V37: -5 | W37: -5 | X37: -5 | Y37: -5 | Z37: -5 | AA37: -5 | AB37: -5 | AC37: -5 | AD37: -5 | AE37: -5 | AF37: -5 | AG37: -5 | AH37: -5 | AI37: -5 | AJ37: -5 | AK37: -5 | AL37: -5 | AM37: -5 | AN37: -5 | AO37: -5 | AP37: -5 | AQ37: -5
C38: Platzhalter 6 | D38: -37 | G38: -1 | H38: -1 | I38: -1 | J38: -1 | K38: -1 | L38: -1 | M38: -1 | N38: -1 | O38: -1 | P38: -1 | Q38: -1 | R38: -1 | S38: -1 | T38: -1 | U38: -1 | V38: -1 | W38: -1 | X38: -1 | Y38: -1 | Z38: -1 | AA38: -1 | AB38: -1 | AC38: -1 | AD38: -1 | AE38: -1 | AF38: -1 | AG38: -1 | AH38: -1 | AI38: -1 | AJ38: -1 | AK38: -1 | AL38: -1 | AM38: -1 | AN38: -1 | AO38: -1 | AP38: -1 | AQ38: -1
B40: Post | C40: Briefe | D40: -74 | E40: =IF(SUM(D40:D42)<>0,SUM(D40:D42),"") -> -222 | G40: -2 | H40: -2 | I40: -2 | J40: -2 | K40: -2 | L40: -2 | M40: -2 | N40: -2 | O40: -2 | P40: -2 | Q40: -2 | R40: -2 | S40: -2 | T40: -2 | U40: -2 | V40: -2 | W40: -2 | X40: -2 | Y40: -2 | Z40: -2 | AA40: -2 | AB40: -2 | AC40: -2 | AD40: -2 | AE40: -2 | AF40: -2 | AG40: -2 | AH40: -2 | AI40: -2 | AJ40: -2 | AK40: -2 | AL40: -2 | AM40: -2 | AN40: -2 | AO40: -2 | AP40: -2 | AQ40: -2
C41: Pakete | D41: -111 | G41: -3 | H41: -3 | I41: -3 | J41: -3 | K41: -3 | L41: -3 | M41: -3 | N41: -3 | O41: -3 | P41: -3 | Q41: -3 | R41: -3 | S41: -3 | T41: -3 | U41: -3 | V41: -3 | W41: -3 | X41: -3 | Y41: -3 | Z41: -3 | AA41: -3 | AB41: -3 | AC41: -3 | AD41: -3 | AE41: -3 | AF41: -3 | AG41: -3 | AH41: -3 | AI41: -3 | AJ41: -3 | AK41: -3 | AL41: -3 | AM41: -3 | AN41: -3 | AO41: -3 | AP41: -3 | AQ41: -3
C42: Platzhalter 7 | D42: -37 | G42: -1 | H42: -1 | I42: -1 | J42: -1 | K42: -1 | L42: -1 | M42: -1 | N42: -1 | O42: -1 | P42: -1 | Q42: -1 | R42: -1 | S42: -1 | T42: -1 | U42: -1 | V42: -1 | W42: -1 | X42: -1 | Y42: -1 | Z42: -1 | AA42: -1 | AB42: -1 | AC42: -1 | AD42: -1 | AE42: -1 | AF42: -1 | AG42: -1 | AH42: -1 | AI42: -1 | AJ42: -1 | AK42: -1 | AL42: -1 | AM42: -1 | AN42: -1 | AO42: -1 | AP42: -1 | AQ42: -1
B44: Wellnes/Körperpflege | C44: Fitnessstudio | D44: -74 | E44: =IF(SUM(D44:D47)<>0,SUM(D44:D47),"") -> -370 | G44: -2 | H44: -2 | I44: -2 | J44: -2 | K44: -2 | L44: -2 | M44: -2 | N44: -2 | O44: -2 | P44: -2 | Q44: -2 | R44: -2 | S44: -2 | T44: -2 | U44: -2 | V44: -2 | W44: -2 | X44: -2 | Y44: -2 | Z44: -2 | AA44: -2 | AB44: -2 | AC44: -2 | AD44: -2 | AE44: -2 | AF44: -2 | AG44: -2 | AH44: -2 | AI44: -2 | AJ44: -2 | AK44: -2 | AL44: -2 | AM44: -2 | AN44: -2 | AO44: -2 | AP44: -2 | AQ44: -2
C45: Körperpflege/Kosmetik/ Frisör | D45: -111 | G45: -3 | H45: -3 | I45: -3 | J45: -3 | K45: -3 | L45: -3 | M45: -3 | N45: -3 | O45: -3 | P45: -3 | Q45: -3 | R45: -3 | S45: -3 | T45: -3 | U45: -3 | V45: -3 | W45: -3 | X45: -3 | Y45: -3 | Z45: -3 | AA45: -3 | AB45: -3 | AC45: -3 | AD45: -3 | AE45: -3 | AF45: -3 | AG45: -3 | AH45: -3 | AI45: -3 | AJ45: -3 | AK45: -3 | AL45: -3 | AM45: -3 | AN45: -3 | AO45: -3 | AP45: -3 | AQ45: -3
C46: Wellness (Massage,Sauna, etc.) | D46: -148 | G46: -4 | H46: -4 | I46: -4 | J46: -4 | K46: -4 | L46: -4 | M46: -4 | N46: -4 | O46: -4 | P46: -4 | Q46: -4 | R46: -4 | S46: -4 | T46: -4 | U46: -4 | V46: -4 | W46: -4 | X46: -4 | Y46: -4 | Z46: -4 | AA46: -4 | AB46: -4 | AC46: -4 | AD46: -4 | AE46: -4 | AF46: -4 | AG46: -4 | AH46: -4 | AI46: -4 | AJ46: -4 | AK46: -4 | AL46: -4 | AM46: -4 | AN46: -4 | AO46: -4 | AP46: -4 | AQ46: -4
C47: Platzhalter 8 | D47: -37 | G47: -1 | H47: -1 | I47: -1 | J47: -1 | K47: -1 | L47: -1 | M47: -1 | N47: -1 | O47: -1 | P47: -1 | Q47: -1 | R47: -1 | S47: -1 | T47: -1 | U47: -1 | V47: -1 | W47: -1 | X47: -1 | Y47: -1 | Z47: -1 | AA47: -1 | AB47: -1 | AC47: -1 | AD47: -1 | AE47: -1 | AF47: -1 | AG47: -1 | AH47: -1 | AI47: -1 | AJ47: -1 | AK47: -1 | AL47: -1 | AM47: -1 | AN47: -1 | AO47: -1 | AP47: -1 | AQ47: -1
A49: Eingabe | B49: Bekleidung | C49: Accessoires | D49: -37 | E49: =IF(SUM(D49:D57)<>0,SUM(D49:D58),"") -> -370 | F49: =IFERROR(E49/$E$240," ") -> 0.04608294931 | G49: -1 | H49: -1 | I49: -1 | J49: -1 | K49: -1 | L49: -1 | M49: -1 | N49: -1 | O49: -1 | P49: -1 | Q49: -1 | R49: -1 | S49: -1 | T49: -1 | U49: -1 | V49: -1 | W49: -1 | X49: -1 | Y49: -1 | Z49: -1 | AA49: -1 | AB49: -1 | AC49: -1 | AD49: -1 | AE49: -1 | AF49: -1 | AG49: -1 | AH49: -1 | AI49: -1 | AJ49: -1 | AK49: -1 | AL49: -1 | AM49: -1 | AN49: -1 | AO49: -1 | AP49: -1 | AQ49: -1
C50: Besondere Anlässe (Hochzeit, etc.) | D50: -37 | G50: -1 | H50: -1 | I50: -1 | J50: -1 | K50: -1 | L50: -1 | M50: -1 | N50: -1 | O50: -1 | P50: -1 | Q50: -1 | R50: -1 | S50: -1 | T50: -1 | U50: -1 | V50: -1 | W50: -1 | X50: -1 | Y50: -1 | Z50: -1 | AA50: -1 | AB50: -1 | AC50: -1 | AD50: -1 | AE50: -1 | AF50: -1 | AG50: -1 | AH50: -1 | AI50: -1 | AJ50: -1 | AK50: -1 | AL50: -1 | AM50: -1 | AN50: -1 | AO50: -1 | AP50: -1 | AQ50: -1
C51: Oberbekleidung | D51: -37 | G51: -1 | H51: -1 | I51: -1 | J51: -1 | K51: -1 | L51: -1 | M51: -1 | N51: -1 | O51: -1 | P51: -1 | Q51: -1 | R51: -1 | S51: -1 | T51: -1 | U51: -1 | V51: -1 | W51: -1 | X51: -1 | Y51: -1 | Z51: -1 | AA51: -1 | AB51: -1 | AC51: -1 | AD51: -1 | AE51: -1 | AF51: -1 | AG51: -1 | AH51: -1 | AI51: -1 | AJ51: -1 | AK51: -1 | AL51: -1 | AM51: -1 | AN51: -1 | AO51: -1 | AP51: -1 | AQ51: -1
C52: Schuhe | D52: -37 | G52: -1 | H52: -1 | I52: -1 | J52: -1 | K52: -1 | L52: -1 | M52: -1 | N52: -1 | O52: -1 | P52: -1 | Q52: -1 | R52: -1 | S52: -1 | T52: -1 | U52: -1 | V52: -1 | W52: -1 | X52: -1 | Y52: -1 | Z52: -1 | AA52: -1 | AB52: -1 | AC52: -1 | AD52: -1 | AE52: -1 | AF52: -1 | AG52: -1 | AH52: -1 | AI52: -1 | AJ52: -1 | AK52: -1 | AL52: -1 | AM52: -1 | AN52: -1 | AO52: -1 | AP52: -1 | AQ52: -1
C53: Sportbekleidung | D53: -37 | G53: -1 | H53: -1 | I53: -1 | J53: -1 | K53: -1 | L53: -1 | M53: -1 | N53: -1 | O53: -1 | P53: -1 | Q53: -1 | R53: -1 | S53: -1 | T53: -1 | U53: -1 | V53: -1 | W53: -1 | X53: -1 | Y53: -1 | Z53: -1 | AA53: -1 | AB53: -1 | AC53: -1 | AD53: -1 | AE53: -1 | AF53: -1 | AG53: -1 | AH53: -1 | AI53: -1 | AJ53: -1 | AK53: -1 | AL53: -1 | AM53: -1 | AN53: -1 | AO53: -1 | AP53: -1 | AQ53: -1
C54: Unterbekleidung | D54: -37 | G54: -1 | H54: -1 | I54: -1 | J54: -1 | K54: -1 | L54: -1 | M54: -1 | N54: -1 | O54: -1 | P54: -1 | Q54: -1 | R54: -1 | S54: -1 | T54: -1 | U54: -1 | V54: -1 | W54: -1 | X54: -1 | Y54: -1 | Z54: -1 | AA54: -1 | AB54: -1 | AC54: -1 | AD54: -1 | AE54: -1 | AF54: -1 | AG54: -1 | AH54: -1 | AI54: -1 | AJ54: -1 | AK54: -1 | AL54: -1 | AM54: -1 | AN54: -1 | AO54: -1 | AP54: -1 | AQ54: -1
C55: Platzhalter 9 | D55: -37 | G55: -1 | H55: -1 | I55: -1 | J55: -1 | K55: -1 | L55: -1 | M55: -1 | N55: -1 | O55: -1 | P55: -1 | Q55: -1 | R55: -1 | S55: -1 | T55: -1 | U55: -1 | V55: -1 | W55: -1 | X55: -1 | Y55: -1 | Z55: -1 | AA55: -1 | AB55: -1 | AC55: -1 | AD55: -1 | AE55: -1 | AF55: -1 | AG55: -1 | AH55: -1 | AI55: -1 | AJ55: -1 | AK55: -1 | AL55: -1 | AM55: -1 | AN55: -1 | AO55: -1 | AP55: -1 | AQ55: -1
C56: Platzhalter 10 | D56: -37 | G56: -1 | H56: -1 | I56: -1 | J56: -1 | K56: -1 | L56: -1 | M56: -1 | N56: -1 | O56: -1 | P56: -1 | Q56: -1 | R56: -1 | S56: -1 | T56: -1 | U56: -1 | V56: -1 | W56: -1 | X56: -1 | Y56: -1 | Z56: -1 | AA56: -1 | AB56: -1 | AC56: -1 | AD56: -1 | AE56: -1 | AF56: -1 | AG56: -1 | AH56: -1 | AI56: -1 | AJ56: -1 | AK56: -1 | AL56: -1 | AM56: -1 | AN56: -1 | AO56: -1 | AP56: -1 | AQ56: -1
C57: Platzhalter 11 | D57: =IF(SUM(G57:AQ57)<>0,SUM(G57:AQ57),"") -> -37 | G57: -1 | H57: -1 | I57: -1 | J57: -1 | K57: -1 | L57: -1 | M57: -1 | N57: -1 | O57: -1 | P57: -1 | Q57: -1 | R57: -1 | S57: -1 | T57: -1 | U57: -1 | V57: -1 | W57: -1 | X57: -1 | Y57: -1 | Z57: -1 | AA57: -1 | AB57: -1 | AC57: -1 | AD57: -1 | AE57: -1 | AF57: -1 | AG57: -1 | AH57: -1 | AI57: -1 | AJ57: -1 | AK57: -1 | AL57: -1 | AM57: -1 | AN57: -1 | AO57: -1 | AP57: -1 | AQ57: -1
C58: Sonstiges | D58: =IF(SUM(G58:AQ58)<>0,SUM(G58:AQ58),"") -> -37 | G58: -1 | H58: -1 | I58: -1 | J58: -1 | K58: -1 | L58: -1 | M58: -1 | N58: -1 | O58: -1 | P58: -1 | Q58: -1 | R58: -1 | S58: -1 | T58: -1 | U58: -1 | V58: -1 | W58: -1 | X58: -1 | Y58: -1 | Z58: -1 | AA58: -1 | AB58: -1 | AC58: -1 | AD58: -1 | AE58: -1 | AF58: -1 | AG58: -1 | AH58: -1 | AI58: -1 | AJ58: -1 | AK58: -1 | AL58: -1 | AM58: -1 | AN58: -1 | AO58: -1 | AP58: -1 | AQ58: -1
B60: Beruf | C60: Arbeitsbekleidung/Reinigung | D60: -37 | E60: =IF(SUM(D60:D66)<>0,SUM(D60:D67),"") -> -407 | F60: =IFERROR(E60/$E$240," ") -> 0.05069124424 | G60: -1 | H60: -1 | I60: -1 | J60: -1 | K60: -1 | L60: -1 | M60: -1 | N60: -1 | O60: -1 | P60: -1 | Q60: -1 | R60: -1 | S60: -1 | T60: -1 | U60: -1 | V60: -1 | W60: -1 | X60: -1 | Y60: -1 | Z60: -1 | AA60: -1 | AB60: -1 | AC60: -1 | AD60: -1 | AE60: -1 | AF60: -1 | AG60: -1 | AH60: -1 | AI60: -1 | AJ60: -1 | AK60: -1 | AL60: -1 | AM60: -1 | AN60: -1 | AO60: -1 | AP60: -1 | AQ60: -1
C61: Fachliteratur | D61: -37 | G61: -1 | H61: -1 | I61: -1 | J61: -1 | K61: -1 | L61: -1 | M61: -1 | N61: -1 | O61: -1 | P61: -1 | Q61: -1 | R61: -1 | S61: -1 | T61: -1 | U61: -1 | V61: -1 | W61: -1 | X61: -1 | Y61: -1 | Z61: -1 | AA61: -1 | AB61: -1 | AC61: -1 | AD61: -1 | AE61: -1 | AF61: -1 | AG61: -1 | AH61: -1 | AI61: -1 | AJ61: -1 | AK61: -1 | AL61: -1 | AM61: -1 | AN61: -1 | AO61: -1 | AP61: -1 | AQ61: -1
C62: Verpflegung Frühstück | D62: -74 | G62: =IF(G12="","",G12) -> -2 | H62: -2 | I62: -2 | J62: -2 | K62: -2 | L62: -2 | M62: -2 | N62: -2 | O62: -2 | P62: -2 | Q62: -2 | R62: -2 | S62: -2 | T62: -2 | U62: -2 | V62: -2 | W62: -2 | X62: -2 | Y62: -2 | Z62: -2 | AA62: -2 | AB62: -2 | AC62: -2 | AD62: -2 | AE62: -2 | AF62: -2 | AG62: -2 | AH62: -2 | AI62: -2 | AJ62: -2 | AK62: -2 | AL62: -2 | AM62: -2 | AN62: -2 | AO62: -2 | AP62: -2 | AQ62: -2
C63: Verpflegung Mittag | D63: -111 | G63: -3 | H63: -3 | I63: -3 | J63: -3 | K63: -3 | L63: -3 | M63: -3 | N63: -3 | O63: -3 | P63: -3 | Q63: -3 | R63: -3 | S63: -3 | T63: -3 | U63: -3 | V63: -3 | W63: -3 | X63: -3 | Y63: -3 | Z63: -3 | AA63: -3 | AB63: -3 | AC63: -3 | AD63: -3 | AE63: -3 | AF63: -3 | AG63: -3 | AH63: -3 | AI63: -3 | AJ63: -3 | AK63: -3 | AL63: -3 | AM63: -3 | AN63: -3 | AO63: -3 | AP63: -3 | AQ63: -3
C64: Platzhalter 12 | D64: -37 | G64: -1 | H64: -1 | I64: -1 | J64: -1 | K64: -1 | L64: -1 | M64: -1 | N64: -1 | O64: -1 | P64: -1 | Q64: -1 | R64: -1 | S64: -1 | T64: -1 | U64: -1 | V64: -1 | W64: -1 | X64: -1 | Y64: -1 | Z64: -1 | AA64: -1 | AB64: -1 | AC64: -1 | AD64: -1 | AE64: -1 | AF64: -1 | AG64: -1 | AH64: -1 | AI64: -1 | AJ64: -1 | AK64: -1 | AL64: -1 | AM64: -1 | AN64: -1 | AO64: -1 | AP64: -1 | AQ64: -1
C65: Platzhalter 13 | D65: -37 | G65: -1 | H65: -1 | I65: -1 | J65: -1 | K65: -1 | L65: -1 | M65: -1 | N65: -1 | O65: -1 | P65: -1 | Q65: -1 | R65: -1 | S65: -1 | T65: -1 | U65: -1 | V65: -1 | W65: -1 | X65: -1 | Y65: -1 | Z65: -1 | AA65: -1 | AB65: -1 | AC65: -1 | AD65: -1 | AE65: -1 | AF65: -1 | AG65: -1 | AH65: -1 | AI65: -1 | AJ65: -1 | AK65: -1 | AL65: -1 | AM65: -1 | AN65: -1 | AO65: -1 | AP65: -1 | AQ65: -1
C66: Platzhalter 14 | D66: =IF(SUM(G66:AQ66)<>0,SUM(G66:AQ66),"") -> -37 | G66: -1 | H66: -1 | I66: -1 | J66: -1 | K66: -1 | L66: -1 | M66: -1 | N66: -1 | O66: -1 | P66: -1 | Q66: -1 | R66: -1 | S66: -1 | T66: -1 | U66: -1 | V66: -1 | W66: -1 | X66: -1 | Y66: -1 | Z66: -1 | AA66: -1 | AB66: -1 | AC66: -1 | AD66: -1 | AE66: -1 | AF66: -1 | AG66: -1 | AH66: -1 | AI66: -1 | AJ66: -1 | AK66: -1 | AL66: -1 | AM66: -1 | AN66: -1 | AO66: -1 | AP66: -1 | AQ66: -1
C67: Sonstiges | D67: =IF(SUM(G67:AQ67)<>0,SUM(G67:AQ67),"") -> -37 | G67: -1 | H67: -1 | I67: -1 | J67: -1 | K67: -1 | L67: -1 | M67: -1 | N67: -1 | O67: -1 | P67: -1 | Q67: -1 | R67: -1 | S67: -1 | T67: -1 | U67: -1 | V67: -1 | W67: -1 | X67: -1 | Y67: -1 | Z67: -1 | AA67: -1 | AB67: -1 | AC67: -1 | AD67: -1 | AE67: -1 | AF67: -1 | AG67: -1 | AH67: -1 | AI67: -1 | AJ67: -1 | AK67: -1 | AL67: -1 | AM67: -1 | AN67: -1 | AO67: -1 | AP67: -1 | AQ67: -1
B69: Bildung | C69: Bücher/Materialien | D69: -37 | E69: =IF(SUM(D69:D75)<>0,SUM(D69:D76),"") -> -296 | F69: =IFERROR(E69/$E$240," ") -> 0.03686635945 | G69: -1 | H69: -1 | I69: -1 | J69: -1 | K69: -1 | L69: -1 | M69: -1 | N69: -1 | O69: -1 | P69: -1 | Q69: -1 | R69: -1 | S69: -1 | T69: -1 | U69: -1 | V69: -1 | W69: -1 | X69: -1 | Y69: -1 | Z69: -1 | AA69: -1 | AB69: -1 | AC69: -1 | AD69: -1 | AE69: -1 | AF69: -1 | AG69: -1 | AH69: -1 | AI69: -1 | AJ69: -1 | AK69: -1 | AL69: -1 | AM69: -1 | AN69: -1 | AO69: -1 | AP69: -1 | AQ69: -1
C70: Online-Kurse | D70: -37 | G70: -1 | H70: -1 | I70: -1 | J70: -1 | K70: -1 | L70: -1 | M70: -1 | N70: -1 | O70: -1 | P70: -1 | Q70: -1 | R70: -1 | S70: -1 | T70: -1 | U70: -1 | V70: -1 | W70: -1 | X70: -1 | Y70: -1 | Z70: -1 | AA70: -1 | AB70: -1 | AC70: -1 | AD70: -1 | AE70: -1 | AF70: -1 | AG70: -1 | AH70: -1 | AI70: -1 | AJ70: -1 | AK70: -1 | AL70: -1 | AM70: -1 | AN70: -1 | AO70: -1 | AP70: -1 | AQ70: -1
C71: Seminare/Workshops (VHS-Kurs, etc.) | D71: -37 | G71: -1 | H71: -1 | I71: -1 | J71: -1 | K71: -1 | L71: -1 | M71: -1 | N71: -1 | O71: -1 | P71: -1 | Q71: -1 | R71: -1 | S71: -1 | T71: -1 | U71: -1 | V71: -1 | W71: -1 | X71: -1 | Y71: -1 | Z71: -1 | AA71: -1 | AB71: -1 | AC71: -1 | AD71: -1 | AE71: -1 | AF71: -1 | AG71: -1 | AH71: -1 | AI71: -1 | AJ71: -1 | AK71: -1 | AL71: -1 | AM71: -1 | AN71: -1 | AO71: -1 | AP71: -1 | AQ71: -1
C72: Studiengebühren (Fernstudium, etc.) | D72: -37 | G72: -1 | H72: -1 | I72: -1 | J72: -1 | K72: -1 | L72: -1 | M72: -1 | N72: -1 | O72: -1 | P72: -1 | Q72: -1 | R72: -1 | S72: -1 | T72: -1 | U72: -1 | V72: -1 | W72: -1 | X72: -1 | Y72: -1 | Z72: -1 | AA72: -1 | AB72: -1 | AC72: -1 | AD72: -1 | AE72: -1 | AF72: -1 | AG72: -1 | AH72: -1 | AI72: -1 | AJ72: -1 | AK72: -1 | AL72: -1 | AM72: -1 | AN72: -1 | AO72: -1 | AP72: -1 | AQ72: -1
C73: Platzhalter 15 | D73: -37 | G73: -1 | H73: -1 | I73: -1 | J73: -1 | K73: -1 | L73: -1 | M73: -1 | N73: -1 | O73: -1 | P73: -1 | Q73: -1 | R73: -1 | S73: -1 | T73: -1 | U73: -1 | V73: -1 | W73: -1 | X73: -1 | Y73: -1 | Z73: -1 | AA73: -1 | AB73: -1 | AC73: -1 | AD73: -1 | AE73: -1 | AF73: -1 | AG73: -1 | AH73: -1 | AI73: -1 | AJ73: -1 | AK73: -1 | AL73: -1 | AM73: -1 | AN73: -1 | AO73: -1 | AP73: -1 | AQ73: -1
C74: Platzhalter 16 | D74: -37 | G74: -1 | H74: -1 | I74: -1 | J74: -1 | K74: -1 | L74: -1 | M74: -1 | N74: -1 | O74: -1 | P74: -1 | Q74: -1 | R74: -1 | S74: -1 | T74: -1 | U74: -1 | V74: -1 | W74: -1 | X74: -1 | Y74: -1 | Z74: -1 | AA74: -1 | AB74: -1 | AC74: -1 | AD74: -1 | AE74: -1 | AF74: -1 | AG74: -1 | AH74: -1 | AI74: -1 | AJ74: -1 | AK74: -1 | AL74: -1 | AM74: -1 | AN74: -1 | AO74: -1 | AP74: -1 | AQ74: -1
C75: Platzhalter 17 | D75: =IF(SUM(G75:AQ75)<>0,SUM(G75:AQ75),"") -> -37 | G75: -1 | H75: -1 | I75: -1 | J75: -1 | K75: -1 | L75: -1 | M75: -1 | N75: -1 | O75: -1 | P75: -1 | Q75: -1 | R75: -1 | S75: -1 | T75: -1 | U75: -1 | V75: -1 | W75: -1 | X75: -1 | Y75: -1 | Z75: -1 | AA75: -1 | AB75: -1 | AC75: -1 | AD75: -1 | AE75: -1 | AF75: -1 | AG75: -1 | AH75: -1 | AI75: -1 | AJ75: -1 | AK75: -1 | AL75: -1 | AM75: -1 | AN75: -1 | AO75: -1 | AP75: -1 | AQ75: -1
C76: Sonstiges | D76: =IF(SUM(G76:AQ76)<>0,SUM(G76:AQ76),"") -> -37 | G76: -1 | H76: -1 | I76: -1 | J76: -1 | K76: -1 | L76: -1 | M76: -1 | N76: -1 | O76: -1 | P76: -1 | Q76: -1 | R76: -1 | S76: -1 | T76: -1 | U76: -1 | V76: -1 | W76: -1 | X76: -1 | Y76: -1 | Z76: -1 | AA76: -1 | AB76: -1 | AC76: -1 | AD76: -1 | AE76: -1 | AF76: -1 | AG76: -1 | AH76: -1 | AI76: -1 | AJ76: -1 | AK76: -1 | AL76: -1 | AM76: -1 | AN76: -1 | AO76: -1 | AP76: -1 | AQ76: -1
B78: Computer Elektroartikel | C78: Computer | D78: -37 | E78: =IF(SUM(D78:D84)<>0,SUM(D78:D85),"") -> -296 | F78: =IFERROR(E78/$E$240," ") -> 0.03686635945 | G78: -1 | H78: -1 | I78: -1 | J78: -1 | K78: -1 | L78: -1 | M78: -1 | N78: -1 | O78: -1 | P78: -1 | Q78: -1 | R78: -1 | S78: -1 | T78: -1 | U78: -1 | V78: -1 | W78: -1 | X78: -1 | Y78: -1 | Z78: -1 | AA78: -1 | AB78: -1 | AC78: -1 | AD78: -1 | AE78: -1 | AF78: -1 | AG78: -1 | AH78: -1 | AI78: -1 | AJ78: -1 | AK78: -1 | AL78: -1 | AM78: -1 | AN78: -1 | AO78: -1 | AP78: -1 | AQ78: -1
C79: Heimelektronik (Batterien, etc.) | D79: -37 | G79: -1 | H79: -1 | I79: -1 | J79: -1 | K79: -1 | L79: -1 | M79: -1 | N79: -1 | O79: -1 | P79: -1 | Q79: -1 | R79: -1 | S79: -1 | T79: -1 | U79: -1 | V79: -1 | W79: -1 | X79: -1 | Y79: -1 | Z79: -1 | AA79: -1 | AB79: -1 | AC79: -1 | AD79: -1 | AE79: -1 | AF79: -1 | AG79: -1 | AH79: -1 | AI79: -1 | AJ79: -1 | AK79: -1 | AL79: -1 | AM79: -1 | AN79: -1 | AO79: -1 | AP79: -1 | AQ79: -1
C80: Smartphone | D80: -37 | G80: -1 | H80: -1 | I80: -1 | J80: -1 | K80: -1 | L80: -1 | M80: -1 | N80: -1 | O80: -1 | P80: -1 | Q80: -1 | R80: -1 | S80: -1 | T80: -1 | U80: -1 | V80: -1 | W80: -1 | X80: -1 | Y80: -1 | Z80: -1 | AA80: -1 | AB80: -1 | AC80: -1 | AD80: -1 | AE80: -1 | AF80: -1 | AG80: -1 | AH80: -1 | AI80: -1 | AJ80: -1 | AK80: -1 | AL80: -1 | AM80: -1 | AN80: -1 | AO80: -1 | AP80: -1 | AQ80: -1
C81: Unterhaltungselektronik | D81: -37 | G81: -1 | H81: -1 | I81: -1 | J81: -1 | K81: -1 | L81: -1 | M81: -1 | N81: -1 | O81: -1 | P81: -1 | Q81: -1 | R81: -1 | S81: -1 | T81: -1 | U81: -1 | V81: -1 | W81: -1 | X81: -1 | Y81: -1 | Z81: -1 | AA81: -1 | AB81: -1 | AC81: -1 | AD81: -1 | AE81: -1 | AF81: -1 | AG81: -1 | AH81: -1 | AI81: -1 | AJ81: -1 | AK81: -1 | AL81: -1 | AM81: -1 | AN81: -1 | AO81: -1 | AP81: -1 | AQ81: -1
C82: Platzhalter 18 | D82: -37 | G82: -1 | H82: -1 | I82: -1 | J82: -1 | K82: -1 | L82: -1 | M82: -1 | N82: -1 | O82: -1 | P82: -1 | Q82: -1 | R82: -1 | S82: -1 | T82: -1 | U82: -1 | V82: -1 | W82: -1 | X82: -1 | Y82: -1 | Z82: -1 | AA82: -1 | AB82: -1 | AC82: -1 | AD82: -1 | AE82: -1 | AF82: -1 | AG82: -1 | AH82: -1 | AI82: -1 | AJ82: -1 | AK82: -1 | AL82: -1 | AM82: -1 | AN82: -1 | AO82: -1 | AP82: -1 | AQ82: -1
C83: Platzhalter 19 | D83: -37 | G83: -1 | H83: -1 | I83: -1 | J83: -1 | K83: -1 | L83: -1 | M83: -1 | N83: -1 | O83: -1 | P83: -1 | Q83: -1 | R83: -1 | S83: -1 | T83: -1 | U83: -1 | V83: -1 | W83: -1 | X83: -1 | Y83: -1 | Z83: -1 | AA83: -1 | AB83: -1 | AC83: -1 | AD83: -1 | AE83: -1 | AF83: -1 | AG83: -1 | AH83: -1 | AI83: -1 | AJ83: -1 | AK83: -1 | AL83: -1 | AM83: -1 | AN83: -1 | AO83: -1 | AP83: -1 | AQ83: -1
C84: Platzhalter 20 | D84: -37 | G84: -1 | H84: -1 | I84: -1 | J84: -1 | K84: -1 | L84: -1 | M84: -1 | N84: -1 | O84: -1 | P84: -1 | Q84: -1 | R84: -1 | S84: -1 | T84: -1 | U84: -1 | V84: -1 | W84: -1 | X84: -1 | Y84: -1 | Z84: -1 | AA84: -1 | AB84: -1 | AC84: -1 | AD84: -1 | AE84: -1 | AF84: -1 | AG84: -1 | AH84: -1 | AI84: -1 | AJ84: -1 | AK84: -1 | AL84: -1 | AM84: -1 | AN84: -1 | AO84: -1 | AP84: -1 | AQ84: -1
C85: Sonstiges | D85: -37 | G85: -1 | H85: -1 | I85: -1 | J85: -1 | K85: -1 | L85: -1 | M85: -1 | N85: -1 | O85: -1 | P85: -1 | Q85: -1 | R85: -1 | S85: -1 | T85: -1 | U85: -1 | V85: -1 | W85: -1 | X85: -1 | Y85: -1 | Z85: -1 | AA85: -1 | AB85: -1 | AC85: -1 | AD85: -1 | AE85: -1 | AF85: -1 | AG85: -1 | AH85: -1 | AI85: -1 | AJ85: -1 | AK85: -1 | AL85: -1 | AM85: -1 | AN85: -1 | AO85: -1 | AP85: -1 | AQ85: -1
A87: Eingabe | B87: -- Freizeit -- Ausgehen/Sport/ Vereine | C87: Bar/Café/Restaurant | D87: -74 | E87: =IF(SUM(D87:D99)<>0,SUM(D87:D100),"") -> -740 | F87: =IFERROR(E87/$E$240," ") -> 0.09216589862 | G87: =IF(G16="","",G16) -> -2 | H87: -2 | I87: -2 | J87: -2 | K87: -2 | L87: -2 | M87: -2 | N87: -2 | O87: -2 | P87: -2 | Q87: -2 | R87: -2 | S87: -2 | T87: -2 | U87: -2 | V87: -2 | W87: -2 | X87: -2 | Y87: -2 | Z87: -2 | AA87: -2 | AB87: -2 | AC87: -2 | AD87: -2 | AE87: -2 | AF87: -2 | AG87: -2 | AH87: -2 | AI87: -2 | AJ87: -2 | AK87: -2 | AL87: -2 | AM87: -2 | AN87: -2 | AO87: -2 | AP87: -2 | AQ87: -2
C88: Disco/Tanzveranstaltungen | D88: -37 | G88: -1 | H88: -1 | I88: -1 | J88: -1 | K88: -1 | L88: -1 | M88: -1 | N88: -1 | O88: -1 | P88: -1 | Q88: -1 | R88: -1 | S88: -1 | T88: -1 | U88: -1 | V88: -1 | W88: -1 | X88: -1 | Y88: -1 | Z88: -1 | AA88: -1 | AB88: -1 | AC88: -1 | AD88: -1 | AE88: -1 | AF88: -1 | AG88: -1 | AH88: -1 | AI88: -1 | AJ88: -1 | AK88: -1 | AL88: -1 | AM88: -1 | AN88: -1 | AO88: -1 | AP88: -1 | AQ88: -1
C89: Garten/Pflanzen | D89: -37 | G89: -1 | H89: -1 | I89: -1 | J89: -1 | K89: -1 | L89: -1 | M89: -1 | N89: -1 | O89: -1 | P89: -1 | Q89: -1 | R89: -1 | S89: -1 | T89: -1 | U89: -1 | V89: -1 | W89: -1 | X89: -1 | Y89: -1 | Z89: -1 | AA89: -1 | AB89: -1 | AC89: -1 | AD89: -1 | AE89: -1 | AF89: -1 | AG89: -1 | AH89: -1 | AI89: -1 | AJ89: -1 | AK89: -1 | AL89: -1 | AM89: -1 | AN89: -1 | AO89: -1 | AP89: -1 | AQ89: -1
C90: Geschenke | D90: -111 | G90: =IF(G17="","",G17) -> -3 | H90: -3 | I90: -3 | J90: -3 | K90: -3 | L90: -3 | M90: -3 | N90: -3 | O90: -3 | P90: -3 | Q90: -3 | R90: -3 | S90: -3 | T90: -3 | U90: -3 | V90: -3 | W90: -3 | X90: -3 | Y90: -3 | Z90: -3 | AA90: -3 | AB90: -3 | AC90: -3 | AD90: -3 | AE90: -3 | AF90: -3 | AG90: -3 | AH90: -3 | AI90: -3 | AJ90: -3 | AK90: -3 | AL90: -3 | AM90: -3 | AN90: -3 | AO90: -3 | AP90: -3 | AQ90: -3
C91: Getränke/Eis/Snacks | D91: -148 | G91: -4 | H91: -4 | I91: -4 | J91: -4 | K91: -4 | L91: -4 | M91: -4 | N91: -4 | O91: -4 | P91: -4 | Q91: -4 | R91: -4 | S91: -4 | T91: -4 | U91: -4 | V91: -4 | W91: -4 | X91: -4 | Y91: -4 | Z91: -4 | AA91: -4 | AB91: -4 | AC91: -4 | AD91: -4 | AE91: -4 | AF91: -4 | AG91: -4 | AH91: -4 | AI91: -4 | AJ91: -4 | AK91: -4 | AL91: -4 | AM91: -4 | AN91: -4 | AO91: -4 | AP91: -4 | AQ91: -4
C92: Glücksspiel (Lotto, Totto, etc.) | D92: =IF(SUM(G92:AQ92)<>0,SUM(G92:AQ92),"") -> -37 | G92: -1 | H92: -1 | I92: -1 | J92: -1 | K92: -1 | L92: -1 | M92: -1 | N92: -1 | O92: -1 | P92: -1 | Q92: -1 | R92: -1 | S92: -1 | T92: -1 | U92: -1 | V92: -1 | W92: -1 | X92: -1 | Y92: -1 | Z92: -1 | AA92: -1 | AB92: -1 | AC92: -1 | AD92: -1 | AE92: -1 | AF92: -1 | AG92: -1 | AH92: -1 | AI92: -1 | AJ92: -1 | AK92: -1 | AL92: -1 | AM92: -1 | AN92: -1 | AO92: -1 | AP92: -1 | AQ92: -1
C93: Kino/Konzert/Museum/Theater/Volksfest | D93: -37 | G93: -1 | H93: -1 | I93: -1 | J93: -1 | K93: -1 | L93: -1 | M93: -1 | N93: -1 | O93: -1 | P93: -1 | Q93: -1 | R93: -1 | S93: -1 | T93: -1 | U93: -1 | V93: -1 | W93: -1 | X93: -1 | Y93: -1 | Z93: -1 | AA93: -1 | AB93: -1 | AC93: -1 | AD93: -1 | AE93: -1 | AF93: -1 | AG93: -1 | AH93: -1 | AI93: -1 | AJ93: -1 | AK93: -1 | AL93: -1 | AM93: -1 | AN93: -1 | AO93: -1 | AP93: -1 | AQ93: -1
C94: Sportartikel | D94: -37 | G94: -1 | H94: -1 | I94: -1 | J94: -1 | K94: -1 | L94: -1 | M94: -1 | N94: -1 | O94: -1 | P94: -1 | Q94: -1 | R94: -1 | S94: -1 | T94: -1 | U94: -1 | V94: -1 | W94: -1 | X94: -1 | Y94: -1 | Z94: -1 | AA94: -1 | AB94: -1 | AC94: -1 | AD94: -1 | AE94: -1 | AF94: -1 | AG94: -1 | AH94: -1 | AI94: -1 | AJ94: -1 | AK94: -1 | AL94: -1 | AM94: -1 | AN94: -1 | AO94: -1 | AP94: -1 | AQ94: -1
C95: Vereine (Bekleidung) | D95: -37 | G95: -1 | H95: -1 | I95: -1 | J95: -1 | K95: -1 | L95: -1 | M95: -1 | N95: -1 | O95: -1 | P95: -1 | Q95: -1 | R95: -1 | S95: -1 | T95: -1 | U95: -1 | V95: -1 | W95: -1 | X95: -1 | Y95: -1 | Z95: -1 | AA95: -1 | AB95: -1 | AC95: -1 | AD95: -1 | AE95: -1 | AF95: -1 | AG95: -1 | AH95: -1 | AI95: -1 | AJ95: -1 | AK95: -1 | AL95: -1 | AM95: -1 | AN95: -1 | AO95: -1 | AP95: -1 | AQ95: -1
C96: Vereine (Geräte, etc.) | D96: -37 | G96: -1 | H96: -1 | I96: -1 | J96: -1 | K96: -1 | L96: -1 | M96: -1 | N96: -1 | O96: -1 | P96: -1 | Q96: -1 | R96: -1 | S96: -1 | T96: -1 | U96: -1 | V96: -1 | W96: -1 | X96: -1 | Y96: -1 | Z96: -1 | AA96: -1 | AB96: -1 | AC96: -1 | AD96: -1 | AE96: -1 | AF96: -1 | AG96: -1 | AH96: -1 | AI96: -1 | AJ96: -1 | AK96: -1 | AL96: -1 | AM96: -1 | AN96: -1 | AO96: -1 | AP96: -1 | AQ96: -1
C97: Platzhalter 21 | D97: -37 | G97: -1 | H97: -1 | I97: -1 | J97: -1 | K97: -1 | L97: -1 | M97: -1 | N97: -1 | O97: -1 | P97: -1 | Q97: -1 | R97: -1 | S97: -1 | T97: -1 | U97: -1 | V97: -1 | W97: -1 | X97: -1 | Y97: -1 | Z97: -1 | AA97: -1 | AB97: -1 | AC97: -1 | AD97: -1 | AE97: -1 | AF97: -1 | AG97: -1 | AH97: -1 | AI97: -1 | AJ97: -1 | AK97: -1 | AL97: -1 | AM97: -1 | AN97: -1 | AO97: -1 | AP97: -1 | AQ97: -1
C98: Platzhalter 22 | D98: -37 | G98: -1 | H98: -1 | I98: -1 | J98: -1 | K98: -1 | L98: -1 | M98: -1 | N98: -1 | O98: -1 | P98: -1 | Q98: -1 | R98: -1 | S98: -1 | T98: -1 | U98: -1 | V98: -1 | W98: -1 | X98: -1 | Y98: -1 | Z98: -1 | AA98: -1 | AB98: -1 | AC98: -1 | AD98: -1 | AE98: -1 | AF98: -1 | AG98: -1 | AH98: -1 | AI98: -1 | AJ98: -1 | AK98: -1 | AL98: -1 | AM98: -1 | AN98: -1 | AO98: -1 | AP98: -1 | AQ98: -1
C99: Platzhalter 23 | D99: =IF(SUM(G99:AQ99)<>0,SUM(G99:AQ99),"") -> -37 | G99: -1 | H99: -1 | I99: -1 | J99: -1 | K99: -1 | L99: -1 | M99: -1 | N99: -1 | O99: -1 | P99: -1 | Q99: -1 | R99: -1 | S99: -1 | T99: -1 | U99: -1 | V99: -1 | W99: -1 | X99: -1 | Y99: -1 | Z99: -1 | AA99: -1 | AB99: -1 | AC99: -1 | AD99: -1 | AE99: -1 | AF99: -1 | AG99: -1 | AH99: -1 | AI99: -1 | AJ99: -1 | AK99: -1 | AL99: -1 | AM99: -1 | AN99: -1 | AO99: -1 | AP99: -1 | AQ99: -1
C100: Sonstiges | D100: =IF(SUM(G100:AQ100)<>0,SUM(G100:AQ100),"") -> -37 | G100: -1 | H100: -1 | I100: -1 | J100: -1 | K100: -1 | L100: -1 | M100: -1 | N100: -1 | O100: -1 | P100: -1 | Q100: -1 | R100: -1 | S100: -1 | T100: -1 | U100: -1 | V100: -1 | W100: -1 | X100: -1 | Y100: -1 | Z100: -1 | AA100: -1 | AB100: -1 | AC100: -1 | AD100: -1 | AE100: -1 | AF100: -1 | AG100: -1 | AH100: -1 | AI100: -1 | AJ100: -1 | AK100: -1 | AL100: -1 | AM100: -1 | AN100: -1 | AO100: -1 | AP100: -1 | AQ100: -1
B102: -- Freizeit -- Bücher/Medien/ Spiele | C102: Bücher/Heftromane/Zeitschriften | D102: -74 | E102: =IF(SUM(D102:D108)<>0,SUM(D102:D109),"") -> -407 | F102: =IFERROR(E102/$E$240," ") -> 0.05069124424 | G102: =IF(G21="","",G21) -> -2 | H102: -2 | I102: -2 | J102: -2 | K102: -2 | L102: -2 | M102: -2 | N102: -2 | O102: -2 | P102: -2 | Q102: -2 | R102: -2 | S102: -2 | T102: -2 | U102: -2 | V102: -2 | W102: -2 | X102: -2 | Y102: -2 | Z102: -2 | AA102: -2 | AB102: -2 | AC102: -2 | AD102: -2 | AE102: -2 | AF102: -2 | AG102: -2 | AH102: -2 | AI102: -2 | AJ102: -2 | AK102: -2 | AL102: -2 | AM102: -2 | AN102: -2 | AO102: -2 | AP102: -2 | AQ102: -2
C103: CD/DVD/Blue-Ray Disk | D103: -37 | G103: -1 | H103: -1 | I103: -1 | J103: -1 | K103: -1 | L103: -1 | M103: -1 | N103: -1 | O103: -1 | P103: -1 | Q103: -1 | R103: -1 | S103: -1 | T103: -1 | U103: -1 | V103: -1 | W103: -1 | X103: -1 | Y103: -1 | Z103: -1 | AA103: -1 | AB103: -1 | AC103: -1 | AD103: -1 | AE103: -1 | AF103: -1 | AG103: -1 | AH103: -1 | AI103: -1 | AJ103: -1 | AK103: -1 | AL103: -1 | AM103: -1 | AN103: -1 | AO103: -1 | AP103: -1 | AQ103: -1
C104: PC-Software/PC-Spiele/In Game Kaufe | D104: -111 | G104: =IF(G22="","",G22) -> -3 | H104: -3 | I104: -3 | J104: -3 | K104: -3 | L104: -3 | M104: -3 | N104: -3 | O104: -3 | P104: -3 | Q104: -3 | R104: -3 | S104: -3 | T104: -3 | U104: -3 | V104: -3 | W104: -3 | X104: -3 | Y104: -3 | Z104: -3 | AA104: -3 | AB104: -3 | AC104: -3 | AD104: -3 | AE104: -3 | AF104: -3 | AG104: -3 | AH104: -3 | AI104: -3 | AJ104: -3 | AK104: -3 | AL104: -3 | AM104: -3 | AN104: -3 | AO104: -3 | AP104: -3 | AQ104: -3
C105: Gesellschaftsspiele | D105: -37 | G105: -1 | H105: -1 | I105: -1 | J105: -1 | K105: -1 | L105: -1 | M105: -1 | N105: -1 | O105: -1 | P105: -1 | Q105: -1 | R105: -1 | S105: -1 | T105: -1 | U105: -1 | V105: -1 | W105: -1 | X105: -1 | Y105: -1 | Z105: -1 | AA105: -1 | AB105: -1 | AC105: -1 | AD105: -1 | AE105: -1 | AF105: -1 | AG105: -1 | AH105: -1 | AI105: -1 | AJ105: -1 | AK105: -1 | AL105: -1 | AM105: -1 | AN105: -1 | AO105: -1 | AP105: -1 | AQ105: -1
C106: Platzhalter 24 | D106: -37 | G106: -1 | H106: -1 | I106: -1 | J106: -1 | K106: -1 | L106: -1 | M106: -1 | N106: -1 | O106: -1 | P106: -1 | Q106: -1 | R106: -1 | S106: -1 | T106: -1 | U106: -1 | V106: -1 | W106: -1 | X106: -1 | Y106: -1 | Z106: -1 | AA106: -1 | AB106: -1 | AC106: -1 | AD106: -1 | AE106: -1 | AF106: -1 | AG106: -1 | AH106: -1 | AI106: -1 | AJ106: -1 | AK106: -1 | AL106: -1 | AM106: -1 | AN106: -1 | AO106: -1 | AP106: -1 | AQ106: -1
C107: Platzhalter 25 | D107: -37 | G107: -1 | H107: -1 | I107: -1 | J107: -1 | K107: -1 | L107: -1 | M107: -1 | N107: -1 | O107: -1 | P107: -1 | Q107: -1 | R107: -1 | S107: -1 | T107: -1 | U107: -1 | V107: -1 | W107: -1 | X107: -1 | Y107: -1 | Z107: -1 | AA107: -1 | AB107: -1 | AC107: -1 | AD107: -1 | AE107: -1 | AF107: -1 | AG107: -1 | AH107: -1 | AI107: -1 | AJ107: -1 | AK107: -1 | AL107: -1 | AM107: -1 | AN107: -1 | AO107: -1 | AP107: -1 | AQ107: -1
C108: Platzhalter 26 | D108: =IF(SUM(G108:AQ108)<>0,SUM(G108:AQ108),"") -> -37 | G108: -1 | H108: -1 | I108: -1 | J108: -1 | K108: -1 | L108: -1 | M108: -1 | N108: -1 | O108: -1 | P108: -1 | Q108: -1 | R108: -1 | S108: -1 | T108: -1 | U108: -1 | V108: -1 | W108: -1 | X108: -1 | Y108: -1 | Z108: -1 | AA108: -1 | AB108: -1 | AC108: -1 | AD108: -1 | AE108: -1 | AF108: -1 | AG108: -1 | AH108: -1 | AI108: -1 | AJ108: -1 | AK108: -1 | AL108: -1 | AM108: -1 | AN108: -1 | AO108: -1 | AP108: -1 | AQ108: -1
C109: Sonstiges | D109: =IF(SUM(G109:AQ109)<>0,SUM(G109:AQ109),"") -> -37 | G109: -1 | H109: -1 | I109: -1 | J109: -1 | K109: -1 | L109: -1 | M109: -1 | N109: -1 | O109: -1 | P109: -1 | Q109: -1 | R109: -1 | S109: -1 | T109: -1 | U109: -1 | V109: -1 | W109: -1 | X109: -1 | Y109: -1 | Z109: -1 | AA109: -1 | AB109: -1 | AC109: -1 | AD109: -1 | AE109: -1 | AF109: -1 | AG109: -1 | AH109: -1 | AI109: -1 | AJ109: -1 | AK109: -1 | AL109: -1 | AM109: -1 | AN109: -1 | AO109: -1 | AP109: -1 | AQ109: -1
B111: Gesundheit | C111: Ambulante Behandlungen (Ärzte, Massagen, Hilfsmittel) | D111: -37 | E111: =IF(SUM(D111:D119)<>0,SUM(D111:D120),"") -> -481 | F111: =IFERROR(E111/$E$240," ") -> 0.0599078341 | G111: -1 | H111: -1 | I111: -1 | J111: -1 | K111: -1 | L111: -1 | M111: -1 | N111: -1 | O111: -1 | P111: -1 | Q111: -1 | R111: -1 | S111: -1 | T111: -1 | U111: -1 | V111: -1 | W111: -1 | X111: -1 | Y111: -1 | Z111: -1 | AA111: -1 | AB111: -1 | AC111: -1 | AD111: -1 | AE111: -1 | AF111: -1 | AG111: -1 | AH111: -1 | AI111: -1 | AJ111: -1 | AK111: -1 | AL111: -1 | AM111: -1 | AN111: -1 | AO111: -1 | AP111: -1 | AQ111: -1
C112: Arzneimittel/Verbandsmittel (Nicht Rezeptpflichtig) | D112: -74 | G112: =IF(G25="","",G25) -> -2 | H112: -2 | I112: -2 | J112: -2 | K112: -2 | L112: -2 | M112: -2 | N112: -2 | O112: -2 | P112: -2 | Q112: -2 | R112: -2 | S112: -2 | T112: -2 | U112: -2 | V112: -2 | W112: -2 | X112: -2 | Y112: -2 | Z112: -2 | AA112: -2 | AB112: -2 | AC112: -2 | AD112: -2 | AE112: -2 | AF112: -2 | AG112: -2 | AH112: -2 | AI112: -2 | AJ112: -2 | AK112: -2 | AL112: -2 | AM112: -2 | AN112: -2 | AO112: -2 | AP112: -2 | AQ112: -2
C113: Arzneimittel/Verbandsmittel (Rezeptpflichtig) | D113: -111 | G113: -3 | H113: -3 | I113: -3 | J113: -3 | K113: -3 | L113: -3 | M113: -3 | N113: -3 | O113: -3 | P113: -3 | Q113: -3 | R113: -3 | S113: -3 | T113: -3 | U113: -3 | V113: -3 | W113: -3 | X113: -3 | Y113: -3 | Z113: -3 | AA113: -3 | AB113: -3 | AC113: -3 | AD113: -3 | AE113: -3 | AF113: -3 | AG113: -3 | AH113: -3 | AI113: -3 | AJ113: -3 | AK113: -3 | AL113: -3 | AM113: -3 | AN113: -3 | AO113: -3 | AP113: -3 | AQ113: -3
C114: Sonstige Behandlungen (Kuren, Reha, Tagegelder) | D114: -37 | G114: -1 | H114: -1 | I114: -1 | J114: -1 | K114: -1 | L114: -1 | M114: -1 | N114: -1 | O114: -1 | P114: -1 | Q114: -1 | R114: -1 | S114: -1 | T114: -1 | U114: -1 | V114: -1 | W114: -1 | X114: -1 | Y114: -1 | Z114: -1 | AA114: -1 | AB114: -1 | AC114: -1 | AD114: -1 | AE114: -1 | AF114: -1 | AG114: -1 | AH114: -1 | AI114: -1 | AJ114: -1 | AK114: -1 | AL114: -1 | AM114: -1 | AN114: -1 | AO114: -1 | AP114: -1 | AQ114: -1
C115: Stationäre Behandlung inkl. Arzt und Transportkosten | D115: -37 | G115: -1 | H115: -1 | I115: -1 | J115: -1 | K115: -1 | L115: -1 | M115: -1 | N115: -1 | O115: -1 | P115: -1 | Q115: -1 | R115: -1 | S115: -1 | T115: -1 | U115: -1 | V115: -1 | W115: -1 | X115: -1 | Y115: -1 | Z115: -1 | AA115: -1 | AB115: -1 | AC115: -1 | AD115: -1 | AE115: -1 | AF115: -1 | AG115: -1 | AH115: -1 | AI115: -1 | AJ115: -1 | AK115: -1 | AL115: -1 | AM115: -1 | AN115: -1 | AO115: -1 | AP115: -1 | AQ115: -1
C116: Zahnärztliche Behandlungen inkl. Kieferorthopädie) | D116: -37 | G116: -1 | H116: -1 | I116: -1 | J116: -1 | K116: -1 | L116: -1 | M116: -1 | N116: -1 | O116: -1 | P116: -1 | Q116: -1 | R116: -1 | S116: -1 | T116: -1 | U116: -1 | V116: -1 | W116: -1 | X116: -1 | Y116: -1 | Z116: -1 | AA116: -1 | AB116: -1 | AC116: -1 | AD116: -1 | AE116: -1 | AF116: -1 | AG116: -1 | AH116: -1 | AI116: -1 | AJ116: -1 | AK116: -1 | AL116: -1 | AM116: -1 | AN116: -1 | AO116: -1 | AP116: -1 | AQ116: -1
C117: Platzhalter 27 | D117: -37 | G117: -1 | H117: -1 | I117: -1 | J117: -1 | K117: -1 | L117: -1 | M117: -1 | N117: -1 | O117: -1 | P117: -1 | Q117: -1 | R117: -1 | S117: -1 | T117: -1 | U117: -1 | V117: -1 | W117: -1 | X117: -1 | Y117: -1 | Z117: -1 | AA117: -1 | AB117: -1 | AC117: -1 | AD117: -1 | AE117: -1 | AF117: -1 | AG117: -1 | AH117: -1 | AI117: -1 | AJ117: -1 | AK117: -1 | AL117: -1 | AM117: -1 | AN117: -1 | AO117: -1 | AP117: -1 | AQ117: -1
C118: Platzhalter 28 | D118: -37 | G118: -1 | H118: -1 | I118: -1 | J118: -1 | K118: -1 | L118: -1 | M118: -1 | N118: -1 | O118: -1 | P118: -1 | Q118: -1 | R118: -1 | S118: -1 | T118: -1 | U118: -1 | V118: -1 | W118: -1 | X118: -1 | Y118: -1 | Z118: -1 | AA118: -1 | AB118: -1 | AC118: -1 | AD118: -1 | AE118: -1 | AF118: -1 | AG118: -1 | AH118: -1 | AI118: -1 | AJ118: -1 | AK118: -1 | AL118: -1 | AM118: -1 | AN118: -1 | AO118: -1 | AP118: -1 | AQ118: -1
C119: Platzhalter 29 | D119: =IF(SUM(G119:AQ119)<>0,SUM(G119:AQ119),"") -> -37 | G119: -1 | H119: -1 | I119: -1 | J119: -1 | K119: -1 | L119: -1 | M119: -1 | N119: -1 | O119: -1 | P119: -1 | Q119: -1 | R119: -1 | S119: -1 | T119: -1 | U119: -1 | V119: -1 | W119: -1 | X119: -1 | Y119: -1 | Z119: -1 | AA119: -1 | AB119: -1 | AC119: -1 | AD119: -1 | AE119: -1 | AF119: -1 | AG119: -1 | AH119: -1 | AI119: -1 | AJ119: -1 | AK119: -1 | AL119: -1 | AM119: -1 | AN119: -1 | AO119: -1 | AP119: -1 | AQ119: -1
C120: Sonstiges | D120: =IF(SUM(G120:AQ120)<>0,SUM(G120:AQ120),"") -> -37 | G120: -1 | H120: -1 | I120: -1 | J120: -1 | K120: -1 | L120: -1 | M120: -1 | N120: -1 | O120: -1 | P120: -1 | Q120: -1 | R120: -1 | S120: -1 | T120: -1 | U120: -1 | V120: -1 | W120: -1 | X120: -1 | Y120: -1 | Z120: -1 | AA120: -1 | AB120: -1 | AC120: -1 | AD120: -1 | AE120: -1 | AF120: -1 | AG120: -1 | AH120: -1 | AI120: -1 | AJ120: -1 | AK120: -1 | AL120: -1 | AM120: -1 | AN120: -1 | AO120: -1 | AP120: -1 | AQ120: -1
B122: -- Hobby -- Garten | C122: Arbeitsbekleidung | D122: -37 | E122: =IF(SUM(D122:D128)<>0,SUM(D122:D129),"") -> -296 | F122: =IFERROR(E122/$E$240," ") -> 0.03686635945 | G122: -1 | H122: -1 | I122: -1 | J122: -1 | K122: -1 | L122: -1 | M122: -1 | N122: -1 | O122: -1 | P122: -1 | Q122: -1 | R122: -1 | S122: -1 | T122: -1 | U122: -1 | V122: -1 | W122: -1 | X122: -1 | Y122: -1 | Z122: -1 | AA122: -1 | AB122: -1 | AC122: -1 | AD122: -1 | AE122: -1 | AF122: -1 | AG122: -1 | AH122: -1 | AI122: -1 | AJ122: -1 | AK122: -1 | AL122: -1 | AM122: -1 | AN122: -1 | AO122: -1 | AP122: -1 | AQ122: -1
C123: Dünger/Pflanzenschutzmittel | D123: -37 | G123: -1 | H123: -1 | I123: -1 | J123: -1 | K123: -1 | L123: -1 | M123: -1 | N123: -1 | O123: -1 | P123: -1 | Q123: -1 | R123: -1 | S123: -1 | T123: -1 | U123: -1 | V123: -1 | W123: -1 | X123: -1 | Y123: -1 | Z123: -1 | AA123: -1 | AB123: -1 | AC123: -1 | AD123: -1 | AE123: -1 | AF123: -1 | AG123: -1 | AH123: -1 | AI123: -1 | AJ123: -1 | AK123: -1 | AL123: -1 | AM123: -1 | AN123: -1 | AO123: -1 | AP123: -1 | AQ123: -1
C124: Geräte | D124: -37 | G124: -1 | H124: -1 | I124: -1 | J124: -1 | K124: -1 | L124: -1 | M124: -1 | N124: -1 | O124: -1 | P124: -1 | Q124: -1 | R124: -1 | S124: -1 | T124: -1 | U124: -1 | V124: -1 | W124: -1 | X124: -1 | Y124: -1 | Z124: -1 | AA124: -1 | AB124: -1 | AC124: -1 | AD124: -1 | AE124: -1 | AF124: -1 | AG124: -1 | AH124: -1 | AI124: -1 | AJ124: -1 | AK124: -1 | AL124: -1 | AM124: -1 | AN124: -1 | AO124: -1 | AP124: -1 | AQ124: -1
A125: Eingabe | C125: Pflanzen/Samen | D125: -37 | G125: -1 | H125: -1 | I125: -1 | J125: -1 | K125: -1 | L125: -1 | M125: -1 | N125: -1 | O125: -1 | P125: -1 | Q125: -1 | R125: -1 | S125: -1 | T125: -1 | U125: -1 | V125: -1 | W125: -1 | X125: -1 | Y125: -1 | Z125: -1 | AA125: -1 | AB125: -1 | AC125: -1 | AD125: -1 | AE125: -1 | AF125: -1 | AG125: -1 | AH125: -1 | AI125: -1 | AJ125: -1 | AK125: -1 | AL125: -1 | AM125: -1 | AN125: -1 | AO125: -1 | AP125: -1 | AQ125: -1
C126: Platzhalter 30 | D126: -37 | G126: -1 | H126: -1 | I126: -1 | J126: -1 | K126: -1 | L126: -1 | M126: -1 | N126: -1 | O126: -1 | P126: -1 | Q126: -1 | R126: -1 | S126: -1 | T126: -1 | U126: -1 | V126: -1 | W126: -1 | X126: -1 | Y126: -1 | Z126: -1 | AA126: -1 | AB126: -1 | AC126: -1 | AD126: -1 | AE126: -1 | AF126: -1 | AG126: -1 | AH126: -1 | AI126: -1 | AJ126: -1 | AK126: -1 | AL126: -1 | AM126: -1 | AN126: -1 | AO126: -1 | AP126: -1 | AQ126: -1
C127: Platzhalter 31 | D127: -37 | G127: -1 | H127: -1 | I127: -1 | J127: -1 | K127: -1 | L127: -1 | M127: -1 | N127: -1 | O127: -1 | P127: -1 | Q127: -1 | R127: -1 | S127: -1 | T127: -1 | U127: -1 | V127: -1 | W127: -1 | X127: -1 | Y127: -1 | Z127: -1 | AA127: -1 | AB127: -1 | AC127: -1 | AD127: -1 | AE127: -1 | AF127: -1 | AG127: -1 | AH127: -1 | AI127: -1 | AJ127: -1 | AK127: -1 | AL127: -1 | AM127: -1 | AN127: -1 | AO127: -1 | AP127: -1 | AQ127: -1
C128: Platzhalter 32 | D128: =IF(SUM(G128:AQ128)<>0,SUM(G128:AQ128),"") -> -37 | G128: -1 | H128: -1 | I128: -1 | J128: -1 | K128: -1 | L128: -1 | M128: -1 | N128: -1 | O128: -1 | P128: -1 | Q128: -1 | R128: -1 | S128: -1 | T128: -1 | U128: -1 | V128: -1 | W128: -1 | X128: -1 | Y128: -1 | Z128: -1 | AA128: -1 | AB128: -1 | AC128: -1 | AD128: -1 | AE128: -1 | AF128: -1 | AG128: -1 | AH128: -1 | AI128: -1 | AJ128: -1 | AK128: -1 | AL128: -1 | AM128: -1 | AN128: -1 | AO128: -1 | AP128: -1 | AQ128: -1
C129: Sonstiges | D129: =IF(SUM(G129:AQ129)<>0,SUM(G129:AQ129),"") -> -37 | G129: -1 | H129: -1 | I129: -1 | J129: -1 | K129: -1 | L129: -1 | M129: -1 | N129: -1 | O129: -1 | P129: -1 | Q129: -1 | R129: -1 | S129: -1 | T129: -1 | U129: -1 | V129: -1 | W129: -1 | X129: -1 | Y129: -1 | Z129: -1 | AA129: -1 | AB129: -1 | AC129: -1 | AD129: -1 | AE129: -1 | AF129: -1 | AG129: -1 | AH129: -1 | AI129: -1 | AJ129: -1 | AK129: -1 | AL129: -1 | AM129: -1 | AN129: -1 | AO129: -1 | AP129: -1 | AQ129: -1
B131: -- Hobby -- Haustier | C131: Haustier | D131: -37 | E131: =IF(SUM(D131:D137)<>0,SUM(D131:D138),"") -> -296 | F131: =IFERROR(E131/$E$240," ") -> 0.03686635945 | G131: -1 | H131: -1 | I131: -1 | J131: -1 | K131: -1 | L131: -1 | M131: -1 | N131: -1 | O131: -1 | P131: -1 | Q131: -1 | R131: -1 | S131: -1 | T131: -1 | U131: -1 | V131: -1 | W131: -1 | X131: -1 | Y131: -1 | Z131: -1 | AA131: -1 | AB131: -1 | AC131: -1 | AD131: -1 | AE131: -1 | AF131: -1 | AG131: -1 | AH131: -1 | AI131: -1 | AJ131: -1 | AK131: -1 | AL131: -1 | AM131: -1 | AN131: -1 | AO131: -1 | AP131: -1 | AQ131: -1
C132: Futter | D132: -37 | G132: -1 | H132: -1 | I132: -1 | J132: -1 | K132: -1 | L132: -1 | M132: -1 | N132: -1 | O132: -1 | P132: -1 | Q132: -1 | R132: -1 | S132: -1 | T132: -1 | U132: -1 | V132: -1 | W132: -1 | X132: -1 | Y132: -1 | Z132: -1 | AA132: -1 | AB132: -1 | AC132: -1 | AD132: -1 | AE132: -1 | AF132: -1 | AG132: -1 | AH132: -1 | AI132: -1 | AJ132: -1 | AK132: -1 | AL132: -1 | AM132: -1 | AN132: -1 | AO132: -1 | AP132: -1 | AQ132: -1
C133: Spielsachen/Sonstiges | D133: -37 | G133: -1 | H133: -1 | I133: -1 | J133: -1 | K133: -1 | L133: -1 | M133: -1 | N133: -1 | O133: -1 | P133: -1 | Q133: -1 | R133: -1 | S133: -1 | T133: -1 | U133: -1 | V133: -1 | W133: -1 | X133: -1 | Y133: -1 | Z133: -1 | AA133: -1 | AB133: -1 | AC133: -1 | AD133: -1 | AE133: -1 | AF133: -1 | AG133: -1 | AH133: -1 | AI133: -1 | AJ133: -1 | AK133: -1 | AL133: -1 | AM133: -1 | AN133: -1 | AO133: -1 | AP133: -1 | AQ133: -1
C134: Tierarzt/Medikamente | D134: -37 | G134: -1 | H134: -1 | I134: -1 | J134: -1 | K134: -1 | L134: -1 | M134: -1 | N134: -1 | O134: -1 | P134: -1 | Q134: -1 | R134: -1 | S134: -1 | T134: -1 | U134: -1 | V134: -1 | W134: -1 | X134: -1 | Y134: -1 | Z134: -1 | AA134: -1 | AB134: -1 | AC134: -1 | AD134: -1 | AE134: -1 | AF134: -1 | AG134: -1 | AH134: -1 | AI134: -1 | AJ134: -1 | AK134: -1 | AL134: -1 | AM134: -1 | AN134: -1 | AO134: -1 | AP134: -1 | AQ134: -1
C135: Platzhalter 33 | D135: -37 | G135: -1 | H135: -1 | I135: -1 | J135: -1 | K135: -1 | L135: -1 | M135: -1 | N135: -1 | O135: -1 | P135: -1 | Q135: -1 | R135: -1 | S135: -1 | T135: -1 | U135: -1 | V135: -1 | W135: -1 | X135: -1 | Y135: -1 | Z135: -1 | AA135: -1 | AB135: -1 | AC135: -1 | AD135: -1 | AE135: -1 | AF135: -1 | AG135: -1 | AH135: -1 | AI135: -1 | AJ135: -1 | AK135: -1 | AL135: -1 | AM135: -1 | AN135: -1 | AO135: -1 | AP135: -1 | AQ135: -1
C136: Platzhalter 34 | D136: -37 | G136: -1 | H136: -1 | I136: -1 | J136: -1 | K136: -1 | L136: -1 | M136: -1 | N136: -1 | O136: -1 | P136: -1 | Q136: -1 | R136: -1 | S136: -1 | T136: -1 | U136: -1 | V136: -1 | W136: -1 | X136: -1 | Y136: -1 | Z136: -1 | AA136: -1 | AB136: -1 | AC136: -1 | AD136: -1 | AE136: -1 | AF136: -1 | AG136: -1 | AH136: -1 | AI136: -1 | AJ136: -1 | AK136: -1 | AL136: -1 | AM136: -1 | AN136: -1 | AO136: -1 | AP136: -1 | AQ136: -1
C137: Platzhalter 35 | D137: =IF(SUM(G137:AQ137)<>0,SUM(G137:AQ137),"") -> -37 | G137: -1 | H137: -1 | I137: -1 | J137: -1 | K137: -1 | L137: -1 | M137: -1 | N137: -1 | O137: -1 | P137: -1 | Q137: -1 | R137: -1 | S137: -1 | T137: -1 | U137: -1 | V137: -1 | W137: -1 | X137: -1 | Y137: -1 | Z137: -1 | AA137: -1 | AB137: -1 | AC137: -1 | AD137: -1 | AE137: -1 | AF137: -1 | AG137: -1 | AH137: -1 | AI137: -1 | AJ137: -1 | AK137: -1 | AL137: -1 | AM137: -1 | AN137: -1 | AO137: -1 | AP137: -1 | AQ137: -1
C138: Sonstiges | D138: =IF(SUM(G138:AQ138)<>0,SUM(G138:AQ138),"") -> -37 | G138: -1 | H138: -1 | I138: -1 | J138: -1 | K138: -1 | L138: -1 | M138: -1 | N138: -1 | O138: -1 | P138: -1 | Q138: -1 | R138: -1 | S138: -1 | T138: -1 | U138: -1 | V138: -1 | W138: -1 | X138: -1 | Y138: -1 | Z138: -1 | AA138: -1 | AB138: -1 | AC138: -1 | AD138: -1 | AE138: -1 | AF138: -1 | AG138: -1 | AH138: -1 | AI138: -1 | AJ138: -1 | AK138: -1 | AL138: -1 | AM138: -1 | AN138: -1 | AO138: -1 | AP138: -1 | AQ138: -1
B140: -- Hobby -- Handwerken | C140: Bekleidung | D140: -37 | E140: =IF(SUM(D140:D147)<>0,SUM(D140:D147),"") -> -296 | F140: =IFERROR(E140/$E$240," ") -> 0.03686635945 | G140: -1 | H140: -1 | I140: -1 | J140: -1 | K140: -1 | L140: -1 | M140: -1 | N140: -1 | O140: -1 | P140: -1 | Q140: -1 | R140: -1 | S140: -1 | T140: -1 | U140: -1 | V140: -1 | W140: -1 | X140: -1 | Y140: -1 | Z140: -1 | AA140: -1 | AB140: -1 | AC140: -1 | AD140: -1 | AE140: -1 | AF140: -1 | AG140: -1 | AH140: -1 | AI140: -1 | AJ140: -1 | AK140: -1 | AL140: -1 | AM140: -1 | AN140: -1 | AO140: -1 | AP140: -1 | AQ140: -1
C141: Werkstatteinrichtung | D141: -37 | G141: -1 | H141: -1 | I141: -1 | J141: -1 | K141: -1 | L141: -1 | M141: -1 | N141: -1 | O141: -1 | P141: -1 | Q141: -1 | R141: -1 | S141: -1 | T141: -1 | U141: -1 | V141: -1 | W141: -1 | X141: -1 | Y141: -1 | Z141: -1 | AA141: -1 | AB141: -1 | AC141: -1 | AD141: -1 | AE141: -1 | AF141: -1 | AG141: -1 | AH141: -1 | AI141: -1 | AJ141: -1 | AK141: -1 | AL141: -1 | AM141: -1 | AN141: -1 | AO141: -1 | AP141: -1 | AQ141: -1
C142: Geräte | D142: -37 | G142: -1 | H142: -1 | I142: -1 | J142: -1 | K142: -1 | L142: -1 | M142: -1 | N142: -1 | O142: -1 | P142: -1 | Q142: -1 | R142: -1 | S142: -1 | T142: -1 | U142: -1 | V142: -1 | W142: -1 | X142: -1 | Y142: -1 | Z142: -1 | AA142: -1 | AB142: -1 | AC142: -1 | AD142: -1 | AE142: -1 | AF142: -1 | AG142: -1 | AH142: -1 | AI142: -1 | AJ142: -1 | AK142: -1 | AL142: -1 | AM142: -1 | AN142: -1 | AO142: -1 | AP142: -1 | AQ142: -1
C143: Material | D143: -37 | G143: -1 | H143: -1 | I143: -1 | J143: -1 | K143: -1 | L143: -1 | M143: -1 | N143: -1 | O143: -1 | P143: -1 | Q143: -1 | R143: -1 | S143: -1 | T143: -1 | U143: -1 | V143: -1 | W143: -1 | X143: -1 | Y143: -1 | Z143: -1 | AA143: -1 | AB143: -1 | AC143: -1 | AD143: -1 | AE143: -1 | AF143: -1 | AG143: -1 | AH143: -1 | AI143: -1 | AJ143: -1 | AK143: -1 | AL143: -1 | AM143: -1 | AN143: -1 | AO143: -1 | AP143: -1 | AQ143: -1
C144: Platzhalter 36 | D144: -37 | G144: -1 | H144: -1 | I144: -1 | J144: -1 | K144: -1 | L144: -1 | M144: -1 | N144: -1 | O144: -1 | P144: -1 | Q144: -1 | R144: -1 | S144: -1 | T144: -1 | U144: -1 | V144: -1 | W144: -1 | X144: -1 | Y144: -1 | Z144: -1 | AA144: -1 | AB144: -1 | AC144: -1 | AD144: -1 | AE144: -1 | AF144: -1 | AG144: -1 | AH144: -1 | AI144: -1 | AJ144: -1 | AK144: -1 | AL144: -1 | AM144: -1 | AN144: -1 | AO144: -1 | AP144: -1 | AQ144: -1
C145: Platzhalter 37 | D145: -37 | G145: -1 | H145: -1 | I145: -1 | J145: -1 | K145: -1 | L145: -1 | M145: -1 | N145: -1 | O145: -1 | P145: -1 | Q145: -1 | R145: -1 | S145: -1 | T145: -1 | U145: -1 | V145: -1 | W145: -1 | X145: -1 | Y145: -1 | Z145: -1 | AA145: -1 | AB145: -1 | AC145: -1 | AD145: -1 | AE145: -1 | AF145: -1 | AG145: -1 | AH145: -1 | AI145: -1 | AJ145: -1 | AK145: -1 | AL145: -1 | AM145: -1 | AN145: -1 | AO145: -1 | AP145: -1 | AQ145: -1
C146: Platzhalter 38 | D146: =IF(SUM(G146:AQ146)<>0,SUM(G146:AQ146),"") -> -37 | G146: -1 | H146: -1 | I146: -1 | J146: -1 | K146: -1 | L146: -1 | M146: -1 | N146: -1 | O146: -1 | P146: -1 | Q146: -1 | R146: -1 | S146: -1 | T146: -1 | U146: -1 | V146: -1 | W146: -1 | X146: -1 | Y146: -1 | Z146: -1 | AA146: -1 | AB146: -1 | AC146: -1 | AD146: -1 | AE146: -1 | AF146: -1 | AG146: -1 | AH146: -1 | AI146: -1 | AJ146: -1 | AK146: -1 | AL146: -1 | AM146: -1 | AN146: -1 | AO146: -1 | AP146: -1 | AQ146: -1
C147: Sonstiges | D147: -37 | G147: -1 | H147: -1 | I147: -1 | J147: -1 | K147: -1 | L147: -1 | M147: -1 | N147: -1 | O147: -1 | P147: -1 | Q147: -1 | R147: -1 | S147: -1 | T147: -1 | U147: -1 | V147: -1 | W147: -1 | X147: -1 | Y147: -1 | Z147: -1 | AA147: -1 | AB147: -1 | AC147: -1 | AD147: -1 | AE147: -1 | AF147: -1 | AG147: -1 | AH147: -1 | AI147: -1 | AJ147: -1 | AK147: -1 | AL147: -1 | AM147: -1 | AN147: -1 | AO147: -1 | AP147: -1 | AQ147: -1
B149: Lebensmittel | C149: Büroabedarf | D149: -74 | E149: =IF(SUM(D149:D155)<>0,SUM(D149:D156),"") -> -518 | F149: =IFERROR(E149/$E$240," ") -> 0.06451612903 | G149: =IF(G29="","",G29) -> -2 | H149: -2 | I149: -2 | J149: -2 | K149: -2 | L149: -2 | M149: -2 | N149: -2 | O149: -2 | P149: -2 | Q149: -2 | R149: -2 | S149: -2 | T149: -2 | U149: -2 | V149: -2 | W149: -2 | X149: -2 | Y149: -2 | Z149: -2 | AA149: -2 | AB149: -2 | AC149: -2 | AD149: -2 | AE149: -2 | AF149: -2 | AG149: -2 | AH149: -2 | AI149: -2 | AJ149: -2 | AK149: -2 | AL149: -2 | AM149: -2 | AN149: -2 | AO149: -2 | AP149: -2 | AQ149: -2
C150: Genussmittel | D150: -37 | G150: -1 | H150: -1 | I150: -1 | J150: -1 | K150: -1 | L150: -1 | M150: -1 | N150: -1 | O150: -1 | P150: -1 | Q150: -1 | R150: -1 | S150: -1 | T150: -1 | U150: -1 | V150: -1 | W150: -1 | X150: -1 | Y150: -1 | Z150: -1 | AA150: -1 | AB150: -1 | AC150: -1 | AD150: -1 | AE150: -1 | AF150: -1 | AG150: -1 | AH150: -1 | AI150: -1 | AJ150: -1 | AK150: -1 | AL150: -1 | AM150: -1 | AN150: -1 | AO150: -1 | AP150: -1 | AQ150: -1
C151: Haushaltsartikel (Reinigungsm., Toilettenpap., etc.) | D151: -111 | G151: =IF(G30="","",G30) -> -3 | H151: -3 | I151: -3 | J151: -3 | K151: -3 | L151: -3 | M151: -3 | N151: -3 | O151: -3 | P151: -3 | Q151: -3 | R151: -3 | S151: -3 | T151: -3 | U151: -3 | V151: -3 | W151: -3 | X151: -3 | Y151: -3 | Z151: -3 | AA151: -3 | AB151: -3 | AC151: -3 | AD151: -3 | AE151: -3 | AF151: -3 | AG151: -3 | AH151: -3 | AI151: -3 | AJ151: -3 | AK151: -3 | AL151: -3 | AM151: -3 | AN151: -3 | AO151: -3 | AP151: -3 | AQ151: -3
C152: Lebensmittel/Getränke | D152: -148 | G152: -4 | H152: -4 | I152: -4 | J152: -4 | K152: -4 | L152: -4 | M152: -4 | N152: -4 | O152: -4 | P152: -4 | Q152: -4 | R152: -4 | S152: -4 | T152: -4 | U152: -4 | V152: -4 | W152: -4 | X152: -4 | Y152: -4 | Z152: -4 | AA152: -4 | AB152: -4 | AC152: -4 | AD152: -4 | AE152: -4 | AF152: -4 | AG152: -4 | AH152: -4 | AI152: -4 | AJ152: -4 | AK152: -4 | AL152: -4 | AM152: -4 | AN152: -4 | AO152: -4 | AP152: -4 | AQ152: -4
C153: Platzhalter 39 | D153: -37 | G153: -1 | H153: -1 | I153: -1 | J153: -1 | K153: -1 | L153: -1 | M153: -1 | N153: -1 | O153: -1 | P153: -1 | Q153: -1 | R153: -1 | S153: -1 | T153: -1 | U153: -1 | V153: -1 | W153: -1 | X153: -1 | Y153: -1 | Z153: -1 | AA153: -1 | AB153: -1 | AC153: -1 | AD153: -1 | AE153: -1 | AF153: -1 | AG153: -1 | AH153: -1 | AI153: -1 | AJ153: -1 | AK153: -1 | AL153: -1 | AM153: -1 | AN153: -1 | AO153: -1 | AP153: -1 | AQ153: -1
C154: Platzhalter 40 | D154: -37 | G154: -1 | H154: -1 | I154: -1 | J154: -1 | K154: -1 | L154: -1 | M154: -1 | N154: -1 | O154: -1 | P154: -1 | Q154: -1 | R154: -1 | S154: -1 | T154: -1 | U154: -1 | V154: -1 | W154: -1 | X154: -1 | Y154: -1 | Z154: -1 | AA154: -1 | AB154: -1 | AC154: -1 | AD154: -1 | AE154: -1 | AF154: -1 | AG154: -1 | AH154: -1 | AI154: -1 | AJ154: -1 | AK154: -1 | AL154: -1 | AM154: -1 | AN154: -1 | AO154: -1 | AP154: -1 | AQ154: -1
C155: Platzhalter 41 | D155: =IF(SUM(G155:AQ155)<>0,SUM(G155:AQ155),"") -> -37 | G155: -1 | H155: -1 | I155: -1 | J155: -1 | K155: -1 | L155: -1 | M155: -1 | N155: -1 | O155: -1 | P155: -1 | Q155: -1 | R155: -1 | S155: -1 | T155: -1 | U155: -1 | V155: -1 | W155: -1 | X155: -1 | Y155: -1 | Z155: -1 | AA155: -1 | AB155: -1 | AC155: -1 | AD155: -1 | AE155: -1 | AF155: -1 | AG155: -1 | AH155: -1 | AI155: -1 | AJ155: -1 | AK155: -1 | AL155: -1 | AM155: -1 | AN155: -1 | AO155: -1 | AP155: -1 | AQ155: -1
C156: Sonstiges | D156: =IF(SUM(G156:AQ156)<>0,SUM(G156:AQ156),"") -> -37 | G156: -1 | H156: -1 | I156: -1 | J156: -1 | K156: -1 | L156: -1 | M156: -1 | N156: -1 | O156: -1 | P156: -1 | Q156: -1 | R156: -1 | S156: -1 | T156: -1 | U156: -1 | V156: -1 | W156: -1 | X156: -1 | Y156: -1 | Z156: -1 | AA156: -1 | AB156: -1 | AC156: -1 | AD156: -1 | AE156: -1 | AF156: -1 | AG156: -1 | AH156: -1 | AI156: -1 | AJ156: -1 | AK156: -1 | AL156: -1 | AM156: -1 | AN156: -1 | AO156: -1 | AP156: -1 | AQ156: -1
B158: Mobilität | C158: Auto, Inspektion, Reparatur | D158: -37 | E158: =IF(SUM(D158:D167)<>0,SUM(D158:D168),"") -> -629 | F158: =IFERROR(E158/$E$240," ") -> 0.07834101382 | G158: -1 | H158: -1 | I158: -1 | J158: -1 | K158: -1 | L158: -1 | M158: -1 | N158: -1 | O158: -1 | P158: -1 | Q158: -1 | R158: -1 | S158: -1 | T158: -1 | U158: -1 | V158: -1 | W158: -1 | X158: -1 | Y158: -1 | Z158: -1 | AA158: -1 | AB158: -1 | AC158: -1 | AD158: -1 | AE158: -1 | AF158: -1 | AG158: -1 | AH158: -1 | AI158: -1 | AJ158: -1 | AK158: -1 | AL158: -1 | AM158: -1 | AN158: -1 | AO158: -1 | AP158: -1 | AQ158: -1
C159: Auto, Pflege | D159: -74 | G159: =IF(G34="","",G34) -> -2 | H159: -2 | I159: -2 | J159: -2 | K159: -2 | L159: -2 | M159: -2 | N159: -2 | O159: -2 | P159: -2 | Q159: -2 | R159: -2 | S159: -2 | T159: -2 | U159: -2 | V159: -2 | W159: -2 | X159: -2 | Y159: -2 | Z159: -2 | AA159: -2 | AB159: -2 | AC159: -2 | AD159: -2 | AE159: -2 | AF159: -2 | AG159: -2 | AH159: -2 | AI159: -2 | AJ159: -2 | AK159: -2 | AL159: -2 | AM159: -2 | AN159: -2 | AO159: -2 | AP159: -2 | AQ159: -2
C160: Auto, Treibstoff | D160: -111 | G160: -3 | H160: -3 | I160: -3 | J160: -3 | K160: -3 | L160: -3 | M160: -3 | N160: -3 | O160: -3 | P160: -3 | Q160: -3 | R160: -3 | S160: -3 | T160: -3 | U160: -3 | V160: -3 | W160: -3 | X160: -3 | Y160: -3 | Z160: -3 | AA160: -3 | AB160: -3 | AC160: -3 | AD160: -3 | AE160: -3 | AF160: -3 | AG160: -3 | AH160: -3 | AI160: -3 | AJ160: -3 | AK160: -3 | AL160: -3 | AM160: -3 | AN160: -3 | AO160: -3 | AP160: -3 | AQ160: -3
C161: Auto, Parkgebühren | D161: -148 | G161: -4 | H161: -4 | I161: -4 | J161: -4 | K161: -4 | L161: -4 | M161: -4 | N161: -4 | O161: -4 | P161: -4 | Q161: -4 | R161: -4 | S161: -4 | T161: -4 | U161: -4 | V161: -4 | W161: -4 | X161: -4 | Y161: -4 | Z161: -4 | AA161: -4 | AB161: -4 | AC161: -4 | AD161: -4 | AE161: -4 | AF161: -4 | AG161: -4 | AH161: -4 | AI161: -4 | AJ161: -4 | AK161: -4 | AL161: -4 | AM161: -4 | AN161: -4 | AO161: -4 | AP161: -4 | AQ161: -4
C162: Carsharing/E-Scooter/Mietwagen/Taxi | D162: -37 | G162: -1 | H162: -1 | I162: -1 | J162: -1 | K162: -1 | L162: -1 | M162: -1 | N162: -1 | O162: -1 | P162: -1 | Q162: -1 | R162: -1 | S162: -1 | T162: -1 | U162: -1 | V162: -1 | W162: -1 | X162: -1 | Y162: -1 | Z162: -1 | AA162: -1 | AB162: -1 | AC162: -1 | AD162: -1 | AE162: -1 | AF162: -1 | AG162: -1 | AH162: -1 | AI162: -1 | AJ162: -1 | AK162: -1 | AL162: -1 | AM162: -1 | AN162: -1 | AO162: -1 | AP162: -1 | AQ162: -1
A163: Eingabe | C163: Fahrrad | D163: -37 | G163: -1 | H163: -1 | I163: -1 | J163: -1 | K163: -1 | L163: -1 | M163: -1 | N163: -1 | O163: -1 | P163: -1 | Q163: -1 | R163: -1 | S163: -1 | T163: -1 | U163: -1 | V163: -1 | W163: -1 | X163: -1 | Y163: -1 | Z163: -1 | AA163: -1 | AB163: -1 | AC163: -1 | AD163: -1 | AE163: -1 | AF163: -1 | AG163: -1 | AH163: -1 | AI163: -1 | AJ163: -1 | AK163: -1 | AL163: -1 | AM163: -1 | AN163: -1 | AO163: -1 | AP163: -1 | AQ163: -1
C164: ÖPNV (Fahrkarten, Wochenticket, etc.) | D164: -37 | G164: -1 | H164: -1 | I164: -1 | J164: -1 | K164: -1 | L164: -1 | M164: -1 | N164: -1 | O164: -1 | P164: -1 | Q164: -1 | R164: -1 | S164: -1 | T164: -1 | U164: -1 | V164: -1 | W164: -1 | X164: -1 | Y164: -1 | Z164: -1 | AA164: -1 | AB164: -1 | AC164: -1 | AD164: -1 | AE164: -1 | AF164: -1 | AG164: -1 | AH164: -1 | AI164: -1 | AJ164: -1 | AK164: -1 | AL164: -1 | AM164: -1 | AN164: -1 | AO164: -1 | AP164: -1 | AQ164: -1
C165: Platzhalter 42 | D165: -37 | G165: -1 | H165: -1 | I165: -1 | J165: -1 | K165: -1 | L165: -1 | M165: -1 | N165: -1 | O165: -1 | P165: -1 | Q165: -1 | R165: -1 | S165: -1 | T165: -1 | U165: -1 | V165: -1 | W165: -1 | X165: -1 | Y165: -1 | Z165: -1 | AA165: -1 | AB165: -1 | AC165: -1 | AD165: -1 | AE165: -1 | AF165: -1 | AG165: -1 | AH165: -1 | AI165: -1 | AJ165: -1 | AK165: -1 | AL165: -1 | AM165: -1 | AN165: -1 | AO165: -1 | AP165: -1 | AQ165: -1
C166: Platzhalter 43 | D166: -37 | G166: -1 | H166: -1 | I166: -1 | J166: -1 | K166: -1 | L166: -1 | M166: -1 | N166: -1 | O166: -1 | P166: -1 | Q166: -1 | R166: -1 | S166: -1 | T166: -1 | U166: -1 | V166: -1 | W166: -1 | X166: -1 | Y166: -1 | Z166: -1 | AA166: -1 | AB166: -1 | AC166: -1 | AD166: -1 | AE166: -1 | AF166: -1 | AG166: -1 | AH166: -1 | AI166: -1 | AJ166: -1 | AK166: -1 | AL166: -1 | AM166: -1 | AN166: -1 | AO166: -1 | AP166: -1 | AQ166: -1
C167: Platzhalter 44 | D167: =IF(SUM(G167:AQ167)<>0,SUM(G167:AQ167),"") -> -37 | G167: -1 | H167: -1 | I167: -1 | J167: -1 | K167: -1 | L167: -1 | M167: -1 | N167: -1 | O167: -1 | P167: -1 | Q167: -1 | R167: -1 | S167: -1 | T167: -1 | U167: -1 | V167: -1 | W167: -1 | X167: -1 | Y167: -1 | Z167: -1 | AA167: -1 | AB167: -1 | AC167: -1 | AD167: -1 | AE167: -1 | AF167: -1 | AG167: -1 | AH167: -1 | AI167: -1 | AJ167: -1 | AK167: -1 | AL167: -1 | AM167: -1 | AN167: -1 | AO167: -1 | AP167: -1 | AQ167: -1
C168: Sonstiges | D168: =IF(SUM(G168:AQ168)<>0,SUM(G168:AQ168),"") -> -37 | G168: -1 | H168: -1 | I168: -1 | J168: -1 | K168: -1 | L168: -1 | M168: -1 | N168: -1 | O168: -1 | P168: -1 | Q168: -1 | R168: -1 | S168: -1 | T168: -1 | U168: -1 | V168: -1 | W168: -1 | X168: -1 | Y168: -1 | Z168: -1 | AA168: -1 | AB168: -1 | AC168: -1 | AD168: -1 | AE168: -1 | AF168: -1 | AG168: -1 | AH168: -1 | AI168: -1 | AJ168: -1 | AK168: -1 | AL168: -1 | AM168: -1 | AN168: -1 | AO168: -1 | AP168: -1 | AQ168: -1
B170: Post/Telekomunikation | C170: Briefe | D170: -74 | E170: =IF(SUM(D170:D176)<>0,SUM(D170:D176),"") -> -370 | F170: =IFERROR(E170/$E$240," ") -> 0.04608294931 | G170: =IF(G40="","",G40) -> -2 | H170: -2 | I170: -2 | J170: -2 | K170: -2 | L170: -2 | M170: -2 | N170: -2 | O170: -2 | P170: -2 | Q170: -2 | R170: -2 | S170: -2 | T170: -2 | U170: -2 | V170: -2 | W170: -2 | X170: -2 | Y170: -2 | Z170: -2 | AA170: -2 | AB170: -2 | AC170: -2 | AD170: -2 | AE170: -2 | AF170: -2 | AG170: -2 | AH170: -2 | AI170: -2 | AJ170: -2 | AK170: -2 | AL170: -2 | AM170: -2 | AN170: -2 | AO170: -2 | AP170: -2 | AQ170: -2
C171: Pakete | D171: -111 | G171: -3 | H171: -3 | I171: -3 | J171: -3 | K171: -3 | L171: -3 | M171: -3 | N171: -3 | O171: -3 | P171: -3 | Q171: -3 | R171: -3 | S171: -3 | T171: -3 | U171: -3 | V171: -3 | W171: -3 | X171: -3 | Y171: -3 | Z171: -3 | AA171: -3 | AB171: -3 | AC171: -3 | AD171: -3 | AE171: -3 | AF171: -3 | AG171: -3 | AH171: -3 | AI171: -3 | AJ171: -3 | AK171: -3 | AL171: -3 | AM171: -3 | AN171: -3 | AO171: -3 | AP171: -3 | AQ171: -3
C172: Telefonkarten | D172: -37 | G172: -1 | H172: -1 | I172: -1 | J172: -1 | K172: -1 | L172: -1 | M172: -1 | N172: -1 | O172: -1 | P172: -1 | Q172: -1 | R172: -1 | S172: -1 | T172: -1 | U172: -1 | V172: -1 | W172: -1 | X172: -1 | Y172: -1 | Z172: -1 | AA172: -1 | AB172: -1 | AC172: -1 | AD172: -1 | AE172: -1 | AF172: -1 | AG172: -1 | AH172: -1 | AI172: -1 | AJ172: -1 | AK172: -1 | AL172: -1 | AM172: -1 | AN172: -1 | AO172: -1 | AP172: -1 | AQ172: -1
C173: Platzhalter 45 | D173: =IF(SUM(G173:AQ173)<>0,SUM(G173:AQ173),"") -> -37 | G173: -1 | H173: -1 | I173: -1 | J173: -1 | K173: -1 | L173: -1 | M173: -1 | N173: -1 | O173: -1 | P173: -1 | Q173: -1 | R173: -1 | S173: -1 | T173: -1 | U173: -1 | V173: -1 | W173: -1 | X173: -1 | Y173: -1 | Z173: -1 | AA173: -1 | AB173: -1 | AC173: -1 | AD173: -1 | AE173: -1 | AF173: -1 | AG173: -1 | AH173: -1 | AI173: -1 | AJ173: -1 | AK173: -1 | AL173: -1 | AM173: -1 | AN173: -1 | AO173: -1 | AP173: -1 | AQ173: -1
C174: Platzhalter 46 | D174: =IF(SUM(G174:AQ174)<>0,SUM(G174:AQ174),"") -> -37 | G174: -1 | H174: -1 | I174: -1 | J174: -1 | K174: -1 | L174: -1 | M174: -1 | N174: -1 | O174: -1 | P174: -1 | Q174: -1 | R174: -1 | S174: -1 | T174: -1 | U174: -1 | V174: -1 | W174: -1 | X174: -1 | Y174: -1 | Z174: -1 | AA174: -1 | AB174: -1 | AC174: -1 | AD174: -1 | AE174: -1 | AF174: -1 | AG174: -1 | AH174: -1 | AI174: -1 | AJ174: -1 | AK174: -1 | AL174: -1 | AM174: -1 | AN174: -1 | AO174: -1 | AP174: -1 | AQ174: -1
C175: Platzhalter 47 | D175: =IF(SUM(G175:AQ175)<>0,SUM(G175:AQ175),"") -> -37 | G175: -1 | H175: -1 | I175: -1 | J175: -1 | K175: -1 | L175: -1 | M175: -1 | N175: -1 | O175: -1 | P175: -1 | Q175: -1 | R175: -1 | S175: -1 | T175: -1 | U175: -1 | V175: -1 | W175: -1 | X175: -1 | Y175: -1 | Z175: -1 | AA175: -1 | AB175: -1 | AC175: -1 | AD175: -1 | AE175: -1 | AF175: -1 | AG175: -1 | AH175: -1 | AI175: -1 | AJ175: -1 | AK175: -1 | AL175: -1 | AM175: -1 | AN175: -1 | AO175: -1 | AP175: -1 | AQ175: -1
C176: Sonstiges | D176: -37 | G176: -1 | H176: -1 | I176: -1 | J176: -1 | K176: -1 | L176: -1 | M176: -1 | N176: -1 | O176: -1 | P176: -1 | Q176: -1 | R176: -1 | S176: -1 | T176: -1 | U176: -1 | V176: -1 | W176: -1 | X176: -1 | Y176: -1 | Z176: -1 | AA176: -1 | AB176: -1 | AC176: -1 | AD176: -1 | AE176: -1 | AF176: -1 | AG176: -1 | AH176: -1 | AI176: -1 | AJ176: -1 | AK176: -1 | AL176: -1 | AM176: -1 | AN176: -1 | AO176: -1 | AP176: -1 | AQ176: -1
B178: Sonstiges Allgemein | C178: Geldstrafen (Strafzettel, etc.) | D178: -37 | E178: =IF(SUM(D178:D186)<>0,SUM(D178:D186),"") -> -333 | F178: =IFERROR(E178/$E$240," ") -> 0.04147465438 | G178: -1 | H178: -1 | I178: -1 | J178: -1 | K178: -1 | L178: -1 | M178: -1 | N178: -1 | O178: -1 | P178: -1 | Q178: -1 | R178: -1 | S178: -1 | T178: -1 | U178: -1 | V178: -1 | W178: -1 | X178: -1 | Y178: -1 | Z178: -1 | AA178: -1 | AB178: -1 | AC178: -1 | AD178: -1 | AE178: -1 | AF178: -1 | AG178: -1 | AH178: -1 | AI178: -1 | AJ178: -1 | AK178: -1 | AL178: -1 | AM178: -1 | AN178: -1 | AO178: -1 | AP178: -1 | AQ178: -1
C179: Gerichtskosten | D179: -37 | G179: -1 | H179: -1 | I179: -1 | J179: -1 | K179: -1 | L179: -1 | M179: -1 | N179: -1 | O179: -1 | P179: -1 | Q179: -1 | R179: -1 | S179: -1 | T179: -1 | U179: -1 | V179: -1 | W179: -1 | X179: -1 | Y179: -1 | Z179: -1 | AA179: -1 | AB179: -1 | AC179: -1 | AD179: -1 | AE179: -1 | AF179: -1 | AG179: -1 | AH179: -1 | AI179: -1 | AJ179: -1 | AK179: -1 | AL179: -1 | AM179: -1 | AN179: -1 | AO179: -1 | AP179: -1 | AQ179: -1
C180: Kredite und Finanzierung Einmalzahlung | D180: -37 | G180: -1 | H180: -1 | I180: -1 | J180: -1 | K180: -1 | L180: -1 | M180: -1 | N180: -1 | O180: -1 | P180: -1 | Q180: -1 | R180: -1 | S180: -1 | T180: -1 | U180: -1 | V180: -1 | W180: -1 | X180: -1 | Y180: -1 | Z180: -1 | AA180: -1 | AB180: -1 | AC180: -1 | AD180: -1 | AE180: -1 | AF180: -1 | AG180: -1 | AH180: -1 | AI180: -1 | AJ180: -1 | AK180: -1 | AL180: -1 | AM180: -1 | AN180: -1 | AO180: -1 | AP180: -1 | AQ180: -1
C181: Spenden | D181: -37 | G181: -1 | H181: -1 | I181: -1 | J181: -1 | K181: -1 | L181: -1 | M181: -1 | N181: -1 | O181: -1 | P181: -1 | Q181: -1 | R181: -1 | S181: -1 | T181: -1 | U181: -1 | V181: -1 | W181: -1 | X181: -1 | Y181: -1 | Z181: -1 | AA181: -1 | AB181: -1 | AC181: -1 | AD181: -1 | AE181: -1 | AF181: -1 | AG181: -1 | AH181: -1 | AI181: -1 | AJ181: -1 | AK181: -1 | AL181: -1 | AM181: -1 | AN181: -1 | AO181: -1 | AP181: -1 | AQ181: -1
C182: Versicherung und Steuern Nachzahlung | D182: -37 | G182: -1 | H182: -1 | I182: -1 | J182: -1 | K182: -1 | L182: -1 | M182: -1 | N182: -1 | O182: -1 | P182: -1 | Q182: -1 | R182: -1 | S182: -1 | T182: -1 | U182: -1 | V182: -1 | W182: -1 | X182: -1 | Y182: -1 | Z182: -1 | AA182: -1 | AB182: -1 | AC182: -1 | AD182: -1 | AE182: -1 | AF182: -1 | AG182: -1 | AH182: -1 | AI182: -1 | AJ182: -1 | AK182: -1 | AL182: -1 | AM182: -1 | AN182: -1 | AO182: -1 | AP182: -1 | AQ182: -1
C183: Platzhalter 48 | D183: -37 | G183: -1 | H183: -1 | I183: -1 | J183: -1 | K183: -1 | L183: -1 | M183: -1 | N183: -1 | O183: -1 | P183: -1 | Q183: -1 | R183: -1 | S183: -1 | T183: -1 | U183: -1 | V183: -1 | W183: -1 | X183: -1 | Y183: -1 | Z183: -1 | AA183: -1 | AB183: -1 | AC183: -1 | AD183: -1 | AE183: -1 | AF183: -1 | AG183: -1 | AH183: -1 | AI183: -1 | AJ183: -1 | AK183: -1 | AL183: -1 | AM183: -1 | AN183: -1 | AO183: -1 | AP183: -1 | AQ183: -1
C184: Platzhalter 49 | D184: -37 | G184: -1 | H184: -1 | I184: -1 | J184: -1 | K184: -1 | L184: -1 | M184: -1 | N184: -1 | O184: -1 | P184: -1 | Q184: -1 | R184: -1 | S184: -1 | T184: -1 | U184: -1 | V184: -1 | W184: -1 | X184: -1 | Y184: -1 | Z184: -1 | AA184: -1 | AB184: -1 | AC184: -1 | AD184: -1 | AE184: -1 | AF184: -1 | AG184: -1 | AH184: -1 | AI184: -1 | AJ184: -1 | AK184: -1 | AL184: -1 | AM184: -1 | AN184: -1 | AO184: -1 | AP184: -1 | AQ184: -1
C185: Platzhalter 50 | D185: -37 | G185: -1 | H185: -1 | I185: -1 | J185: -1 | K185: -1 | L185: -1 | M185: -1 | N185: -1 | O185: -1 | P185: -1 | Q185: -1 | R185: -1 | S185: -1 | T185: -1 | U185: -1 | V185: -1 | W185: -1 | X185: -1 | Y185: -1 | Z185: -1 | AA185: -1 | AB185: -1 | AC185: -1 | AD185: -1 | AE185: -1 | AF185: -1 | AG185: -1 | AH185: -1 | AI185: -1 | AJ185: -1 | AK185: -1 | AL185: -1 | AM185: -1 | AN185: -1 | AO185: -1 | AP185: -1 | AQ185: -1
C186: Sonstiges | D186: -37 | G186: -1 | H186: -1 | I186: -1 | J186: -1 | K186: -1 | L186: -1 | M186: -1 | N186: -1 | O186: -1 | P186: -1 | Q186: -1 | R186: -1 | S186: -1 | T186: -1 | U186: -1 | V186: -1 | W186: -1 | X186: -1 | Y186: -1 | Z186: -1 | AA186: -1 | AB186: -1 | AC186: -1 | AD186: -1 | AE186: -1 | AF186: -1 | AG186: -1 | AH186: -1 | AI186: -1 | AJ186: -1 | AK186: -1 | AL186: -1 | AM186: -1 | AN186: -1 | AO186: -1 | AP186: -1 | AQ186: -1
B188: Urlaub | C188: Pauschalreise | D188: -37 | E188: =IF(SUM(D188:D196)<>0,SUM(D188:D197),"") -> -370 | F188: =IFERROR(E188/$E$240," ") -> 0.04608294931 | G188: -1 | H188: -1 | I188: -1 | J188: -1 | K188: -1 | L188: -1 | M188: -1 | N188: -1 | O188: -1 | P188: -1 | Q188: -1 | R188: -1 | S188: -1 | T188: -1 | U188: -1 | V188: -1 | W188: -1 | X188: -1 | Y188: -1 | Z188: -1 | AA188: -1 | AB188: -1 | AC188: -1 | AD188: -1 | AE188: -1 | AF188: -1 | AG188: -1 | AH188: -1 | AI188: -1 | AJ188: -1 | AK188: -1 | AL188: -1 | AM188: -1 | AN188: -1 | AO188: -1 | AP188: -1 | AQ188: -1
C189: Freizeitaktivitäten/Ausflüge | D189: -37 | G189: -1 | H189: -1 | I189: -1 | J189: -1 | K189: -1 | L189: -1 | M189: -1 | N189: -1 | O189: -1 | P189: -1 | Q189: -1 | R189: -1 | S189: -1 | T189: -1 | U189: -1 | V189: -1 | W189: -1 | X189: -1 | Y189: -1 | Z189: -1 | AA189: -1 | AB189: -1 | AC189: -1 | AD189: -1 | AE189: -1 | AF189: -1 | AG189: -1 | AH189: -1 | AI189: -1 | AJ189: -1 | AK189: -1 | AL189: -1 | AM189: -1 | AN189: -1 | AO189: -1 | AP189: -1 | AQ189: -1
C190: Sonstige Kosten | D190: -37 | G190: -1 | H190: -1 | I190: -1 | J190: -1 | K190: -1 | L190: -1 | M190: -1 | N190: -1 | O190: -1 | P190: -1 | Q190: -1 | R190: -1 | S190: -1 | T190: -1 | U190: -1 | V190: -1 | W190: -1 | X190: -1 | Y190: -1 | Z190: -1 | AA190: -1 | AB190: -1 | AC190: -1 | AD190: -1 | AE190: -1 | AF190: -1 | AG190: -1 | AH190: -1 | AI190: -1 | AJ190: -1 | AK190: -1 | AL190: -1 | AM190: -1 | AN190: -1 | AO190: -1 | AP190: -1 | AQ190: -1
C191: Transport (Flug, Bahn, etc.) | D191: -37 | G191: -1 | H191: -1 | I191: -1 | J191: -1 | K191: -1 | L191: -1 | M191: -1 | N191: -1 | O191: -1 | P191: -1 | Q191: -1 | R191: -1 | S191: -1 | T191: -1 | U191: -1 | V191: -1 | W191: -1 | X191: -1 | Y191: -1 | Z191: -1 | AA191: -1 | AB191: -1 | AC191: -1 | AD191: -1 | AE191: -1 | AF191: -1 | AG191: -1 | AH191: -1 | AI191: -1 | AJ191: -1 | AK191: -1 | AL191: -1 | AM191: -1 | AN191: -1 | AO191: -1 | AP191: -1 | AQ191: -1
C192: Unterkunft | D192: -37 | G192: -1 | H192: -1 | I192: -1 | J192: -1 | K192: -1 | L192: -1 | M192: -1 | N192: -1 | O192: -1 | P192: -1 | Q192: -1 | R192: -1 | S192: -1 | T192: -1 | U192: -1 | V192: -1 | W192: -1 | X192: -1 | Y192: -1 | Z192: -1 | AA192: -1 | AB192: -1 | AC192: -1 | AD192: -1 | AE192: -1 | AF192: -1 | AG192: -1 | AH192: -1 | AI192: -1 | AJ192: -1 | AK192: -1 | AL192: -1 | AM192: -1 | AN192: -1 | AO192: -1 | AP192: -1 | AQ192: -1
C193: Verpflegung | D193: -37 | G193: -1 | H193: -1 | I193: -1 | J193: -1 | K193: -1 | L193: -1 | M193: -1 | N193: -1 | O193: -1 | P193: -1 | Q193: -1 | R193: -1 | S193: -1 | T193: -1 | U193: -1 | V193: -1 | W193: -1 | X193: -1 | Y193: -1 | Z193: -1 | AA193: -1 | AB193: -1 | AC193: -1 | AD193: -1 | AE193: -1 | AF193: -1 | AG193: -1 | AH193: -1 | AI193: -1 | AJ193: -1 | AK193: -1 | AL193: -1 | AM193: -1 | AN193: -1 | AO193: -1 | AP193: -1 | AQ193: -1
C194: Platzhalter 51 | D194: -37 | G194: -1 | H194: -1 | I194: -1 | J194: -1 | K194: -1 | L194: -1 | M194: -1 | N194: -1 | O194: -1 | P194: -1 | Q194: -1 | R194: -1 | S194: -1 | T194: -1 | U194: -1 | V194: -1 | W194: -1 | X194: -1 | Y194: -1 | Z194: -1 | AA194: -1 | AB194: -1 | AC194: -1 | AD194: -1 | AE194: -1 | AF194: -1 | AG194: -1 | AH194: -1 | AI194: -1 | AJ194: -1 | AK194: -1 | AL194: -1 | AM194: -1 | AN194: -1 | AO194: -1 | AP194: -1 | AQ194: -1
C195: Platzhalter 52 | D195: -37 | G195: -1 | H195: -1 | I195: -1 | J195: -1 | K195: -1 | L195: -1 | M195: -1 | N195: -1 | O195: -1 | P195: -1 | Q195: -1 | R195: -1 | S195: -1 | T195: -1 | U195: -1 | V195: -1 | W195: -1 | X195: -1 | Y195: -1 | Z195: -1 | AA195: -1 | AB195: -1 | AC195: -1 | AD195: -1 | AE195: -1 | AF195: -1 | AG195: -1 | AH195: -1 | AI195: -1 | AJ195: -1 | AK195: -1 | AL195: -1 | AM195: -1 | AN195: -1 | AO195: -1 | AP195: -1 | AQ195: -1
C196: Platzhalter 53 | D196: =IF(SUM(G196:AQ196)<>0,SUM(G196:AQ196),"") -> -37 | G196: -1 | H196: -1 | I196: -1 | J196: -1 | K196: -1 | L196: -1 | M196: -1 | N196: -1 | O196: -1 | P196: -1 | Q196: -1 | R196: -1 | S196: -1 | T196: -1 | U196: -1 | V196: -1 | W196: -1 | X196: -1 | Y196: -1 | Z196: -1 | AA196: -1 | AB196: -1 | AC196: -1 | AD196: -1 | AE196: -1 | AF196: -1 | AG196: -1 | AH196: -1 | AI196: -1 | AJ196: -1 | AK196: -1 | AL196: -1 | AM196: -1 | AN196: -1 | AO196: -1 | AP196: -1 | AQ196: -1
C197: Sonstiges | D197: =IF(SUM(G197:AQ197)<>0,SUM(G197:AQ197),"") -> -37 | G197: -1 | H197: -1 | I197: -1 | J197: -1 | K197: -1 | L197: -1 | M197: -1 | N197: -1 | O197: -1 | P197: -1 | Q197: -1 | R197: -1 | S197: -1 | T197: -1 | U197: -1 | V197: -1 | W197: -1 | X197: -1 | Y197: -1 | Z197: -1 | AA197: -1 | AB197: -1 | AC197: -1 | AD197: -1 | AE197: -1 | AF197: -1 | AG197: -1 | AH197: -1 | AI197: -1 | AJ197: -1 | AK197: -1 | AL197: -1 | AM197: -1 | AN197: -1 | AO197: -1 | AP197: -1 | AQ197: -1
B199: Wellness/Körperpflege | C199: Fitnessstudio | D199: =IF(SUM(G199:AQ199)<>0,SUM(G199:AQ199),"") -> -74 | E199: =IF(SUM(D199:D205)<>0,SUM(D199:D205),"") -> -481 | F199: =IFERROR(E199/$E$240," ") -> 0.0599078341 | G199: =IF(G44="","",G44) -> -2 | H199: -2 | I199: -2 | J199: -2 | K199: -2 | L199: -2 | M199: -2 | N199: -2 | O199: -2 | P199: -2 | Q199: -2 | R199: -2 | S199: -2 | T199: -2 | U199: -2 | V199: -2 | W199: -2 | X199: -2 | Y199: -2 | Z199: -2 | AA199: -2 | AB199: -2 | AC199: -2 | AD199: -2 | AE199: -2 | AF199: -2 | AG199: -2 | AH199: -2 | AI199: -2 | AJ199: -2 | AK199: -2 | AL199: -2 | AM199: -2 | AN199: -2 | AO199: -2 | AP199: -2 | AQ199: -2
C200: Körperpflege/ Kosmetik,/Frisör | D200: -111 | G200: -3 | H200: -3 | I200: -3 | J200: -3 | K200: -3 | L200: -3 | M200: -3 | N200: -3 | O200: -3 | P200: -3 | Q200: -3 | R200: -3 | S200: -3 | T200: -3 | U200: -3 | V200: -3 | W200: -3 | X200: -3 | Y200: -3 | Z200: -3 | AA200: -3 | AB200: -3 | AC200: -3 | AD200: -3 | AE200: -3 | AF200: -3 | AG200: -3 | AH200: -3 | AI200: -3 | AJ200: -3 | AK200: -3 | AL200: -3 | AM200: -3 | AN200: -3 | AO200: -3 | AP200: -3 | AQ200: -3
A201: Eingabe | C201: Wellness (Massage,Sauna, etc.) | D201: -148 | G201: -4 | H201: -4 | I201: -4 | J201: -4 | K201: -4 | L201: -4 | M201: -4 | N201: -4 | O201: -4 | P201: -4 | Q201: -4 | R201: -4 | S201: -4 | T201: -4 | U201: -4 | V201: -4 | W201: -4 | X201: -4 | Y201: -4 | Z201: -4 | AA201: -4 | AB201: -4 | AC201: -4 | AD201: -4 | AE201: -4 | AF201: -4 | AG201: -4 | AH201: -4 | AI201: -4 | AJ201: -4 | AK201: -4 | AL201: -4 | AM201: -4 | AN201: -4 | AO201: -4 | AP201: -4 | AQ201: -4
C202: Platzhalter 54 | D202: =IF(SUM(G202:AQ202)<>0,SUM(G202:AQ202),"") -> -37 | G202: -1 | H202: -1 | I202: -1 | J202: -1 | K202: -1 | L202: -1 | M202: -1 | N202: -1 | O202: -1 | P202: -1 | Q202: -1 | R202: -1 | S202: -1 | T202: -1 | U202: -1 | V202: -1 | W202: -1 | X202: -1 | Y202: -1 | Z202: -1 | AA202: -1 | AB202: -1 | AC202: -1 | AD202: -1 | AE202: -1 | AF202: -1 | AG202: -1 | AH202: -1 | AI202: -1 | AJ202: -1 | AK202: -1 | AL202: -1 | AM202: -1 | AN202: -1 | AO202: -1 | AP202: -1 | AQ202: -1
C203: Platzhalter 55 | D203: -37 | G203: -1 | H203: -1 | I203: -1 | J203: -1 | K203: -1 | L203: -1 | M203: -1 | N203: -1 | O203: -1 | P203: -1 | Q203: -1 | R203: -1 | S203: -1 | T203: -1 | U203: -1 | V203: -1 | W203: -1 | X203: -1 | Y203: -1 | Z203: -1 | AA203: -1 | AB203: -1 | AC203: -1 | AD203: -1 | AE203: -1 | AF203: -1 | AG203: -1 | AH203: -1 | AI203: -1 | AJ203: -1 | AK203: -1 | AL203: -1 | AM203: -1 | AN203: -1 | AO203: -1 | AP203: -1 | AQ203: -1
C204: Platzhalter 56 | D204: =IF(SUM(G204:AQ204)<>0,SUM(G204:AQ204),"") -> -37 | G204: -1 | H204: -1 | I204: -1 | J204: -1 | K204: -1 | L204: -1 | M204: -1 | N204: -1 | O204: -1 | P204: -1 | Q204: -1 | R204: -1 | S204: -1 | T204: -1 | U204: -1 | V204: -1 | W204: -1 | X204: -1 | Y204: -1 | Z204: -1 | AA204: -1 | AB204: -1 | AC204: -1 | AD204: -1 | AE204: -1 | AF204: -1 | AG204: -1 | AH204: -1 | AI204: -1 | AJ204: -1 | AK204: -1 | AL204: -1 | AM204: -1 | AN204: -1 | AO204: -1 | AP204: -1 | AQ204: -1
C205: Sonstiges | D205: -37 | G205: -1 | H205: -1 | I205: -1 | J205: -1 | K205: -1 | L205: -1 | M205: -1 | N205: -1 | O205: -1 | P205: -1 | Q205: -1 | R205: -1 | S205: -1 | T205: -1 | U205: -1 | V205: -1 | W205: -1 | X205: -1 | Y205: -1 | Z205: -1 | AA205: -1 | AB205: -1 | AC205: -1 | AD205: -1 | AE205: -1 | AF205: -1 | AG205: -1 | AH205: -1 | AI205: -1 | AJ205: -1 | AK205: -1 | AL205: -1 | AM205: -1 | AN205: -1 | AO205: -1 | AP205: -1 | AQ205: -1
B207: Wohnen | C207: Beleuchtung | D207: -37 | E207: =IF(SUM(D207:D214)<>0,SUM(D207:D215),"") -> -333 | F207: =IFERROR(E207/$E$240," ") -> 0.04147465438 | G207: -1 | H207: -1 | I207: -1 | J207: -1 | K207: -1 | L207: -1 | M207: -1 | N207: -1 | O207: -1 | P207: -1 | Q207: -1 | R207: -1 | S207: -1 | T207: -1 | U207: -1 | V207: -1 | W207: -1 | X207: -1 | Y207: -1 | Z207: -1 | AA207: -1 | AB207: -1 | AC207: -1 | AD207: -1 | AE207: -1 | AF207: -1 | AG207: -1 | AH207: -1 | AI207: -1 | AJ207: -1 | AK207: -1 | AL207: -1 | AM207: -1 | AN207: -1 | AO207: -1 | AP207: -1 | AQ207: -1
C208: Einrichtungsgegenstände | D208: -37 | G208: -1 | H208: -1 | I208: -1 | J208: -1 | K208: -1 | L208: -1 | M208: -1 | N208: -1 | O208: -1 | P208: -1 | Q208: -1 | R208: -1 | S208: -1 | T208: -1 | U208: -1 | V208: -1 | W208: -1 | X208: -1 | Y208: -1 | Z208: -1 | AA208: -1 | AB208: -1 | AC208: -1 | AD208: -1 | AE208: -1 | AF208: -1 | AG208: -1 | AH208: -1 | AI208: -1 | AJ208: -1 | AK208: -1 | AL208: -1 | AM208: -1 | AN208: -1 | AO208: -1 | AP208: -1 | AQ208: -1
C209: Haushaltsnahe Dienstleistungen | D209: -37 | G209: -1 | H209: -1 | I209: -1 | J209: -1 | K209: -1 | L209: -1 | M209: -1 | N209: -1 | O209: -1 | P209: -1 | Q209: -1 | R209: -1 | S209: -1 | T209: -1 | U209: -1 | V209: -1 | W209: -1 | X209: -1 | Y209: -1 | Z209: -1 | AA209: -1 | AB209: -1 | AC209: -1 | AD209: -1 | AE209: -1 | AF209: -1 | AG209: -1 | AH209: -1 | AI209: -1 | AJ209: -1 | AK209: -1 | AL209: -1 | AM209: -1 | AN209: -1 | AO209: -1 | AP209: -1 | AQ209: -1
C210: Haushalts- und Küchengeräte | D210: -37 | G210: -1 | H210: -1 | I210: -1 | J210: -1 | K210: -1 | L210: -1 | M210: -1 | N210: -1 | O210: -1 | P210: -1 | Q210: -1 | R210: -1 | S210: -1 | T210: -1 | U210: -1 | V210: -1 | W210: -1 | X210: -1 | Y210: -1 | Z210: -1 | AA210: -1 | AB210: -1 | AC210: -1 | AD210: -1 | AE210: -1 | AF210: -1 | AG210: -1 | AH210: -1 | AI210: -1 | AJ210: -1 | AK210: -1 | AL210: -1 | AM210: -1 | AN210: -1 | AO210: -1 | AP210: -1 | AQ210: -1
C211: Möbel | D211: -37 | G211: -1 | H211: -1 | I211: -1 | J211: -1 | K211: -1 | L211: -1 | M211: -1 | N211: -1 | O211: -1 | P211: -1 | Q211: -1 | R211: -1 | S211: -1 | T211: -1 | U211: -1 | V211: -1 | W211: -1 | X211: -1 | Y211: -1 | Z211: -1 | AA211: -1 | AB211: -1 | AC211: -1 | AD211: -1 | AE211: -1 | AF211: -1 | AG211: -1 | AH211: -1 | AI211: -1 | AJ211: -1 | AK211: -1 | AL211: -1 | AM211: -1 | AN211: -1 | AO211: -1 | AP211: -1 | AQ211: -1
C212: Platzhalter 57 | D212: -37 | G212: -1 | H212: -1 | I212: -1 | J212: -1 | K212: -1 | L212: -1 | M212: -1 | N212: -1 | O212: -1 | P212: -1 | Q212: -1 | R212: -1 | S212: -1 | T212: -1 | U212: -1 | V212: -1 | W212: -1 | X212: -1 | Y212: -1 | Z212: -1 | AA212: -1 | AB212: -1 | AC212: -1 | AD212: -1 | AE212: -1 | AF212: -1 | AG212: -1 | AH212: -1 | AI212: -1 | AJ212: -1 | AK212: -1 | AL212: -1 | AM212: -1 | AN212: -1 | AO212: -1 | AP212: -1 | AQ212: -1
C213: Platzhalter 58 | D213: -37 | G213: -1 | H213: -1 | I213: -1 | J213: -1 | K213: -1 | L213: -1 | M213: -1 | N213: -1 | O213: -1 | P213: -1 | Q213: -1 | R213: -1 | S213: -1 | T213: -1 | U213: -1 | V213: -1 | W213: -1 | X213: -1 | Y213: -1 | Z213: -1 | AA213: -1 | AB213: -1 | AC213: -1 | AD213: -1 | AE213: -1 | AF213: -1 | AG213: -1 | AH213: -1 | AI213: -1 | AJ213: -1 | AK213: -1 | AL213: -1 | AM213: -1 | AN213: -1 | AO213: -1 | AP213: -1 | AQ213: -1
C214: Platzhalter 59 | D214: =IF(SUM(G214:AQ214)<>0,SUM(G214:AQ214),"") -> -37 | G214: -1 | H214: -1 | I214: -1 | J214: -1 | K214: -1 | L214: -1 | M214: -1 | N214: -1 | O214: -1 | P214: -1 | Q214: -1 | R214: -1 | S214: -1 | T214: -1 | U214: -1 | V214: -1 | W214: -1 | X214: -1 | Y214: -1 | Z214: -1 | AA214: -1 | AB214: -1 | AC214: -1 | AD214: -1 | AE214: -1 | AF214: -1 | AG214: -1 | AH214: -1 | AI214: -1 | AJ214: -1 | AK214: -1 | AL214: -1 | AM214: -1 | AN214: -1 | AO214: -1 | AP214: -1 | AQ214: -1
C215: Sonstiges | D215: =IF(SUM(G215:AQ215)<>0,SUM(G215:AQ215),"") -> -37 | G215: -1 | H215: -1 | I215: -1 | J215: -1 | K215: -1 | L215: -1 | M215: -1 | N215: -1 | O215: -1 | P215: -1 | Q215: -1 | R215: -1 | S215: -1 | T215: -1 | U215: -1 | V215: -1 | W215: -1 | X215: -1 | Y215: -1 | Z215: -1 | AA215: -1 | AB215: -1 | AC215: -1 | AD215: -1 | AE215: -1 | AF215: -1 | AG215: -1 | AH215: -1 | AI215: -1 | AJ215: -1 | AK215: -1 | AL215: -1 | AM215: -1 | AN215: -1 | AO215: -1 | AP215: -1 | AQ215: -1
B217: Platzhalter 60 | C217: Platzhalter 61 | D217: -37 | E217: =IF(SUM(D217:D221)<>0,SUM(D217:D2207),"") -> -666 | F217: =IFERROR(E217/$E$240," ") -> 0.08294930876 | G217: -1 | H217: -1 | I217: -1 | J217: -1 | K217: -1 | L217: -1 | M217: -1 | N217: -1 | O217: -1 | P217: -1 | Q217: -1 | R217: -1 | S217: -1 | T217: -1 | U217: -1 | V217: -1 | W217: -1 | X217: -1 | Y217: -1 | Z217: -1 | AA217: -1 | AB217: -1 | AC217: -1 | AD217: -1 | AE217: -1 | AF217: -1 | AG217: -1 | AH217: -1 | AI217: -1 | AJ217: -1 | AK217: -1 | AL217: -1 | AM217: -1 | AN217: -1 | AO217: -1 | AP217: -1 | AQ217: -1
C218: Platzhalter 62 | D218: -37 | G218: -1 | H218: -1 | I218: -1 | J218: -1 | K218: -1 | L218: -1 | M218: -1 | N218: -1 | O218: -1 | P218: -1 | Q218: -1 | R218: -1 | S218: -1 | T218: -1 | U218: -1 | V218: -1 | W218: -1 | X218: -1 | Y218: -1 | Z218: -1 | AA218: -1 | AB218: -1 | AC218: -1 | AD218: -1 | AE218: -1 | AF218: -1 | AG218: -1 | AH218: -1 | AI218: -1 | AJ218: -1 | AK218: -1 | AL218: -1 | AM218: -1 | AN218: -1 | AO218: -1 | AP218: -1 | AQ218: -1
C219: Platzhalter 63 | D219: -37 | G219: -1 | H219: -1 | I219: -1 | J219: -1 | K219: -1 | L219: -1 | M219: -1 | N219: -1 | O219: -1 | P219: -1 | Q219: -1 | R219: -1 | S219: -1 | T219: -1 | U219: -1 | V219: -1 | W219: -1 | X219: -1 | Y219: -1 | Z219: -1 | AA219: -1 | AB219: -1 | AC219: -1 | AD219: -1 | AE219: -1 | AF219: -1 | AG219: -1 | AH219: -1 | AI219: -1 | AJ219: -1 | AK219: -1 | AL219: -1 | AM219: -1 | AN219: -1 | AO219: -1 | AP219: -1 | AQ219: -1
C220: Platzhalter 64 | D220: -37 | G220: -1 | H220: -1 | I220: -1 | J220: -1 | K220: -1 | L220: -1 | M220: -1 | N220: -1 | O220: -1 | P220: -1 | Q220: -1 | R220: -1 | S220: -1 | T220: -1 | U220: -1 | V220: -1 | W220: -1 | X220: -1 | Y220: -1 | Z220: -1 | AA220: -1 | AB220: -1 | AC220: -1 | AD220: -1 | AE220: -1 | AF220: -1 | AG220: -1 | AH220: -1 | AI220: -1 | AJ220: -1 | AK220: -1 | AL220: -1 | AM220: -1 | AN220: -1 | AO220: -1 | AP220: -1 | AQ220: -1
C221: Platzhalter 65 | D221: =IF(SUM(G221:AQ221)<>0,SUM(G221:AQ221),"") -> -37 | G221: -1 | H221: -1 | I221: -1 | J221: -1 | K221: -1 | L221: -1 | M221: -1 | N221: -1 | O221: -1 | P221: -1 | Q221: -1 | R221: -1 | S221: -1 | T221: -1 | U221: -1 | V221: -1 | W221: -1 | X221: -1 | Y221: -1 | Z221: -1 | AA221: -1 | AB221: -1 | AC221: -1 | AD221: -1 | AE221: -1 | AF221: -1 | AG221: -1 | AH221: -1 | AI221: -1 | AJ221: -1 | AK221: -1 | AL221: -1 | AM221: -1 | AN221: -1 | AO221: -1 | AP221: -1 | AQ221: -1
C222: Sonstiges | D222: =IF(SUM(G222:AQ222)<>0,SUM(G222:AQ222),"") -> -37 | G222: -1 | H222: -1 | I222: -1 | J222: -1 | K222: -1 | L222: -1 | M222: -1 | N222: -1 | O222: -1 | P222: -1 | Q222: -1 | R222: -1 | S222: -1 | T222: -1 | U222: -1 | V222: -1 | W222: -1 | X222: -1 | Y222: -1 | Z222: -1 | AA222: -1 | AB222: -1 | AC222: -1 | AD222: -1 | AE222: -1 | AF222: -1 | AG222: -1 | AH222: -1 | AI222: -1 | AJ222: -1 | AK222: -1 | AL222: -1 | AM222: -1 | AN222: -1 | AO222: -1 | AP222: -1 | AQ222: -1
B224: Platzhalter 66 | C224: Platzhalter 67 | D224: -37 | E224: =IF(SUM(D224:D228)<>0,SUM(D224:D229),"") -> -222 | F224: =IFERROR(E224/$E$240," ") -> 0.02764976959 | G224: -1 | H224: -1 | I224: -1 | J224: -1 | K224: -1 | L224: -1 | M224: -1 | N224: -1 | O224: -1 | P224: -1 | Q224: -1 | R224: -1 | S224: -1 | T224: -1 | U224: -1 | V224: -1 | W224: -1 | X224: -1 | Y224: -1 | Z224: -1 | AA224: -1 | AB224: -1 | AC224: -1 | AD224: -1 | AE224: -1 | AF224: -1 | AG224: -1 | AH224: -1 | AI224: -1 | AJ224: -1 | AK224: -1 | AL224: -1 | AM224: -1 | AN224: -1 | AO224: -1 | AP224: -1 | AQ224: -1
C225: Platzhalter 68 | D225: -37 | G225: -1 | H225: -1 | I225: -1 | J225: -1 | K225: -1 | L225: -1 | M225: -1 | N225: -1 | O225: -1 | P225: -1 | Q225: -1 | R225: -1 | S225: -1 | T225: -1 | U225: -1 | V225: -1 | W225: -1 | X225: -1 | Y225: -1 | Z225: -1 | AA225: -1 | AB225: -1 | AC225: -1 | AD225: -1 | AE225: -1 | AF225: -1 | AG225: -1 | AH225: -1 | AI225: -1 | AJ225: -1 | AK225: -1 | AL225: -1 | AM225: -1 | AN225: -1 | AO225: -1 | AP225: -1 | AQ225: -1
C226: Platzhalter 69 | D226: -37 | G226: -1 | H226: -1 | I226: -1 | J226: -1 | K226: -1 | L226: -1 | M226: -1 | N226: -1 | O226: -1 | P226: -1 | Q226: -1 | R226: -1 | S226: -1 | T226: -1 | U226: -1 | V226: -1 | W226: -1 | X226: -1 | Y226: -1 | Z226: -1 | AA226: -1 | AB226: -1 | AC226: -1 | AD226: -1 | AE226: -1 | AF226: -1 | AG226: -1 | AH226: -1 | AI226: -1 | AJ226: -1 | AK226: -1 | AL226: -1 | AM226: -1 | AN226: -1 | AO226: -1 | AP226: -1 | AQ226: -1
C227: Platzhalter 70 | D227: -37 | G227: -1 | H227: -1 | I227: -1 | J227: -1 | K227: -1 | L227: -1 | M227: -1 | N227: -1 | O227: -1 | P227: -1 | Q227: -1 | R227: -1 | S227: -1 | T227: -1 | U227: -1 | V227: -1 | W227: -1 | X227: -1 | Y227: -1 | Z227: -1 | AA227: -1 | AB227: -1 | AC227: -1 | AD227: -1 | AE227: -1 | AF227: -1 | AG227: -1 | AH227: -1 | AI227: -1 | AJ227: -1 | AK227: -1 | AL227: -1 | AM227: -1 | AN227: -1 | AO227: -1 | AP227: -1 | AQ227: -1
... 56 more rows

Sheet Ausgabe Jan (hidden)
A1: Hauptkategorie | B1: Unterkategorie | C1: Monatliche Summe Unter- kategorie | D1: Monatliche Summe Haupt- kategorie | E1: Prozentuale Verteilung Haupt- kategorie | F1: ="Monatliche Ausgaben "&J101&" "&J102&"" -> Monatliche Ausgaben Januar 2024
F2: =IF(WEEKNUM(AK97,21)>=52,"-----",(TEXT(AM97,"TTT"))&" "&(TEXT(AM97,"TT"))&"."&$J93) -> ----- | G2: =IF(WEEKNUM(AL97,21)>=52,"-----",(TEXT(AL97,"TTT"))&" "&(TEXT(AL97,"TT"))&"."&$J93) -> ----- | H2: =IF(WEEKNUM(AM97,21)>=52,"-----",(TEXT(AM97,"TTT"))&" "&(TEXT(AM97,"TT"))&"."&$J93) -> ----- | I2: =IF(WEEKNUM(I105,21)>=52,"-----",(TEXT(I105,"TTT"))&" "&(TEXT(I105,"TT"))&"."&$K101) -> Mo 01.1 | J2: =IF(WEEKNUM(J105,21)>=52,"-----",(TEXT(J105,"TTT"))&" "&(TEXT(J105,"TT"))&"."&$K101) -> Di 02.1 | K2: =IF(WEEKNUM(K105,21)>=52,"-----",(TEXT(K105,"TTT"))&" "&(TEXT(K105,"TT"))&"."&$K101) -> Mi 03.1 | L2: =(TEXT(L105,"TTT"))&" "&(TEXT(L105,"TT"))&"."&$K101 -> Do 04.1 | M2: Fr 05.1 | N2: Sa 06.1 | O2: So 07.1 | P2: Mo 08.1 | Q2: Di 09.1 | R2: Mi 10.1 | S2: Do 11.1 | T2: Fr 12.1 | U2: Sa 13.1 | V2: So 14.1 | W2: Mo 15.1 | X2: Di 16.1 | Y2: Mi 17.1 | Z2: Do 18.1 | AA2: Fr 19.1 | AB2: Sa 20.1 | AC2: So 21.1 | AD2: Mo 22.1 | AE2: Di 23.1 | AF2: Mi 24.1 | AG2: Do 25.1 | AH2: =IF(WEEKNUM(AH105,21)<=1,"-----",(TEXT(AH105,"TTT"))&" "&(TEXT(AH105,"TT"))&"."&$K101) -> Fr 26.1 | AI2: =IF(WEEKNUM(AI105,21)<=1,"-----",(TEXT(AI105,"TTT"))&" "&(TEXT(AI105,"TT"))&"."&$K101) -> Sa 27.1 | AJ2: =IF(WEEKNUM(AJ105,21)<=1,"-----",(TEXT(AJ105,"TTT"))&" "&(TEXT(AJ105,"TT"))&"."&$K101) -> So 28.1 | AK2: =IF(WEEKNUM(AK105,21)=1,"-----",IF(AND(DAY(DATE(J102,3,0))=29,J101="Februar"),(TEXT(AK105,"TTT"))&" "&(TEXT(AK105,"TT"))&"."&$K101,IF(J101="Februar","-------",(TEXT(AK105,"TTT"))&" "&(TEXT(AK105,"TT"))&"."&$K101))) -> Mo 29.1 | AL2: =IF(WEEKNUM(AL105,21)=1,"-----",IF(J101="Februar","-------",(TEXT(AL105,"TTT"))&" "&(TEXT(AL105,"TT"))&"."&$K101)) -> Di 30.1 | AM2: =IF(WEEKNUM(AM105,21)=1,"-----",IF(OR(J101="Februar",J101="April",J101="Juni",J101="September",J101="November"),"-------",(TEXT(AM105,"TTT"))&" "&(TEXT(AM105,"TT"))&"."&$K101)) -> Mi 31.1 | AN2: =IF(OR(K101<>12,WEEKNUM(I113,21)=1),"-----",(TEXT(I113,"TTT"))&" "&(TEXT(I113,"TT"))&"."&$K109) -> ----- | AO2: =IF(OR(K101<>12,WEEKNUM(I113,21)=1),"-----",(TEXT(J113,"TTT"))&" "&(TEXT(J113,"TT"))&"."&$K109) -> ----- | AP2: =IF(OR(K101<>12,WEEKNUM(I113,21)=1),"-----",(TEXT(K113,"TTT"))&" "&(TEXT(K113,"TT"))&"."&$K109) -> -----
F3: =IF(WEEKNUM(AK97,21)>=52,"-----","Wo "&WEEKNUM(AK97,21)) -> ----- | G3: =IF(WEEKNUM(AL97,21)>=52,"-----","Wo "&WEEKNUM(AL97,21)) -> ----- | H3: =IF(WEEKNUM(AM97,21)>=52,"-----","Wo "&WEEKNUM(AM97,21)) -> ----- | I3: =IF(WEEKNUM(I105,21)>=52,"-----","Wo "&WEEKNUM(I105,21)) -> Wo 1 | J3: =IF(WEEKNUM(J105,21)>=52,"-----","Wo "&WEEKNUM(J105,21)) -> Wo 1 | K3: =IF(WEEKNUM(K105,21)>=52,"-----","Wo "&WEEKNUM(K105,21)) -> Wo 1 | L3: ="Wo "&WEEKNUM(L105,21) -> Wo 1 | M3: Wo 1 | N3: Wo 1 | O3: Wo 1 | P3: Wo 2 | Q3: Wo 2 | R3: Wo 2 | S3: Wo 2 | T3: Wo 2 | U3: Wo 2 | V3: Wo 2 | W3: Wo 3 | X3: Wo 3 | Y3: Wo 3 | Z3: Wo 3 | AA3: Wo 3 | AB3: Wo 3 | AC3: Wo 3 | AD3: Wo 4 | AE3: Wo 4 | AF3: Wo 4 | AG3: Wo 4 | AH3: =IF(WEEKNUM(AH105,21)<=1,"-----","Wo "&WEEKNUM(AH105,21)) -> Wo 4 | AI3: =IF(WEEKNUM(AI105,21)<=1,"-----","Wo "&WEEKNUM(AI105,21)) -> Wo 4 | AJ3: =IF(WEEKNUM(AJ105,21)<=1,"-----","Wo "&WEEKNUM(AJ105,21)) -> Wo 4 | AK3: =IF(WEEKNUM(AK105,21)=1,"-----",IF(AND(DAY(DATE(J102,3,0))=29,J101="Februar"),"Wo "&WEEKNUM(AK105,21),IF(J101="Februar","-----","Wo "&WEEKNUM(AK105,21)))) -> Wo 5 | AL3: =IF(WEEKNUM(AL105,21)=1,"-----",IF(J101="Februar","-----","Wo "&WEEKNUM(AL105,21))) -> Wo 5 | AM3: =IF(WEEKNUM(AM105,21)=1,"-----",IF(OR(J101="Februar",J101="April",J101="Juni",J101="September",J101="November"),"------","Wo "&WEEKNUM(AM105,21))) -> Wo 5 | AN3: =IF(OR(K101<>12,WEEKNUM(I113,21)=1),"-----","Wo "&WEEKNUM(I113,21)) -> ----- | AO3: =IF(OR(K101<>12,WEEKNUM(I113,21)=1),"-----","Wo "&WEEKNUM(J113,21)) -> ----- | AP3: =IF(OR(K101<>12,WEEKNUM(I113,21)=1),"-----","Wo "&WEEKNUM(K113,21)) -> -----
N4: Tagessumme | X4: Tagessumme | AH4: Tagessumme
F5: =IF(WEEKNUM(AK97,21)>=52,"-----",IF(SUM(F10:F66)<>0,SUM(F10:F66),"")) -> ----- | G5: =IF(WEEKNUM(AL97,21)>=52,"-----",IF(SUM(G10:G66)<>0,SUM(G10:G66),"")) -> ----- | H5: =IF(WEEKNUM(AM97,21)>=52,"-----",IF(SUM(H10:H66)<>0,SUM(H10:H66),"")) -> ----- | I5: =IF(WEEKNUM(I105,21)>=52,"-----",IF(SUM(I10:I66)<>0,SUM(I10:I66),"")) -> -295 | J5: =IF(WEEKNUM(J105,21)>=52,"-----",IF(J10<>0,SUM(J10:J66),"")) -> -46 | K5: =IF(WEEKNUM(K105,21)>52,"-----",IF(K10<>0,SUM(K10:K66),"")) -> -545 | L5: =IF(L10<>0,SUM(L10:L66),"") -> -46 | M5: -46 | N5: -46 | O5: -46 | P5: -46 | Q5: -46 | R5: -46 | S5: -46 | T5: -46 | U5: -46 | V5: -46 | W5: -46 | X5: -46 | Y5: -46 | Z5: -46 | AA5: -46 | AB5: -46 | AC5: -46 | AD5: -46 | AE5: -46 | AF5: -46 | AG5: -46 | AH5: =IF(WEEKNUM(AH105,21)<=1,"-----",IF(AH10<>0,SUM(AH10:AH66),"")) -> -46 | AI5: =IF(WEEKNUM(AI105,21)<=1,"-----",IF(AI10<>0,SUM(AI10:AI66),"")) -> -46 | AJ5: =IF(WEEKNUM(AJ105,21)<=1,"-----",IF(AJ10<>0,SUM(AJ10:AJ66),"")) -> -46 | AK5: =IF(WEEKNUM(AK105,21)=1,"-----",IF(AND(DAY(DATE(J102,3,0))=29,J101="Februar"),IF(AK10<>0,SUM(AK10:AK66),""),IF(J101="Februar","------",IF(AK10<>0,SUM(AK10:AK66),"")))) -> -46 | AL5: =IF(WEEKNUM(AL105,21)=1,"-----",IF(J101="Februar","------",IF(AL10<>0,SUM(AL10:AL66),""))) -> -46 | AM5: =IF(WEEKNUM(AM105,21)=1,"-----",IF(OR(J101="Februar",J101="April",J101="Juni",J101="September",J101="November"),"------",(IF(AM10<>0,SUM(AM10:AM66),"")))) -> -46 | AN5: =IF(OR(K101<>12,WEEKNUM(I113,21)=1),"-----",IF(AN10<>0,SUM(AN10:AN66),"")) -> ----- | AO5: =IF(OR(K101<>12,WEEKNUM(I113,21)=1),"-----",IF(AO10<>0,SUM(AO10:AO66),"")) -> ----- | AP5: =IF(OR(K101<>12,WEEKNUM(I113,21)=1),"-----",IF(AP10<>0,SUM(AP10:AP66),"")) -> -----
N6: Wochensumme | X6: Wochensumme | AH6: Wochensumme
F8: =IF(WEEKNUM(AK97,21)>=52,"-----","Betrag") -> ----- | G8: =IF(WEEKNUM(AL97,21)>=52,"-----","Betrag") -> ----- | H8: =IF(WEEKNUM(AM97,21)>=52,"-----","Betrag") -> ----- | I8: =IF(WEEKNUM(I105,21)>=52,"-----","Betrag") -> Betrag | J8: =IF(WEEKNUM(J105,21)>=52,"-----","Betrag") -> Betrag | K8: =IF(WEEKNUM(K105,21)>=52,"-----","Betrag") -> Betrag | L8: Betrag | M8: Betrag | N8: Betrag | O8: Betrag | P8: Betrag | Q8: Betrag | R8: Betrag | S8: Betrag | T8: Betrag | U8: Betrag | V8: Betrag | W8: Betrag | X8: Betrag | Y8: Betrag | Z8: Betrag | AA8: Betrag | AB8: Betrag | AC8: Betrag | AD8: Betrag | AE8: Betrag | AF8: Betrag | AG8: Betrag | AH8: =IF(WEEKNUM(AH105,21)<=1,"-----","Betrag") -> Betrag | AI8: =IF(WEEKNUM(AI105,21)<=1,"-----","Betrag") -> Betrag | AJ8: =IF(WEEKNUM(AJ105,21)<=1,"-----","Betrag") -> Betrag | AK8: =IF(WEEKNUM(AK105,21)=1,"-----",IF(AND(DAY(DATE(J102,3,0))=29,J101="Februar"),"Betrag",IF(J101="Februar","------","Betrag"))) -> Betrag | AL8: =IF(WEEKNUM(AL105,21)=1,"-----",IF(J101="Februar","------","Betrag")) -> Betrag | AM8: =IF(WEEKNUM(AM105,21)=1,"-----",IF(OR(J101="Februar",J101="April",J101="Juni",J101="September",J101="November"),"------","Betrag")) -> Betrag | AN8: =IF(OR(K101<>12,WEEKNUM(I113,21)=1),"-----","Betrag") -> ----- | AO8: =IF(OR(K101<>12,WEEKNUM(I113,21)=1),"-----","Betrag") -> ----- | AP8: =IF(OR(K101<>12,WEEKNUM(I113,21)=1),"-----","Betrag") -> -----
A9: Arbeit
B10: Arbeitskleidung/Reinigung | C10: =IF(SUM(F10:AP10)<>0,SUM(F10:AP10),"") -> -37 | F10: -1 | G10: -1 | H10: -1 | I10: -1 | J10: -1 | K10: -1 | L10: -1 | M10: -1 | N10: -1 | O10: -1 | P10: -1 | Q10: -1 | R10: -1 | S10: -1 | T10: -1 | U10: -1 | V10: -1 | W10: -1 | X10: -1 | Y10: -1 | Z10: -1 | AA10: -1 | AB10: -1 | AC10: -1 | AD10: -1 | AE10: -1 | AF10: -1 | AG10: -1 | AH10: -1 | AI10: -1 | AJ10: -1 | AK10: -1 | AL10: -1 | AM10: -1 | AN10: -1 | AO10: -1 | AP10: -1
B11: Verpflegung Frühstück | C11: =IF(SUM(F11:AP11)<>0,SUM(F11:AP11),"") -> -37 | F11: -1 | G11: -1 | H11: -1 | I11: -1 | J11: -1 | K11: -1 | L11: -1 | M11: -1 | N11: -1 | O11: -1 | P11: -1 | Q11: -1 | R11: -1 | S11: -1 | T11: -1 | U11: -1 | V11: -1 | W11: -1 | X11: -1 | Y11: -1 | Z11: -1 | AA11: -1 | AB11: -1 | AC11: -1 | AD11: -1 | AE11: -1 | AF11: -1 | AG11: -1 | AH11: -1 | AI11: -1 | AJ11: -1 | AK11: -1 | AL11: -1 | AM11: -1 | AN11: -1 | AO11: -1 | AP11: -1
B12: Verpflegung Mittag | C12: -37 | D12: =IF(SUM(C10:C12)<>0,SUM(C10:C12),"") -> -111 | E12: =IFERROR(D12/D67," ") -> 0.04530612245 | F12: -1 | G12: -1 | H12: -1 | I12: -1 | J12: -1 | K12: -1 | L12: -1 | M12: -1 | N12: -1 | O12: -1 | P12: -1 | Q12: -1 | R12: -1 | S12: -1 | T12: -1 | U12: -1 | V12: -1 | W12: -1 | X12: -1 | Y12: -1 | Z12: -1 | AA12: -1 | AB12: -1 | AC12: -1 | AD12: -1 | AE12: -1 | AF12: -1 | AG12: -1 | AH12: -1 | AI12: -1 | AJ12: -1 | AK12: -1 | AL12: -1 | AM12: -1 | AN12: -1 | AO12: -1 | AP12: -1
A13: Freizeit | C13: =IF(SUM(I13:AM13)<>0,SUM(I13:AM13),"") -> 
B14: Bar/Cafe/Disco | C14: =IF(SUM(F14:AP14)<>0,SUM(F14:AP14),"") -> -37 | F14: -1 | G14: -1 | H14: -1 | I14: -1 | J14: -1 | K14: -1 | L14: -1 | M14: -1 | N14: -1 | O14: -1 | P14: -1 | Q14: -1 | R14: -1 | S14: -1 | T14: -1 | U14: -1 | V14: -1 | W14: -1 | X14: -1 | Y14: -1 | Z14: -1 | AA14: -1 | AB14: -1 | AC14: -1 | AD14: -1 | AE14: -1 | AF14: -1 | AG14: -1 | AH14: -1 | AI14: -1 | AJ14: -1 | AK14: -1 | AL14: -1 | AM14: -1 | AN14: -1 | AO14: -1 | AP14: -1
B15: Geschenke | C15: =IF(SUM(F15:AP15)<>0,SUM(F15:AP15),"") -> -37 | F15: -1 | G15: -1 | H15: -1 | I15: -1 | J15: -1 | K15: -1 | L15: -1 | M15: -1 | N15: -1 | O15: -1 | P15: -1 | Q15: -1 | R15: -1 | S15: -1 | T15: -1 | U15: -1 | V15: -1 | W15: -1 | X15: -1 | Y15: -1 | Z15: -1 | AA15: -1 | AB15: -1 | AC15: -1 | AD15: -1 | AE15: -1 | AF15: -1 | AG15: -1 | AH15: -1 | AI15: -1 | AJ15: -1 | AK15: -1 | AL15: -1 | AM15: -1 | AN15: -1 | AO15: -1 | AP15: -1
B16: Getränke/Eis/Snacks | C16: -37 | F16: -1 | G16: -1 | H16: -1 | I16: -1 | J16: -1 | K16: -1 | L16: -1 | M16: -1 | N16: -1 | O16: -1 | P16: -1 | Q16: -1 | R16: -1 | S16: -1 | T16: -1 | U16: -1 | V16: -1 | W16: -1 | X16: -1 | Y16: -1 | Z16: -1 | AA16: -1 | AB16: -1 | AC16: -1 | AD16: -1 | AE16: -1 | AF16: -1 | AG16: -1 | AH16: -1 | AI16: -1 | AJ16: -1 | AK16: -1 | AL16: -1 | AM16: -1 | AN16: -1 | AO16: -1 | AP16: -1
B17: Kino/Konzert/Museum/Theater | C17: -37 | F17: -1 | G17: -1 | H17: -1 | I17: -1 | J17: -1 | K17: -1 | L17: -1 | M17: -1 | N17: -1 | O17: -1 | P17: -1 | Q17: -1 | R17: -1 | S17: -1 | T17: -1 | U17: -1 | V17: -1 | W17: -1 | X17: -1 | Y17: -1 | Z17: -1 | AA17: -1 | AB17: -1 | AC17: -1 | AD17: -1 | AE17: -1 | AF17: -1 | AG17: -1 | AH17: -1 | AI17: -1 | AJ17: -1 | AK17: -1 | AL17: -1 | AM17: -1 | AN17: -1 | AO17: -1 | AP17: -1
B18: Restaurantbesuch | C18: -37 | F18: -1 | G18: -1 | H18: -1 | I18: -1 | J18: -1 | K18: -1 | L18: -1 | M18: -1 | N18: -1 | O18: -1 | P18: -1 | Q18: -1 | R18: -1 | S18: -1 | T18: -1 | U18: -1 | V18: -1 | W18: -1 | X18: -1 | Y18: -1 | Z18: -1 | AA18: -1 | AB18: -1 | AC18: -1 | AD18: -1 | AE18: -1 | AF18: -1 | AG18: -1 | AH18: -1 | AI18: -1 | AJ18: -1 | AK18: -1 | AL18: -1 | AM18: -1 | AN18: -1 | AO18: -1 | AP18: -1
B19: Sportartikel | C19: -37 | F19: -1 | G19: -1 | H19: -1 | I19: -1 | J19: -1 | K19: -1 | L19: -1 | M19: -1 | N19: -1 | O19: -1 | P19: -1 | Q19: -1 | R19: -1 | S19: -1 | T19: -1 | U19: -1 | V19: -1 | W19: -1 | X19: -1 | Y19: -1 | Z19: -1 | AA19: -1 | AB19: -1 | AC19: -1 | AD19: -1 | AE19: -1 | AF19: -1 | AG19: -1 | AH19: -1 | AI19: -1 | AJ19: -1 | AK19: -1 | AL19: -1 | AM19: -1 | AN19: -1 | AO19: -1 | AP19: -1
B20: Volksfest | C20: -37 | D20: =IF(SUM(C14:C20)<>0,SUM(C14:C20),"") -> -259 | E20: =IFERROR(D20/D67," ") -> 0.1057142857 | F20: -1 | G20: -1 | H20: -1 | I20: -1 | J20: -1 | K20: -1 | L20: -1 | M20: -1 | N20: -1 | O20: -1 | P20: -1 | Q20: -1 | R20: -1 | S20: -1 | T20: -1 | U20: -1 | V20: -1 | W20: -1 | X20: -1 | Y20: -1 | Z20: -1 | AA20: -1 | AB20: -1 | AC20: -1 | AD20: -1 | AE20: -1 | AF20: -1 | AG20: -1 | AH20: -1 | AI20: -1 | AJ20: -1 | AK20: -1 | AL20: -1 | AM20: -1 | AN20: -1 | AO20: -1 | AP20: -1
A21: Lebenshaltung/ Drogerie/Apothke
B22: Büroartikel | C22: =IF(SUM(F22:AP22)<>0,SUM(F22:AP22),"") -> -37 | F22: -1 | G22: -1 | H22: -1 | I22: -1 | J22: -1 | K22: -1 | L22: -1 | M22: -1 | N22: -1 | O22: -1 | P22: -1 | Q22: -1 | R22: -1 | S22: -1 | T22: -1 | U22: -1 | V22: -1 | W22: -1 | X22: -1 | Y22: -1 | Z22: -1 | AA22: -1 | AB22: -1 | AC22: -1 | AD22: -1 | AE22: -1 | AF22: -1 | AG22: -1 | AH22: -1 | AI22: -1 | AJ22: -1 | AK22: -1 | AL22: -1 | AM22: -1 | AN22: -1 | AO22: -1 | AP22: -1
B23: Drogerieartikel | C23: =IF(SUM(F23:AP23)<>0,SUM(F23:AP23),"") -> -37 | F23: -1 | G23: -1 | H23: -1 | I23: -1 | J23: -1 | K23: -1 | L23: -1 | M23: -1 | N23: -1 | O23: -1 | P23: -1 | Q23: -1 | R23: -1 | S23: -1 | T23: -1 | U23: -1 | V23: -1 | W23: -1 | X23: -1 | Y23: -1 | Z23: -1 | AA23: -1 | AB23: -1 | AC23: -1 | AD23: -1 | AE23: -1 | AF23: -1 | AG23: -1 | AH23: -1 | AI23: -1 | AJ23: -1 | AK23: -1 | AL23: -1 | AM23: -1 | AN23: -1 | AO23: -1 | AP23: -1
B24: Lebensmittel, Getränke | C24: -37 | F24: -1 | G24: -1 | H24: -1 | I24: -1 | J24: -1 | K24: -1 | L24: -1 | M24: -1 | N24: -1 | O24: -1 | P24: -1 | Q24: -1 | R24: -1 | S24: -1 | T24: -1 | U24: -1 | V24: -1 | W24: -1 | X24: -1 | Y24: -1 | Z24: -1 | AA24: -1 | AB24: -1 | AC24: -1 | AD24: -1 | AE24: -1 | AF24: -1 | AG24: -1 | AH24: -1 | AI24: -1 | AJ24: -1 | AK24: -1 | AL24: -1 | AM24: -1 | AN24: -1 | AO24: -1 | AP24: -1
B25: Medikamente | C25: -37 | F25: -1 | G25: -1 | H25: -1 | I25: -1 | J25: -1 | K25: -1 | L25: -1 | M25: -1 | N25: -1 | O25: -1 | P25: -1 | Q25: -1 | R25: -1 | S25: -1 | T25: -1 | U25: -1 | V25: -1 | W25: -1 | X25: -1 | Y25: -1 | Z25: -1 | AA25: -1 | AB25: -1 | AC25: -1 | AD25: -1 | AE25: -1 | AF25: -1 | AG25: -1 | AH25: -1 | AI25: -1 | AJ25: -1 | AK25: -1 | AL25: -1 | AM25: -1 | AN25: -1 | AO25: -1 | AP25: -1
B26: Post (Briefe, Pakete) | C26: -37 | D26: =IF(SUM(C22:C26)<>0,SUM(C22:C26),"") -> -185 | E26: =IFERROR(D26/D67," ") -> 0.07551020408 | F26: -1 | G26: -1 | H26: -1 | I26: -1 | J26: -1 | K26: -1 | L26: -1 | M26: -1 | N26: -1 | O26: -1 | P26: -1 | Q26: -1 | R26: -1 | S26: -1 | T26: -1 | U26: -1 | V26: -1 | W26: -1 | X26: -1 | Y26: -1 | Z26: -1 | AA26: -1 | AB26: -1 | AC26: -1 | AD26: -1 | AE26: -1 | AF26: -1 | AG26: -1 | AH26: -1 | AI26: -1 | AJ26: -1 | AK26: -1 | AL26: -1 | AM26: -1 | AN26: -1 | AO26: -1 | AP26: -1
A27: Literatur/Medien/Spiele
B28: Bücher | C28: =IF(SUM(F28:AP28)<>0,SUM(F28:AP28),"") -> -37 | F28: -1 | G28: -1 | H28: -1 | I28: -1 | J28: -1 | K28: -1 | L28: -1 | M28: -1 | N28: -1 | O28: -1 | P28: -1 | Q28: -1 | R28: -1 | S28: -1 | T28: -1 | U28: -1 | V28: -1 | W28: -1 | X28: -1 | Y28: -1 | Z28: -1 | AA28: -1 | AB28: -1 | AC28: -1 | AD28: -1 | AE28: -1 | AF28: -1 | AG28: -1 | AH28: -1 | AI28: -1 | AJ28: -1 | AK28: -1 | AL28: -1 | AM28: -1 | AN28: -1 | AO28: -1 | AP28: -1
B29: PC-Software | C29: =IF(SUM(F29:AP29)<>0,SUM(F29:AP29),"") -> -37 | F29: -1 | G29: -1 | H29: -1 | I29: -1 | J29: -1 | K29: -1 | L29: -1 | M29: -1 | N29: -1 | O29: -1 | P29: -1 | Q29: -1 | R29: -1 | S29: -1 | T29: -1 | U29: -1 | V29: -1 | W29: -1 | X29: -1 | Y29: -1 | Z29: -1 | AA29: -1 | AB29: -1 | AC29: -1 | AD29: -1 | AE29: -1 | AF29: -1 | AG29: -1 | AH29: -1 | AI29: -1 | AJ29: -1 | AK29: -1 | AL29: -1 | AM29: -1 | AN29: -1 | AO29: -1 | AP29: -1
B30: PC-Spiele/Gesellschaftspiele | C30: -37 | F30: -1 | G30: -1 | H30: -1 | I30: -1 | J30: -1 | K30: -1 | L30: -1 | M30: -1 | N30: -1 | O30: -1 | P30: -1 | Q30: -1 | R30: -1 | S30: -1 | T30: -1 | U30: -1 | V30: -1 | W30: -1 | X30: -1 | Y30: -1 | Z30: -1 | AA30: -1 | AB30: -1 | AC30: -1 | AD30: -1 | AE30: -1 | AF30: -1 | AG30: -1 | AH30: -1 | AI30: -1 | AJ30: -1 | AK30: -1 | AL30: -1 | AM30: -1 | AN30: -1 | AO30: -1 | AP30: -1
B31: Zeitschriften/Heftromane | C31: -37 | D31: =IF(SUM(C28:C31)<>0,SUM(C28:C31),"") -> -148 | E31: =IFERROR(D31/D67," ") -> 0.06040816327 | F31: -1 | G31: -1 | H31: -1 | I31: -1 | J31: -1 | K31: -1 | L31: -1 | M31: -1 | N31: -1 | O31: -1 | P31: -1 | Q31: -1 | R31: -1 | S31: -1 | T31: -1 | U31: -1 | V31: -1 | W31: -1 | X31: -1 | Y31: -1 | Z31: -1 | AA31: -1 | AB31: -1 | AC31: -1 | AD31: -1 | AE31: -1 | AF31: -1 | AG31: -1 | AH31: -1 | AI31: -1 | AJ31: -1 | AK31: -1 | AL31: -1 | AM31: -1 | AN31: -1 | AO31: -1 | AP31: -1
A32: Mobilität
B33: Auto, Inspektion, Reparatur | C33: =IF(SUM(F33:AP33)<>0,SUM(F33:AP33),"") -> -37 | F33: -1 | G33: -1 | H33: -1 | I33: -1 | J33: -1 | K33: -1 | L33: -1 | M33: -1 | N33: -1 | O33: -1 | P33: -1 | Q33: -1 | R33: -1 | S33: -1 | T33: -1 | U33: -1 | V33: -1 | W33: -1 | X33: -1 | Y33: -1 | Z33: -1 | AA33: -1 | AB33: -1 | AC33: -1 | AD33: -1 | AE33: -1 | AF33: -1 | AG33: -1 | AH33: -1 | AI33: -1 | AJ33: -1 | AK33: -1 | AL33: -1 | AM33: -1 | AN33: -1 | AO33: -1 | AP33: -1
B34: Auto, Pflege | C34: =IF(SUM(F34:AP34)<>0,SUM(F34:AP34),"") -> -37 | F34: -1 | G34: -1 | H34: -1 | I34: -1 | J34: -1 | K34: -1 | L34: -1 | M34: -1 | N34: -1 | O34: -1 | P34: -1 | Q34: -1 | R34: -1 | S34: -1 | T34: -1 | U34: -1 | V34: -1 | W34: -1 | X34: -1 | Y34: -1 | Z34: -1 | AA34: -1 | AB34: -1 | AC34: -1 | AD34: -1 | AE34: -1 | AF34: -1 | AG34: -1 | AH34: -1 | AI34: -1 | AJ34: -1 | AK34: -1 | AL34: -1 | AM34: -1 | AN34: -1 | AO34: -1 | AP34: -1
B35: Auto, Treibstoff | C35: -37 | F35: -1 | G35: -1 | H35: -1 | I35: -1 | J35: -1 | K35: -1 | L35: -1 | M35: -1 | N35: -1 | O35: -1 | P35: -1 | Q35: -1 | R35: -1 | S35: -1 | T35: -1 | U35: -1 | V35: -1 | W35: -1 | X35: -1 | Y35: -1 | Z35: -1 | AA35: -1 | AB35: -1 | AC35: -1 | AD35: -1 | AE35: -1 | AF35: -1 | AG35: -1 | AH35: -1 | AI35: -1 | AJ35: -1 | AK35: -1 | AL35: -1 | AM35: -1 | AN35: -1 | AO35: -1 | AP35: -1
B36: Auto, Pargebühren | C36: -37 | F36: -1 | G36: -1 | H36: -1 | I36: -1 | J36: -1 | K36: -1 | L36: -1 | M36: -1 | N36: -1 | O36: -1 | P36: -1 | Q36: -1 | R36: -1 | S36: -1 | T36: -1 | U36: -1 | V36: -1 | W36: -1 | X36: -1 | Y36: -1 | Z36: -1 | AA36: -1 | AB36: -1 | AC36: -1 | AD36: -1 | AE36: -1 | AF36: -1 | AG36: -1 | AH36: -1 | AI36: -1 | AJ36: -1 | AK36: -1 | AL36: -1 | AM36: -1 | AN36: -1 | AO36: -1 | AP36: -1
B37: Carsharing/E-Scooter/Taxi | C37: -286 | F37: -1 | G37: -1 | H37: -1 | I37: -250 | J37: -1 | K37: -1 | L37: -1 | M37: -1 | N37: -1 | O37: -1 | P37: -1 | Q37: -1 | R37: -1 | S37: -1 | T37: -1 | U37: -1 | V37: -1 | W37: -1 | X37: -1 | Y37: -1 | Z37: -1 | AA37: -1 | AB37: -1 | AC37: -1 | AD37: -1 | AE37: -1 | AF37: -1 | AG37: -1 | AH37: -1 | AI37: -1 | AJ37: -1 | AK37: -1 | AL37: -1 | AM37: -1 | AN37: -1 | AO37: -1 | AP37: -1
B38: Monats-/Wochenticket | C38: -37 | D38: =IF(SUM(C33:C38)<>0,SUM(C33:C38),"") -> -471 | E38: =IFERROR(D38/D67," ") -> 0.192244898 | F38: -1 | G38: -1 | H38: -1 | I38: -1 | J38: -1 | K38: -1 | L38: -1 | M38: -1 | N38: -1 | O38: -1 | P38: -1 | Q38: -1 | R38: -1 | S38: -1 | T38: -1 | U38: -1 | V38: -1 | W38: -1 | X38: -1 | Y38: -1 | Z38: -1 | AA38: -1 | AB38: -1 | AC38: -1 | AD38: -1 | AE38: -1 | AF38: -1 | AG38: -1 | AH38: -1 | AI38: -1 | AJ38: -1 | AK38: -1 | AL38: -1 | AM38: -1 | AN38: -1 | AO38: -1 | AP38: -1
A39: Ausbildung/ Fortbildung
B40: Fernstudium | C40: =IF(SUM(F40:AP40)<>0,SUM(F40:AP40),"") -> -37 | F40: -1 | G40: -1 | H40: -1 | I40: -1 | J40: -1 | K40: -1 | L40: -1 | M40: -1 | N40: -1 | O40: -1 | P40: -1 | Q40: -1 | R40: -1 | S40: -1 | T40: -1 | U40: -1 | V40: -1 | W40: -1 | X40: -1 | Y40: -1 | Z40: -1 | AA40: -1 | AB40: -1 | AC40: -1 | AD40: -1 | AE40: -1 | AF40: -1 | AG40: -1 | AH40: -1 | AI40: -1 | AJ40: -1 | AK40: -1 | AL40: -1 | AM40: -1 | AN40: -1 | AO40: -1 | AP40: -1
B41: Gewerkschaft | C41: =IF(SUM(F41:AP41)<>0,SUM(F41:AP41),"") -> -37 | F41: -1 | G41: -1 | H41: -1 | I41: -1 | J41: -1 | K41: -1 | L41: -1 | M41: -1 | N41: -1 | O41: -1 | P41: -1 | Q41: -1 | R41: -1 | S41: -1 | T41: -1 | U41: -1 | V41: -1 | W41: -1 | X41: -1 | Y41: -1 | Z41: -1 | AA41: -1 | AB41: -1 | AC41: -1 | AD41: -1 | AE41: -1 | AF41: -1 | AG41: -1 | AH41: -1 | AI41: -1 | AJ41: -1 | AK41: -1 | AL41: -1 | AM41: -1 | AN41: -1 | AO41: -1 | AP41: -1
B42: VHS-Kurs | C42: -37 | D42: =IF(SUM(C40:C42)<>0,SUM(C40:C42),"") -> -111 | E42: =IFERROR(D42/D67," ") -> 0.04530612245 | F42: -1 | G42: -1 | H42: -1 | I42: -1 | J42: -1 | K42: -1 | L42: -1 | M42: -1 | N42: -1 | O42: -1 | P42: -1 | Q42: -1 | R42: -1 | S42: -1 | T42: -1 | U42: -1 | V42: -1 | W42: -1 | X42: -1 | Y42: -1 | Z42: -1 | AA42: -1 | AB42: -1 | AC42: -1 | AD42: -1 | AE42: -1 | AF42: -1 | AG42: -1 | AH42: -1 | AI42: -1 | AJ42: -1 | AK42: -1 | AL42: -1 | AM42: -1 | AN42: -1 | AO42: -1 | AP42: -1
A43: Bekleidung
B44: Hemden | C44: =IF(SUM(F44:AP44)<>0,SUM(F44:AP44),"") -> -37 | F44: -1 | G44: -1 | H44: -1 | I44: -1 | J44: -1 | K44: -1 | L44: -1 | M44: -1 | N44: -1 | O44: -1 | P44: -1 | Q44: -1 | R44: -1 | S44: -1 | T44: -1 | U44: -1 | V44: -1 | W44: -1 | X44: -1 | Y44: -1 | Z44: -1 | AA44: -1 | AB44: -1 | AC44: -1 | AD44: -1 | AE44: -1 | AF44: -1 | AG44: -1 | AH44: -1 | AI44: -1 | AJ44: -1 | AK44: -1 | AL44: -1 | AM44: -1 | AN44: -1 | AO44: -1 | AP44: -1
B45: Hosen | C45: =IF(SUM(F45:AP45)<>0,SUM(F45:AP45),"") -> -37 | F45: -1 | G45: -1 | H45: -1 | I45: -1 | J45: -1 | K45: -1 | L45: -1 | M45: -1 | N45: -1 | O45: -1 | P45: -1 | Q45: -1 | R45: -1 | S45: -1 | T45: -1 | U45: -1 | V45: -1 | W45: -1 | X45: -1 | Y45: -1 | Z45: -1 | AA45: -1 | AB45: -1 | AC45: -1 | AD45: -1 | AE45: -1 | AF45: -1 | AG45: -1 | AH45: -1 | AI45: -1 | AJ45: -1 | AK45: -1 | AL45: -1 | AM45: -1 | AN45: -1 | AO45: -1 | AP45: -1
B46: Oberbekleidung | C46: -536 | F46: -1 | G46: -1 | H46: -1 | I46: -1 | J46: -1 | K46: -500 | L46: -1 | M46: -1 | N46: -1 | O46: -1 | P46: -1 | Q46: -1 | R46: -1 | S46: -1 | T46: -1 | U46: -1 | V46: -1 | W46: -1 | X46: -1 | Y46: -1 | Z46: -1 | AA46: -1 | AB46: -1 | AC46: -1 | AD46: -1 | AE46: -1 | AF46: -1 | AG46: -1 | AH46: -1 | AI46: -1 | AJ46: -1 | AK46: -1 | AL46: -1 | AM46: -1 | AN46: -1 | AO46: -1 | AP46: -1
B47: Unterwäsche | C47: -37 | D47: =IF(SUM(C44:C47)<>0,SUM(C44:C47),"") -> -647 | E47: =IFERROR(D47/D67,"") -> 0.2640816327 | F47: -1 | G47: -1 | H47: -1 | I47: -1 | J47: -1 | K47: -1 | L47: -1 | M47: -1 | N47: -1 | O47: -1 | P47: -1 | Q47: -1 | R47: -1 | S47: -1 | T47: -1 | U47: -1 | V47: -1 | W47: -1 | X47: -1 | Y47: -1 | Z47: -1 | AA47: -1 | AB47: -1 | AC47: -1 | AD47: -1 | AE47: -1 | AF47: -1 | AG47: -1 | AH47: -1 | AI47: -1 | AJ47: -1 | AK47: -1 | AL47: -1 | AM47: -1 | AN47: -1 | AO47: -1 | AP47: -1
A48: Elektro Artikel
B49: PC/Notebook | C49: =IF(SUM(F49:AP49)<>0,SUM(F49:AP49),"") -> -37 | F49: -1 | G49: -1 | H49: -1 | I49: -1 | J49: -1 | K49: -1 | L49: -1 | M49: -1 | N49: -1 | O49: -1 | P49: -1 | Q49: -1 | R49: -1 | S49: -1 | T49: -1 | U49: -1 | V49: -1 | W49: -1 | X49: -1 | Y49: -1 | Z49: -1 | AA49: -1 | AB49: -1 | AC49: -1 | AD49: -1 | AE49: -1 | AF49: -1 | AG49: -1 | AH49: -1 | AI49: -1 | AJ49: -1 | AK49: -1 | AL49: -1 | AM49: -1 | AN49: -1 | AO49: -1 | AP49: -1
B50: Unterhaltungselektronik/Batterien | C50: =IF(SUM(F50:AP50)<>0,SUM(F50:AP50),"") -> -37 | D50: =IF(SUM(C49:C50)<>0,SUM(C49:C50),"") -> -74 | E50: =IFERROR(D50/D67," ") -> 0.03020408163 | F50: -1 | G50: -1 | H50: -1 | I50: -1 | J50: -1 | K50: -1 | L50: -1 | M50: -1 | N50: -1 | O50: -1 | P50: -1 | Q50: -1 | R50: -1 | S50: -1 | T50: -1 | U50: -1 | V50: -1 | W50: -1 | X50: -1 | Y50: -1 | Z50: -1 | AA50: -1 | AB50: -1 | AC50: -1 | AD50: -1 | AE50: -1 | AF50: -1 | AG50: -1 | AH50: -1 | AI50: -1 | AJ50: -1 | AK50: -1 | AL50: -1 | AM50: -1 | AN50: -1 | AO50: -1 | AP50: -1
A51: Wohnung/Möbel/ Hausrat
B52: Haushaltsnahe Dienstleistungen | C52: =IF(SUM(F52:AP52)<>0,SUM(F52:AP52),"") -> -37 | F52: -1 | G52: -1 | H52: -1 | I52: -1 | J52: -1 | K52: -1 | L52: -1 | M52: -1 | N52: -1 | O52: -1 | P52: -1 | Q52: -1 | R52: -1 | S52: -1 | T52: -1 | U52: -1 | V52: -1 | W52: -1 | X52: -1 | Y52: -1 | Z52: -1 | AA52: -1 | AB52: -1 | AC52: -1 | AD52: -1 | AE52: -1 | AF52: -1 | AG52: -1 | AH52: -1 | AI52: -1 | AJ52: -1 | AK52: -1 | AL52: -1 | AM52: -1 | AN52: -1 | AO52: -1 | AP52: -1
B53: Haushaltsartikel | C53: =IF(SUM(F53:AP53)<>0,SUM(F53:AP53),"") -> -37 | F53: -1 | G53: -1 | H53: -1 | I53: -1 | J53: -1 | K53: -1 | L53: -1 | M53: -1 | N53: -1 | O53: -1 | P53: -1 | Q53: -1 | R53: -1 | S53: -1 | T53: -1 | U53: -1 | V53: -1 | W53: -1 | X53: -1 | Y53: -1 | Z53: -1 | AA53: -1 | AB53: -1 | AC53: -1 | AD53: -1 | AE53: -1 | AF53: -1 | AG53: -1 | AH53: -1 | AI53: -1 | AJ53: -1 | AK53: -1 | AL53: -1 | AM53: -1 | AN53: -1 | AO53: -1 | AP53: -1
B54: Küchengeräte | C54: -37 | F54: -1 | G54: -1 | H54: -1 | I54: -1 | J54: -1 | K54: -1 | L54: -1 | M54: -1 | N54: -1 | O54: -1 | P54: -1 | Q54: -1 | R54: -1 | S54: -1 | T54: -1 | U54: -1 | V54: -1 | W54: -1 | X54: -1 | Y54: -1 | Z54: -1 | AA54: -1 | AB54: -1 | AC54: -1 | AD54: -1 | AE54: -1 | AF54: -1 | AG54: -1 | AH54: -1 | AI54: -1 | AJ54: -1 | AK54: -1 | AL54: -1 | AM54: -1 | AN54: -1 | AO54: -1 | AP54: -1
B55: Möbel | C55: -37 | D55: =IF(SUM(C52:C55)<>0,SUM(C52:C55),"") -> -148 | E55: =IFERROR(D55/D67," ") -> 0.06040816327 | F55: -1 | G55: -1 | H55: -1 | I55: -1 | J55: -1 | K55: -1 | L55: -1 | M55: -1 | N55: -1 | O55: -1 | P55: -1 | Q55: -1 | R55: -1 | S55: -1 | T55: -1 | U55: -1 | V55: -1 | W55: -1 | X55: -1 | Y55: -1 | Z55: -1 | AA55: -1 | AB55: -1 | AC55: -1 | AD55: -1 | AE55: -1 | AF55: -1 | AG55: -1 | AH55: -1 | AI55: -1 | AJ55: -1 | AK55: -1 | AL55: -1 | AM55: -1 | AN55: -1 | AO55: -1 | AP55: -1
A56: Hobbys/Vereine
B57: Bekleidung | C57: =IF(SUM(F57:AP57)<>0,SUM(F57:AP57),"") -> -37 | D57: =IF(SUM(C57:C57)<>0,SUM(C57:C57),"") -> -37 | E57: =IFERROR(D57/D67," ") -> 0.01510204082 | F57: -1 | G57: -1 | H57: -1 | I57: -1 | J57: -1 | K57: -1 | L57: -1 | M57: -1 | N57: -1 | O57: -1 | P57: -1 | Q57: -1 | R57: -1 | S57: -1 | T57: -1 | U57: -1 | V57: -1 | W57: -1 | X57: -1 | Y57: -1 | Z57: -1 | AA57: -1 | AB57: -1 | AC57: -1 | AD57: -1 | AE57: -1 | AF57: -1 | AG57: -1 | AH57: -1 | AI57: -1 | AJ57: -1 | AK57: -1 | AL57: -1 | AM57: -1 | AN57: -1 | AO57: -1 | AP57: -1
A58: Hygiene
B59: Haare schneiden | C59: =IF(SUM(F59:AP59)<>0,SUM(F59:AP59),"") -> -37 | F59: -1 | G59: -1 | H59: -1 | I59: -1 | J59: -1 | K59: -1 | L59: -1 | M59: -1 | N59: -1 | O59: -1 | P59: -1 | Q59: -1 | R59: -1 | S59: -1 | T59: -1 | U59: -1 | V59: -1 | W59: -1 | X59: -1 | Y59: -1 | Z59: -1 | AA59: -1 | AB59: -1 | AC59: -1 | AD59: -1 | AE59: -1 | AF59: -1 | AG59: -1 | AH59: -1 | AI59: -1 | AJ59: -1 | AK59: -1 | AL59: -1 | AM59: -1 | AN59: -1 | AO59: -1 | AP59: -1
B60: Sauna | C60: =IF(SUM(F60:AP60)<>0,SUM(F60:AP60),"") -> -37 | D60: =IF(SUM(C59:C60)<>0,SUM(C59:C60),"") -> -74 | E60: =IFERROR(D60/D67," ") -> 0.03020408163 | F60: -1 | G60: -1 | H60: -1 | I60: -1 | J60: -1 | K60: -1 | L60: -1 | M60: -1 | N60: -1 | O60: -1 | P60: -1 | Q60: -1 | R60: -1 | S60: -1 | T60: -1 | U60: -1 | V60: -1 | W60: -1 | X60: -1 | Y60: -1 | Z60: -1 | AA60: -1 | AB60: -1 | AC60: -1 | AD60: -1 | AE60: -1 | AF60: -1 | AG60: -1 | AH60: -1 | AI60: -1 | AJ60: -1 | AK60: -1 | AL60: -1 | AM60: -1 | AN60: -1 | AO60: -1 | AP60: -1
A61: Urlaub
B62: Pauschalreise | C62: =IF(SUM(F62:AP62)<>0,SUM(F62:AP62),"") -> -37 | F62: -1 | G62: -1 | H62: -1 | I62: -1 | J62: -1 | K62: -1 | L62: -1 | M62: -1 | N62: -1 | O62: -1 | P62: -1 | Q62: -1 | R62: -1 | S62: -1 | T62: -1 | U62: -1 | V62: -1 | W62: -1 | X62: -1 | Y62: -1 | Z62: -1 | AA62: -1 | AB62: -1 | AC62: -1 | AD62: -1 | AE62: -1 | AF62: -1 | AG62: -1 | AH62: -1 | AI62: -1 | AJ62: -1 | AK62: -1 | AL62: -1 | AM62: -1 | AN62: -1 | AO62: -1 | AP62: -1
B63: Flug | C63: =IF(SUM(F63:AP63)<>0,SUM(F63:AP63),"") -> -37 | F63: -1 | G63: -1 | H63: -1 | I63: -1 | J63: -1 | K63: -1 | L63: -1 | M63: -1 | N63: -1 | O63: -1 | P63: -1 | Q63: -1 | R63: -1 | S63: -1 | T63: -1 | U63: -1 | V63: -1 | W63: -1 | X63: -1 | Y63: -1 | Z63: -1 | AA63: -1 | AB63: -1 | AC63: -1 | AD63: -1 | AE63: -1 | AF63: -1 | AG63: -1 | AH63: -1 | AI63: -1 | AJ63: -1 | AK63: -1 | AL63: -1 | AM63: -1 | AN63: -1 | AO63: -1 | AP63: -1
B64: Unterkunft | C64: -37 | F64: -1 | G64: -1 | H64: -1 | I64: -1 | J64: -1 | K64: -1 | L64: -1 | M64: -1 | N64: -1 | O64: -1 | P64: -1 | Q64: -1 | R64: -1 | S64: -1 | T64: -1 | U64: -1 | V64: -1 | W64: -1 | X64: -1 | Y64: -1 | Z64: -1 | AA64: -1 | AB64: -1 | AC64: -1 | AD64: -1 | AE64: -1 | AF64: -1 | AG64: -1 | AH64: -1 | AI64: -1 | AJ64: -1 | AK64: -1 | AL64: -1 | AM64: -1 | AN64: -1 | AO64: -1 | AP64: -1
B65: Verpflegung | C65: -37 | F65: -1 | G65: -1 | H65: -1 | I65: -1 | J65: -1 | K65: -1 | L65: -1 | M65: -1 | N65: -1 | O65: -1 | P65: -1 | Q65: -1 | R65: -1 | S65: -1 | T65: -1 | U65: -1 | V65: -1 | W65: -1 | X65: -1 | Y65: -1 | Z65: -1 | AA65: -1 | AB65: -1 | AC65: -1 | AD65: -1 | AE65: -1 | AF65: -1 | AG65: -1 | AH65: -1 | AI65: -1 | AJ65: -1 | AK65: -1 | AL65: -1 | AM65: -1 | AN65: -1 | AO65: -1 | AP65: -1
B66: Sonstige Kosten | C66: -37 | D66: =IF(SUM(C62:C66)<>0,SUM(C62:C66),"") -> -185 | E66: =IFERROR(D66/D67," ") -> 0.07551020408 | F66: -1 | G66: -1 | H66: -1 | I66: -1 | J66: -1 | K66: -1 | L66: -1 | M66: -1 | N66: -1 | O66: -1 | P66: -1 | Q66: -1 | R66: -1 | S66: -1 | T66: -1 | U66: -1 | V66: -1 | W66: -1 | X66: -1 | Y66: -1 | Z66: -1 | AA66: -1 | AB66: -1 | AC66: -1 | AD66: -1 | AE66: -1 | AF66: -1 | AG66: -1 | AH66: -1 | AI66: -1 | AJ66: -1 | AK66: -1 | AL66: -1 | AM66: -1 | AN66: -1 | AO66: -1 | AP66: -1
B67: Summe Monat | D67: =SUM(D12,D20,D26,D31,D38,D42,D47,D50,D55,D57,D60,D66) -> -2450 | E67: =SUM(E12,E20,E26,E31,E38,E42,E47,E50,E55,E57,E60,E66) -> 1
I69: Betrag größer als -100,00 € | N69: Prozentsatz größer gleich 25%
I71: Betrag größer als -250,00 € | N71: Prozentsatz größer gleich 50%
I73: Betrag größer als -500,00 € | N73: Prozentsatz größer gleich 75%
I91: Auswahl (Vorjahr)
I93: Monat: | J93: Dezember | K93: 12
I94: Jahr: | J94: 2037 | K94: =J94 -> 2037
I95: Datum: | J95: =DATE(K94,K93,1) -> 2037-12-01 | K95: =J95 -> 2037-12-01
I97: =K95 -> 2037-12-01 | J97: =I97+1 -> 2037-12-02 | K97: =J97+1 -> 2037-12-03 | L97: =K97+1 -> 2037-12-04 | M97: 2037-12-05 | N97: 2037-12-06 | O97: 2037-12-07 | P97: 2037-12-08 | Q97: 2037-12-09 | R97: 2037-12-10 | S97: 2037-12-11 | T97: 2037-12-12 | U97: 2037-12-13 | V97: 2037-12-14 | W97: 2037-12-15 | X97: 2037-12-16 | Y97: 2037-12-17 | Z97: 2037-12-18 | AA97: 2037-12-19 | AB97: 2037-12-20 | AC97: 2037-12-21 | AD97: 2037-12-22 | AE97: 2037-12-23 | AF97: 2037-12-24 | AG97: 2037-12-25 | AH97: 2037-12-26 | AI97: 2037-12-27 | AJ97: 2037-12-28 | AK97: 2037-12-29 | AL97: 2037-12-30 | AM97: 2037-12-31
I99: Auswahl (Aktuelles Jahr)
I101: Monat: | J101: Januar | K101: =IF(J101="Januar",1,IF(J101="Februar",2,IF(J101="März",3,IF(J101="April",4,IF(J101="Mai",5,IF(J101="Juni",6,IF(J101="Juli",7,IF(J101="August",8,IF(J101="September",9,IF(J101="Oktober",10,IF(J101="November",11,12))))))))))) -> 1
I102: Jahr: | J102: 2024 | K102: =J102 -> 2024
I103: Datum: | J103: =DATE(K102,K101,1) -> 2024-01-01 | K103: =J103 -> 2024-01-01
I105: =J103 -> 2024-01-01 | J105: =I105+1 -> 2024-01-02 | K105: =J105+1 -> 2024-01-03 | L105: =K105+1 -> 2024-01-04 | M105: 2024-01-05 | N105: 2024-01-06 | O105: 2024-01-07 | P105: 2024-01-08 | Q105: 2024-01-09 | R105: 2024-01-10 | S105: 2024-01-11 | T105: 2024-01-12 | U105: 2024-01-13 | V105: 2024-01-14 | W105: 2024-01-15 | X105: 2024-01-16 | Y105: 2024-01-17 | Z105: 2024-01-18 | AA105: 2024-01-19 | AB105: 2024-01-20 | AC105: 2024-01-21 | AD105: 2024-01-22 | AE105: 2024-01-23 | AF105: 2024-01-24 | AG105: 2024-01-25 | AH105: 2024-01-26 | AI105: 2024-01-27 | AJ105: 2024-01-28 | AK105: 2024-01-29 | AL105: 2024-01-30 | AM105: 2024-01-31
I107: Auswahl (Folgendes Jahr)
I109: Monat: | J109: Januar | K109: 1
I110: Jahr: | J110: 2039 | K110: =J110 -> 2039
I111: Datum: | J111: =DATE(K110,K109,1) -> 2039-01-01 | K111: =J111 -> 2039-01-01
I113: =J111 -> 2039-01-01 | J113: =I113+1 -> 2039-01-02 | K113: =J113+1 -> 2039-01-03 | L113: 2039-01-04 | M113: 2039-01-05 | N113: 2039-01-06 | O113: 2039-01-07 | P113: 2039-01-08 | Q113: 2039-01-09 | R113: 2039-01-10 | S113: 2039-01-11 | T113: 2039-01-12 | U113: 2039-01-13 | V113: 2039-01-14 | W113: 2039-01-15 | X113: 2039-01-16 | Y113: 2039-01-17 | Z113: 2039-01-18 | AA113: 2039-01-19 | AB113: 2039-01-20 | AC113: 2039-01-21 | AD113: 2039-01-22 | AE113: 2039-01-23 | AF113: 2039-01-24 | AG113: 2039-01-25 | AH113: 2039-01-26 | AI113: 2039-01-27 | AJ113: 2039-01-28 | AK113: 2039-01-29 | AL113: 2039-01-30 | AM113: 2039-01-31

Sheet Einn Ausg Jahr
C3: Monat | F3: Januar | G3: Februar | H3: März | I3: April | J3: Mai | K3: Juni | L3: Juli | M3: August | N3: September | O3: Oktober | P3: November | Q3: Dezember
B4: Sparen | E4: =IFERROR(C4/#REF!," ") ->  | F4: -33 | G4: -33 | H4: -33 | I4: -33 | J4: -33 | K4: -33 | L4: -33 | M4: -33 | N4: -33 | O4: -33 | P4: -33 | Q4: -33

Sheet Test
B1: Kapital zum | C1: Kapital zum | D1: Entnahme | F1: Entnahme | H1: Entnahme | J1: Entnahme | L1: Entnahme
C2: =EOMONTH(TODAY(),-1)+1 -> 2025-01-01 | D2: Datum | E2: Betrag | F2: Datum | G2: Betrag | H2: Datum | I2: Betrag | J2: Datum | K2: Betrag | L2: Datum | M2: Betrag
A3: Sparen | B3: 1 | C3: =B3-SUMIF('Einn Ausg Jahr'!$F$3,TEXT(MONTH(TODAY()),"MMMM"),'Einn Ausg Jahr'!$F$4:$Q$4)-SUMIF('Einn Ausg Jahr'!$G$3,TEXT(MONTH(TODAY()),"MMMM"),'Einn Ausg Jahr'!$F$4:$Q$4)-SUMIF('Einn Ausg Jahr'!$H$3,TEXT(MONTH(TODAY()),"MMMM"),'Einn Ausg Jahr'!$F$4:$Q$4)-SUMIF('Einn Ausg Jahr'!$I$3,TEXT(MONTH(TODAY()),"MMMM"),'Einn Ausg Jahr'!$F$4:$Q$4)-SUMIF('Einn Ausg Jahr'!$J$3,TEXT(MONTH(TODAY()),"MMMM"),'Einn Ausg Jahr'!$F$4:$Q$4)-SUMIF('Einn Ausg Jahr'!$K$3,TEXT(MONTH(TODAY()),"MMMM"),'Einn Ausg Jahr'!$F$4:$Q$4)-SUMIF('Einn Ausg Jahr'!$L$3,TEXT(MONTH(TODAY()),"MMMM"),'Einn Ausg Jahr'!$F$4:$Q$4)-SUMIF('Einn Ausg Jahr'!$M$3,TEXT(MONTH(TODAY()),"MMMM"),'Einn Ausg Jahr'!$F$4:$Q$4)-SUMIF('Einn Ausg Jahr'!$N$3,TEXT(MONTH(TODAY()),"MMMM"),'Einn Ausg Jahr'!$F$4:$Q$4)-(SUMIF('Einn Ausg Jahr'!$O$3,TEXT(MONTH(TODAY()),"MMMM"),'Einn Ausg Jahr'!$F$4:$Q$4)-SUMIF('Einn Ausg Jahr'!$P$3,TEXT(MONTH(TODAY()),"MMMM"),'Einn Ausg Jahr'!$F$4:$Q$4)-SUMIF('Einn Ausg Jahr'!$Q$3,TEXT(MONTH(TODAY()),"MMMM"),'Einn Ausg Jahr'!$F$4:$Q$4))+SUM(E3,G3,I3,K3,M3) -> 29 | D3: 2025-01-01 | E3: -1 | F3: 2025-02-01 | G3: -1 | H3: 2025-03-01 | I3: -1 | J3: 2025-03-01 | K3: -1 | L3: 2025-05-01 | M3: -1
